date,department/service,beneficiary,amount,summary of purpose,category,transaction number,SAP vendor number,
03.01.2019,ADULT SOCIAL CARE,REDACTED PERSONAL DATA,500.00,APPOINTEESHIPS,OTHER PAYMENTS FOR CLIENTS,REDACTED,REDACTED,
03.01.2019,ADULT SOCIAL CARE,BLACKFRIARS SETTLEMENT,"7,075.00",LOCAL COMMUNITY OFFER,EXTERNAL AGENCIES AND BODIES,5902336177,1000071456,
03.01.2019,ADULT SOCIAL CARE,BLACKFRIARS SETTLEMENT,"7,562.50",LOCAL COMMUNITY OFFER,EXTERNAL AGENCIES AND BODIES,5902336178,1000071456,
03.01.2019,ADULT SOCIAL CARE,SWK DISABLEMENT ASSN,"8,125.00",LOCAL COMMUNITY OFFER,EXTERNAL AGENCIES AND BODIES,5902336161,1000011698,
03.01.2019,ADULT SOCIAL CARE,LAMBETH & SOUTHWARK MENCAP,"10,250.00",LOCAL COMMUNITY OFFER,EXTERNAL AGENCIES AND BODIES,5902336159,1000005477,
03.01.2019,ADULT SOCIAL CARE,LIFELONG FAMILY LINIKS,"11,250.00",LOCAL COMMUNITY OFFER,EXTERNAL AGENCIES AND BODIES,5902336175,1000069342,
03.01.2019,ADULT SOCIAL CARE,SWK DISABLEMENT ASSN,"11,875.00",LOCAL COMMUNITY OFFER,EXTERNAL AGENCIES AND BODIES,5902336160,1000011698,
03.01.2019,ADULT SOCIAL CARE,TIME & TALENTS ASSOCIATION,"14,562.50",LOCAL COMMUNITY OFFER,EXTERNAL AGENCIES AND BODIES,5902336147,1757632,
03.01.2019,ADULT SOCIAL CARE,LEONARD CHESHIRE DISABILITY,"22,500.00",LOCAL COMMUNITY OFFER,EXTERNAL AGENCIES AND BODIES,5902336171,1000065128,
03.01.2019,ADULT SOCIAL CARE,LINK AGE SOUTHWARK,"30,812.50",LOCAL COMMUNITY OFFER,EXTERNAL AGENCIES AND BODIES,5902336163,1000034150,
03.01.2019,ADULT SOCIAL CARE,AGE UK LEWISHAM & SOUTHWARK,"53,000.00",LOCAL COMMUNITY OFFER,EXTERNAL AGENCIES AND BODIES,5902336145,1507154,
03.01.2019,ASSET MANAGEMENT,FRANKHAM CONSULTANCY GROUP LTD,551.56,ADAPTATIONS,BUILDING R&M,5902336254,1000043952,
03.01.2019,ASSET MANAGEMENT,FRANKHAM CONSULTANCY GROUP LTD,570.36,ADAPTATIONS,BUILDING R&M,5902336253,1000043952,
03.01.2019,ASSET MANAGEMENT,FRANKHAM CONSULTANCY GROUP LTD,582.77,ADAPTATIONS,BUILDING R&M,5902336251,1000043952,
03.01.2019,ASSET MANAGEMENT,FRANKHAM CONSULTANCY GROUP LTD,608.48,ADAPTATIONS,BUILDING R&M,5902336204,1000043952,
03.01.2019,ASSET MANAGEMENT,FRANKHAM CONSULTANCY GROUP LTD,642.84,ADAPTATIONS,BUILDING R&M,5902336229,1000043952,
03.01.2019,ASSET MANAGEMENT,FRANKHAM CONSULTANCY GROUP LTD,666.18,ADAPTATIONS,BUILDING R&M,5902336250,1000043952,
03.01.2019,ASSET MANAGEMENT,FRANKHAM CONSULTANCY GROUP LTD,736.80,ADAPTATIONS,BUILDING R&M,5902336208,1000043952,
03.01.2019,ASSET MANAGEMENT,FRANKHAM CONSULTANCY GROUP LTD,816.32,ADAPTATIONS,BUILDING R&M,5902336257,1000043952,
03.01.2019,ASSET MANAGEMENT,FRANKHAM CONSULTANCY GROUP LTD,840.44,ADAPTATIONS,BUILDING R&M,5902336227,1000043952,
03.01.2019,ASSET MANAGEMENT,FRANKHAM CONSULTANCY GROUP LTD,845.35,ADAPTATIONS,BUILDING R&M,5902336258,1000043952,
03.01.2019,ASSET MANAGEMENT,FRANKHAM CONSULTANCY GROUP LTD,864.84,ADAPTATIONS,BUILDING R&M,5902336244,1000043952,
03.01.2019,ASSET MANAGEMENT,FRANKHAM CONSULTANCY GROUP LTD,871.01,ADAPTATIONS,BUILDING R&M,5902336234,1000043952,
03.01.2019,ASSET MANAGEMENT,FRANKHAM CONSULTANCY GROUP LTD,920.92,ADAPTATIONS,BUILDING R&M,5902336256,1000043952,
03.01.2019,ASSET MANAGEMENT,FRANKHAM CONSULTANCY GROUP LTD,"1,044.96",ADAPTATIONS,BUILDING R&M,5902336222,1000043952,
03.01.2019,ASSET MANAGEMENT,FRANKHAM CONSULTANCY GROUP LTD,"1,062.40",ADAPTATIONS,BUILDING R&M,5902336245,1000043952,
03.01.2019,CENTRAL FUNCTIONS,BLAKENEY LEIGH LTD,"17,100.00",AYLESBURY,PROFESSIONAL FEES,5902336207,1438839,
03.01.2019,CHIEF EXECUTIVE,SYSTRA LTD,"3,842.50",CAPITAL PS (REGEN),CONSTRUCTION FEES  - EXTERNAL,5902336201,11305109,
03.01.2019,CHIEF EXECUTIVE,FIELD FISHER WATERHOUSE,"2,500.00",CAPITAL PS (REGEN),CONSTRUCTION FEES - LEGAL,5902336223,1000047449,
03.01.2019,CHIEF EXECUTIVE,FIELD FISHER WATERHOUSE,"9,090.00",CAPITAL PS (REGEN),CONSTRUCTION FEES - LEGAL,5902336217,1000047449,
03.01.2019,CHIEF EXECUTIVE,REX PROCTER & PARTNERS,"2,500.00",CAPITAL PS (REGEN),CONSTRUCTION FEES - QUANTITY SURVEYOR,5902336249,1000078516,
03.01.2019,CHIEF EXECUTIVE'S OFFICE,J C CONSULTANT SERVICES LTD,"8,000.00",CHIEF EXEC'S OFFICE,GRANTS,5902336193,1000042476,
03.01.2019,CHIEF EXECUTIVE'S OFFICE,J C CONSULTANT SERVICES LTD,"8,500.00",CHIEF EXEC'S OFFICE,GRANTS,5902336197,1000042476,
03.01.2019,CHILDREN'S SERVICES,CHARLOTTE NOYES LTD,471.55,CLA TEAM SAFEGUARDING,PROFESSIONAL FEES,5902336233,1000055677,
03.01.2019,CHILDREN'S SERVICES,CHARLOTTE NOYES LTD,507.50,CLA TEAM SAFEGUARDING,PROFESSIONAL FEES,5902336240,1000055677,
03.01.2019,CHILDREN'S SERVICES,CHARLOTTE NOYES LTD,984.90,CLA TEAM SAFEGUARDING,PROFESSIONAL FEES,5902336237,1000055677,
03.01.2019,CHILDREN'S SERVICES,CHARLOTTE NOYES LTD,"1,027.60",CLA TEAM SAFEGUARDING,PROFESSIONAL FEES,5902336235,1000055677,
03.01.2019,CHILDREN'S SERVICES,CHARLOTTE NOYES LTD,"1,168.40",CLA TEAM SAFEGUARDING,PROFESSIONAL FEES,5902336238,1000055677,
03.01.2019,CHILDREN'S SERVICES,KINTORE WAY CHILDRENS CENTRE,"22,991.00",NURSERY ED GRANT 3 YEAR OLD,EARLY YEARS - 3 AND 4 YEAR OLDS,2102905979,5001000047,
03.01.2019,COMMUNITIES,SOUTHWARK GROUP OF TENANTS ORGANISATION,"58,187.00",TENANTS FUND,EXTERNAL AGENCIES AND BODIES,5902336144,1479419,
03.01.2019,ENVIRONMENT DIRECTORATE,F H BRUNDLE,-325.52,ENGINEERING CRAFTS,MATERIALS,5902336142,1082714,
03.01.2019,ENVIRONMENT DIRECTORATE,F H BRUNDLE,576.80,ENGINEERING CRAFTS,MATERIALS,5902336139,1082714,
03.01.2019,ENVIRONMENT DIRECTORATE,F H BRUNDLE,"1,980.90",ENGINEERING CRAFTS,MATERIALS,5902336136,1082714,
03.01.2019,ENVIRONMENT DIRECTORATE,F H BRUNDLE,"2,008.20",ENGINEERING CRAFTS,MATERIALS,5902336141,1082714,
03.01.2019,ENVIRONMENT DIRECTORATE,SYSTRA LTD,"12,635.00",PROJECT SUPPORT,PROFESSIONAL FEES,5902336199,11305109,
03.01.2019,ENVIRONMENT DIRECTORATE,RIGHTON & BLACKBURNS LTD,322.50,SIGN SHOP,MATERIALS,5902336132,1000041264,
03.01.2019,ENVIRONMENT DIRECTORATE,ALL PRINT SUPPLIES LTD,613.31,SIGN SHOP,MATERIALS,5902336134,1927973,
03.01.2019,ENVIRONMENT DIRECTORATE,RIGHTON & BLACKBURNS LTD,"1,273.00",SIGN SHOP,MATERIALS,5902336133,1000041264,
03.01.2019,ENVIRONMENT DIRECTORATE,THE INDUSTRIAL MAINTENANCE GROUP LTD,"2,052.23",STREET CLEANING-GENERAL,EQUIPMENT PURCHASE & REPAIR,5902336198,1000049781,
03.01.2019,F & C S EXCLUDING CORPORATE BUDGETS,SWISS POST SOLUTIONS LTD,"1,321.37",CONSTITUTIONAL TEAM,PRINTING,5902336216,1000073459,
03.01.2019,F & C S EXCLUDING CORPORATE BUDGETS,THOMSON REUTERS PROFESSIONAL UK LTD,368.00,LEGAL SVCES MANAGEMENT,SUBSCRIPTIONS,5902336225,1000000130,
03.01.2019,F & C S EXCLUDING CORPORATE BUDGETS,LEXISNEXIS UK,373.38,LEGAL SVCES MANAGEMENT,SUBSCRIPTIONS,5902336243,11328752,
03.01.2019,F & C S EXCLUDING CORPORATE BUDGETS,LEXISNEXIS UK,389.00,LEGAL SVCES MANAGEMENT,SUBSCRIPTIONS,5902336242,11328752,
03.01.2019,F & C S EXCLUDING CORPORATE BUDGETS,BOND SOLON TRAINING LTD,"2,023.55",LEGAL SVCES MANAGEMENT,TRAINING,5902336228,1000031147,
03.01.2019,HOUSING AND MODERNISATION,EAST DULWICH COMMUNITY CENTRE,"1,740.00",VCS GRANTS,GRANTS,5902336150,1968633,
03.01.2019,HOUSING AND MODERNISATION,MENTAL FIGHT CLUB,"1,870.00",VCS GRANTS,GRANTS,5902336168,1000051170,
03.01.2019,HOUSING AND MODERNISATION,CRYSTAL PALACE COMM DEV TRUST,"2,264.75",VCS GRANTS,GRANTS,5902336169,1000054200,
03.01.2019,HOUSING AND MODERNISATION,LATIN AMERICAN WOMEN'S RIGHTS SERVICES,"3,400.00",VCS GRANTS,GRANTS,5902336173,1000068356,
03.01.2019,HOUSING AND MODERNISATION,BEDE HSE,"3,475.50",VCS GRANTS,GRANTS,5902336153,11248731,
03.01.2019,HOUSING AND MODERNISATION,CAMBRIDGE HOUSE & TALBOT,"3,475.50",VCS GRANTS,GRANTS,5902336154,11248874,
03.01.2019,HOUSING AND MODERNISATION,BERMONDSEY COMMUNITY KITCHEN,"3,500.00",VCS GRANTS,GRANTS,5902336180,1000075477,
03.01.2019,HOUSING AND MODERNISATION,AYLESBURY EVERY WOMAN'S CENTRE,"3,600.00",VCS GRANTS,GRANTS,5902336165,1000042216,
03.01.2019,HOUSING AND MODERNISATION,WORKING WITH MEN,"3,600.00",VCS GRANTS,GRANTS,5902336166,1000046010,
03.01.2019,HOUSING AND MODERNISATION,PAXTON GREEN TIME BANK,"3,600.00",VCS GRANTS,GRANTS,5902336176,1000070648,
03.01.2019,HOUSING AND MODERNISATION,THE BIKE PROJECT,"3,750.00",VCS GRANTS,GRANTS,5902336181,1000077217,
03.01.2019,HOUSING AND MODERNISATION,LATIN AMERICAN DISABLED PEOPLE PROJECT,"4,000.00",VCS GRANTS,GRANTS,5902336170,1000058588,
03.01.2019,HOUSING AND MODERNISATION,ORGANISATION OF BLIND AFRICANS & CARIBBEANS,"4,084.25",VCS GRANTS,GRANTS,5902336157,1000002281,
03.01.2019,HOUSING AND MODERNISATION,TIME & TALENTS ASSOCIATION,"4,543.25",VCS GRANTS,GRANTS,5902336146,1757632,
03.01.2019,HOUSING AND MODERNISATION,ST FAITHS COMMUNITY CENTRE,"5,115.25",VCS GRANTS,GRANTS,5902336143,1039446,
03.01.2019,HOUSING AND MODERNISATION,BLACKFRIARS SETTLEMENT,"5,574.75",VCS GRANTS,GRANTS,5902336179,1000071456,
03.01.2019,HOUSING AND MODERNISATION,SOUTHWARK CITIZENS ADVICE,"5,600.00",VCS GRANTS,GRANTS,5902336149,1874379,
03.01.2019,HOUSING AND MODERNISATION,SOUTHWARK TRAVELLERS' ACTION,"5,750.00",VCS GRANTS,GRANTS,5902336182,1000077795,
03.01.2019,HOUSING AND MODERNISATION,LONDON WILDLIFE TRUST,"7,968.75",VCS GRANTS,GRANTS,5902336148,1832374,
03.01.2019,HOUSING AND MODERNISATION,AAINA WOMEN GROUP,"8,018.25",VCS GRANTS,GRANTS,5902336158,1000002442,
03.01.2019,HOUSING AND MODERNISATION,SURREY DOCKS FARM PROVIDENT SOCIETY,"10,678.25",VCS GRANTS,GRANTS,5902336156,1000000958,
03.01.2019,HOUSING AND MODERNISATION,SWK DAY CTR FOR ASYLUM SEEKERS,"11,330.25",VCS GRANTS,GRANTS,5902336164,1000040491,
03.01.2019,HOUSING AND MODERNISATION,SOMALI INTEGRATION & DEVELOPMENT ASSOCIATION,"13,222.50",VCS GRANTS,GRANTS,5902336151,11048946,
03.01.2019,HOUSING AND MODERNISATION,PECAN LTD,"13,292.00",VCS GRANTS,GRANTS,5902336155,11263114,
03.01.2019,HOUSING AND MODERNISATION,THE MANNA CENTRE,"13,750.00",VCS GRANTS,GRANTS,5902336167,1000048508,
03.01.2019,HOUSING AND MODERNISATION,BEORMUND COMMUNITY CENTRE,"17,437.25",VCS GRANTS,GRANTS,5902336152,11048982,
03.01.2019,HOUSING AND MODERNISATION,SOUTHWARK PENSIONERS CENTRE,"28,355.25",VCS GRANTS,GRANTS,5902336162,1000027831,
03.01.2019,HOUSING GENERAL FUND,LONDON BOROUGH OF BRENT,"633,901.09",CAPITAL PS (STRAT SERV),ICT ACQUISITION,5902336220,1000064734,
03.01.2019,HOUSING HRA,CALFORD SEADEN LLP,"4,165.00",CAPITAL PS (HRA),CONSTRUCTION FEES  - EXTERNAL,5902336196,1061592,
03.01.2019,HOUSING HRA,CALFORD SEADEN LLP,"10,412.50",CAPITAL PS (HRA),CONSTRUCTION FEES  - EXTERNAL,5902336192,1061592,
03.01.2019,HOUSING HRA,ARMSTRONG YORK,"6,800.00",PAYMENTS CONTROL ACCOUNT-ARMSTRONG YORKE,MANUAL CREDITORS,5902336252,1000058092,
03.01.2019,LEISURE DIRECTORATE,KENT COUNTY COUNCIL - LASER,368.51,CANADA WATER LIBRARY,ELECTRICITY,5902336200,1000012926,
03.01.2019,LEISURE DIRECTORATE,KENT COUNTY COUNCIL - LASER,"6,549.97",CANADA WATER LIBRARY,ELECTRICITY,5902336200,1000012926,
03.01.2019,LEISURE DIRECTORATE,CASTLE WATER LTD,277.56,CANADA WATER LIBRARY,WATER,5902336239,1000078867,
03.01.2019,LEISURE DIRECTORATE,THE CAMDEN SOCIETY (CATERING),571.75,COMMUNITY SPORTS DEVELOPMENT,CATERING MATERIALS & SUPPLIES,5902336195,1000075365,
03.01.2019,LEISURE DIRECTORATE,THE SECRET GARDEN,470.62,CREMATORIUM,GROUNDS MAINTENANCE,5902336232,1000067627,
03.01.2019,LEISURE DIRECTORATE,WE ARE SUPERFANTASTIC LTD,"1,112.00",DULWICH EVENTS,PRINTING,5902336183,1000080361,
03.01.2019,LEISURE DIRECTORATE,KENT COUNTY COUNCIL - LASER,"2,634.86",JOHN HARVARD LIBRARY,ELECTRICITY,5902336191,1000012926,
03.01.2019,LEISURE DIRECTORATE,TECHNICAL SURFACES,450.00,SOUTHWARK AREA TEAM,OTHER R&M,5902336218,1000011451,
03.01.2019,MODERNISATION HGF,CRESPO DESIGN LTD,400.00,DIGITAL DELIVERY,PRINTING,5902336221,1000075973,
03.01.2019,MODERNISATION HGF,LONDON BOROUGH OF BRENT,"1,493,104.44",SHARED SERVICES,DATA COMMUNICATIONS,5902336220,1000064734,
03.01.2019,PUBLIC HEALTH,FIELD FISHER WATERHOUSE,750.00,14-20 SHAND STREET,PROFESSIONAL FEES,5902336213,1000047449,
03.01.2019,PUBLIC HEALTH,FIELD FISHER WATERHOUSE,"1,200.00",14-20 SHAND STREET,PROFESSIONAL FEES,5902336215,1000047449,
03.01.2019,PUBLIC HEALTH,FIELD FISHER WATERHOUSE,624.00,22 SHAND STREET,PROFESSIONAL FEES,5902336226,1000047449,
03.01.2019,PUBLIC HEALTH,BOLTON NHS FOUNDATION TRUST,264.00,SEXUAL HEALTH - STI,EXTERNAL AGENCIES AND BODIES,5902336231,1000080749,
03.01.2019,PUBLIC HEALTH,LONDON NORTH WEST UNIVERSITY HEALTHCARE NHS TRUST,365.00,SEXUAL HEALTH - STI,EXTERNAL AGENCIES AND BODIES,5902336202,1000075293,
03.01.2019,PUBLIC HEALTH,LONDON NORTH WEST UNIVERSITY HEALTHCARE NHS TRUST,488.00,SEXUAL HEALTH - STI,EXTERNAL AGENCIES AND BODIES,5902336203,1000075293,
03.01.2019,PUBLIC HEALTH,KINGSTON HOSPITAL NHS FOUNDATION TRUST,"1,597.97",SEXUAL HEALTH - STI,EXTERNAL AGENCIES AND BODIES,5902336205,1000076211,
03.01.2019,PUBLIC HEALTH,BARTS HEALTH NHS TRUST,"10,635.46",SEXUAL HEALTH - STI,EXTERNAL AGENCIES AND BODIES,5902336219,1000055762,
03.01.2019,RESIDENT SERVICES,THOMSON REUTERS PROFESSIONAL UK LTD,543.00,OPERATIONS/OFFICES ACCOMMODATION,BOOKS & PUBLICATIONS,5902336194,1000000130,
03.01.2019,RESIDENT SERVICES,NOTHING BUT FLOORING & BUILDING,"2,800.00",SHS MANAGER,BUILDING R&M,5902336236,1000080897,
03.01.2019,RESIDENT SERVICES,SYNTONIC CONSTRUCTION LTD,560.98,SUPPORTED HOSTELS,BUILDING R&M,5902336211,1000023918,
03.01.2019,RESIDENT SERVICES,SYNTONIC CONSTRUCTION LTD,"2,105.50",SUPPORTED HOSTELS,BUILDING R&M,5902336209,1000023918,
03.01.2019,RESIDENT SERVICES,CROWN HOUSING LTD,"1,365.00",TA ESTATE VOIDS,EXTERNAL AGENCIES AND BODIES,5902336206,1000075070,
03.01.2019,SOUTHWARK BUILDING SERVICES,DIAMOND SCAFFOLDING (SOUTH EAST),"-2,899.37",BUSINESS SUPPORT,OTHER CONTRACTORS,2102906353,3000001625,
03.01.2019,SOUTHWARK BUILDING SERVICES,DIAMOND SCAFFOLDING (SOUTH EAST),"2,899.37",BUSINESS SUPPORT,OTHER CONTRACTORS,2102906352,3000001625,
04.01.2019,ADULT SOCIAL CARE,POSTURE PEOPLE LTD,310.25,DIR OF ASC,OFFICE EXPENSES,5902336350,1000078441,
04.01.2019,ADULT SOCIAL CARE,LONDON CARE LTD,366.44,MEM LTS 18-64,HOMECARE - C&V,2102906169,1000003398,
04.01.2019,ADULT SOCIAL CARE,LONDON CARE LTD,682.79,MEM LTS 18-64,HOMECARE - C&V,2102906009,1000003398,
04.01.2019,ADULT SOCIAL CARE,LONDON CARE LTD,799.20,MEM LTS 18-64,HOMECARE - C&V,2102906187,1000003398,
04.01.2019,ADULT SOCIAL CARE,LONDON CARE LTD,266.54,MEM LTS 65+,HOMECARE - C&V,2102906206,1000003398,
04.01.2019,ADULT SOCIAL CARE,LONDON CARE LTD,320.66,MEM LTS 65+,HOMECARE - C&V,2102906038,1000003398,
04.01.2019,ADULT SOCIAL CARE,LONDON CARE LTD,717.34,MEM LTS 65+,HOMECARE - C&V,2102906067,1000003398,
04.01.2019,ADULT SOCIAL CARE,LONDON CARE LTD,957.91,MEM LTS 65+,HOMECARE - C&V,2102906119,1000003398,
04.01.2019,ADULT SOCIAL CARE,LONDON CARE LTD,966.04,MEM LTS 65+,HOMECARE - C&V,2102906159,1000003398,
04.01.2019,ADULT SOCIAL CARE,LONDON CARE LTD,"2,148.78",MEM LTS 65+,HOMECARE - C&V,2102906090,1000003398,
04.01.2019,ADULT SOCIAL CARE,POSTURITE (UK) LTD,687.12,MH CARE&SUPPORT TEAM,FURNITURE PURCHASE & REPAIR,5902336414,11015468,
04.01.2019,ADULT SOCIAL CARE,LONDON CARE LTD,944.89,MH LTS 18-64,HOMECARE - C&V,2102906191,1000003398,
04.01.2019,ADULT SOCIAL CARE,LONDON CARE LTD,483.04,MH LTS 65+,HOMECARE - C&V,2102906121,1000003398,
04.01.2019,ADULT SOCIAL CARE,LONDON CARE LTD,666.00,MH LTS 65+,HOMECARE - C&V,2102906013,1000003398,
04.01.2019,ADULT SOCIAL CARE,LONDON CARE LTD,303.91,PHY LTS 18-64,HOMECARE - C&V,2102906161,1000003398,
04.01.2019,ADULT SOCIAL CARE,LONDON CARE LTD,308.18,PHY LTS 18-64,HOMECARE - C&V,2102906166,1000003398,
04.01.2019,ADULT SOCIAL CARE,LONDON CARE LTD,349.68,PHY LTS 18-64,HOMECARE - C&V,2102906055,1000003398,
04.01.2019,ADULT SOCIAL CARE,LONDON CARE LTD,349.72,PHY LTS 18-64,HOMECARE - C&V,2102906105,1000003398,
04.01.2019,ADULT SOCIAL CARE,LONDON CARE LTD,349.72,PHY LTS 18-64,HOMECARE - C&V,2102906171,1000003398,
04.01.2019,ADULT SOCIAL CARE,LONDON CARE LTD,399.64,PHY LTS 18-64,HOMECARE - C&V,2102906089,1000003398,
04.01.2019,ADULT SOCIAL CARE,LONDON CARE LTD,449.72,PHY LTS 18-64,HOMECARE - C&V,2102906200,1000003398,
04.01.2019,ADULT SOCIAL CARE,LONDON CARE LTD,482.92,PHY LTS 18-64,HOMECARE - C&V,2102906088,1000003398,
04.01.2019,ADULT SOCIAL CARE,LONDON CARE LTD,482.96,PHY LTS 18-64,HOMECARE - C&V,2102906154,1000003398,
04.01.2019,ADULT SOCIAL CARE,LONDON CARE LTD,483.03,PHY LTS 18-64,HOMECARE - C&V,2102906144,1000003398,
04.01.2019,ADULT SOCIAL CARE,LONDON CARE LTD,499.50,PHY LTS 18-64,HOMECARE - C&V,2102906137,1000003398,
04.01.2019,ADULT SOCIAL CARE,LONDON CARE LTD,533.08,PHY LTS 18-64,HOMECARE - C&V,2102906143,1000003398,
04.01.2019,ADULT SOCIAL CARE,LONDON CARE LTD,549.65,PHY LTS 18-64,HOMECARE - C&V,2102906080,1000003398,
04.01.2019,ADULT SOCIAL CARE,LONDON CARE LTD,562.14,PHY LTS 18-64,HOMECARE - C&V,2102906032,1000003398,
04.01.2019,ADULT SOCIAL CARE,LONDON CARE LTD,566.10,PHY LTS 18-64,HOMECARE - C&V,2102906027,1000003398,
04.01.2019,ADULT SOCIAL CARE,LONDON CARE LTD,566.40,PHY LTS 18-64,HOMECARE - C&V,2102906011,1000003398,
04.01.2019,ADULT SOCIAL CARE,LONDON CARE LTD,594.13,PHY LTS 18-64,HOMECARE - C&V,2102906046,1000003398,
04.01.2019,ADULT SOCIAL CARE,LONDON CARE LTD,616.24,PHY LTS 18-64,HOMECARE - C&V,2102906018,1000003398,
04.01.2019,ADULT SOCIAL CARE,LONDON CARE LTD,682.88,PHY LTS 18-64,HOMECARE - C&V,2102906051,1000003398,
04.01.2019,ADULT SOCIAL CARE,LONDON CARE LTD,682.88,PHY LTS 18-64,HOMECARE - C&V,2102906145,1000003398,
04.01.2019,ADULT SOCIAL CARE,LONDON CARE LTD,699.44,PHY LTS 18-64,HOMECARE - C&V,2102906008,1000003398,
04.01.2019,ADULT SOCIAL CARE,LONDON CARE LTD,774.29,PHY LTS 18-64,HOMECARE - C&V,2102906036,1000003398,
04.01.2019,ADULT SOCIAL CARE,LONDON CARE LTD,799.27,PHY LTS 18-64,HOMECARE - C&V,2102906155,1000003398,
04.01.2019,ADULT SOCIAL CARE,LONDON CARE LTD,816.00,PHY LTS 18-64,HOMECARE - C&V,2102906125,1000003398,
04.01.2019,ADULT SOCIAL CARE,LONDON CARE LTD,816.20,PHY LTS 18-64,HOMECARE - C&V,2102906023,1000003398,
04.01.2019,ADULT SOCIAL CARE,LONDON CARE LTD,832.64,PHY LTS 18-64,HOMECARE - C&V,2102906150,1000003398,
04.01.2019,ADULT SOCIAL CARE,LONDON CARE LTD,899.56,PHY LTS 18-64,HOMECARE - C&V,2102906175,1000003398,
04.01.2019,ADULT SOCIAL CARE,LONDON CARE LTD,907.79,PHY LTS 18-64,HOMECARE - C&V,2102906058,1000003398,
04.01.2019,ADULT SOCIAL CARE,LONDON CARE LTD,932.40,PHY LTS 18-64,HOMECARE - C&V,2102906029,1000003398,
04.01.2019,ADULT SOCIAL CARE,LONDON CARE LTD,932.64,PHY LTS 18-64,HOMECARE - C&V,2102906102,1000003398,
04.01.2019,ADULT SOCIAL CARE,LONDON CARE LTD,995.02,PHY LTS 18-64,HOMECARE - C&V,2102906128,1000003398,
04.01.2019,ADULT SOCIAL CARE,LONDON CARE LTD,"1,407.06",PHY LTS 18-64,HOMECARE - C&V,2102906212,1000003398,
04.01.2019,ADULT SOCIAL CARE,LONDON CARE LTD,"1,532.20",PHY LTS 18-64,HOMECARE - C&V,2102906193,1000003398,
04.01.2019,ADULT SOCIAL CARE,LONDON CARE LTD,337.23,PHY LTS 18-64,HOMECARE - SPOT,2102906139,1000003398,
04.01.2019,ADULT SOCIAL CARE,LONDON CARE LTD,649.56,PHY LTS 18-64,HOMECARE - SPOT,2102906180,1000003398,
04.01.2019,ADULT SOCIAL CARE,LONDON CARE LTD,266.42,PHY LTS 65+,HOMECARE - C&V,2102906064,1000003398,
04.01.2019,ADULT SOCIAL CARE,LONDON CARE LTD,283.05,PHY LTS 65+,HOMECARE - C&V,2102906024,1000003398,
04.01.2019,ADULT SOCIAL CARE,LONDON CARE LTD,299.76,PHY LTS 65+,HOMECARE - C&V,2102906071,1000003398,
04.01.2019,ADULT SOCIAL CARE,LONDON CARE LTD,308.21,PHY LTS 65+,HOMECARE - C&V,2102906190,1000003398,
04.01.2019,ADULT SOCIAL CARE,LONDON CARE LTD,333.00,PHY LTS 65+,HOMECARE - C&V,2102906014,1000003398,
04.01.2019,ADULT SOCIAL CARE,LONDON CARE LTD,349.72,PHY LTS 65+,HOMECARE - C&V,2102906094,1000003398,
04.01.2019,ADULT SOCIAL CARE,LONDON CARE LTD,349.72,PHY LTS 65+,HOMECARE - C&V,2102906104,1000003398,
04.01.2019,ADULT SOCIAL CARE,LONDON CARE LTD,349.72,PHY LTS 65+,HOMECARE - C&V,2102906152,1000003398,
04.01.2019,ADULT SOCIAL CARE,LONDON CARE LTD,349.72,PHY LTS 65+,HOMECARE - C&V,2102906164,1000003398,
04.01.2019,ADULT SOCIAL CARE,LONDON CARE LTD,349.72,PHY LTS 65+,HOMECARE - C&V,2102906177,1000003398,
04.01.2019,ADULT SOCIAL CARE,LONDON CARE LTD,353.87,PHY LTS 65+,HOMECARE - C&V,2102906181,1000003398,
04.01.2019,ADULT SOCIAL CARE,LONDON CARE LTD,366.44,PHY LTS 65+,HOMECARE - C&V,2102906127,1000003398,
04.01.2019,ADULT SOCIAL CARE,LONDON CARE LTD,382.95,PHY LTS 65+,HOMECARE - C&V,2102906198,1000003398,
04.01.2019,ADULT SOCIAL CARE,LONDON CARE LTD,383.12,PHY LTS 65+,HOMECARE - C&V,2102906042,1000003398,
04.01.2019,ADULT SOCIAL CARE,LONDON CARE LTD,399.84,PHY LTS 65+,HOMECARE - C&V,2102906098,1000003398,
04.01.2019,ADULT SOCIAL CARE,LONDON CARE LTD,416.50,PHY LTS 65+,HOMECARE - C&V,2102906204,1000003398,
04.01.2019,ADULT SOCIAL CARE,LONDON CARE LTD,432.96,PHY LTS 65+,HOMECARE - C&V,2102906165,1000003398,
04.01.2019,ADULT SOCIAL CARE,LONDON CARE LTD,449.64,PHY LTS 65+,HOMECARE - C&V,2102906016,1000003398,
04.01.2019,ADULT SOCIAL CARE,LONDON CARE LTD,458.15,PHY LTS 65+,HOMECARE - C&V,2102906117,1000003398,
04.01.2019,ADULT SOCIAL CARE,LONDON CARE LTD,466.48,PHY LTS 65+,HOMECARE - C&V,2102906184,1000003398,
04.01.2019,ADULT SOCIAL CARE,LONDON CARE LTD,466.48,PHY LTS 65+,HOMECARE - C&V,2102906195,1000003398,
04.01.2019,ADULT SOCIAL CARE,LONDON CARE LTD,474.78,PHY LTS 65+,HOMECARE - C&V,2102906174,1000003398,
04.01.2019,ADULT SOCIAL CARE,LONDON CARE LTD,478.86,PHY LTS 65+,HOMECARE - C&V,2102906078,1000003398,
04.01.2019,ADULT SOCIAL CARE,LONDON CARE LTD,482.92,PHY LTS 65+,HOMECARE - C&V,2102906025,1000003398,
04.01.2019,ADULT SOCIAL CARE,LONDON CARE LTD,482.92,PHY LTS 65+,HOMECARE - C&V,2102906178,1000003398,
04.01.2019,ADULT SOCIAL CARE,LONDON CARE LTD,482.92,PHY LTS 65+,HOMECARE - C&V,2102906213,1000003398,
04.01.2019,ADULT SOCIAL CARE,LONDON CARE LTD,499.50,PHY LTS 65+,HOMECARE - C&V,2102906000,1000003398,
04.01.2019,ADULT SOCIAL CARE,LONDON CARE LTD,524.75,PHY LTS 65+,HOMECARE - C&V,2102906092,1000003398,
04.01.2019,ADULT SOCIAL CARE,LONDON CARE LTD,532.80,PHY LTS 65+,HOMECARE - C&V,2102906136,1000003398,
04.01.2019,ADULT SOCIAL CARE,LONDON CARE LTD,532.80,PHY LTS 65+,HOMECARE - C&V,2102906194,1000003398,
04.01.2019,ADULT SOCIAL CARE,LONDON CARE LTD,532.80,PHY LTS 65+,HOMECARE - C&V,2102906196,1000003398,
04.01.2019,ADULT SOCIAL CARE,LONDON CARE LTD,537.07,PHY LTS 65+,HOMECARE - C&V,2102906002,1000003398,
04.01.2019,ADULT SOCIAL CARE,LONDON CARE LTD,566.28,PHY LTS 65+,HOMECARE - C&V,2102906021,1000003398,
04.01.2019,ADULT SOCIAL CARE,LONDON CARE LTD,566.40,PHY LTS 65+,HOMECARE - C&V,2102906099,1000003398,
04.01.2019,ADULT SOCIAL CARE,LONDON CARE LTD,570.47,PHY LTS 65+,HOMECARE - C&V,2102906047,1000003398,
04.01.2019,ADULT SOCIAL CARE,LONDON CARE LTD,574.63,PHY LTS 65+,HOMECARE - C&V,2102906001,1000003398,
04.01.2019,ADULT SOCIAL CARE,LONDON CARE LTD,582.96,PHY LTS 65+,HOMECARE - C&V,2102905995,1000003398,
04.01.2019,ADULT SOCIAL CARE,LONDON CARE LTD,582.96,PHY LTS 65+,HOMECARE - C&V,2102906054,1000003398,
04.01.2019,ADULT SOCIAL CARE,LONDON CARE LTD,582.96,PHY LTS 65+,HOMECARE - C&V,2102906070,1000003398,
04.01.2019,ADULT SOCIAL CARE,LONDON CARE LTD,582.96,PHY LTS 65+,HOMECARE - C&V,2102906130,1000003398,
04.01.2019,ADULT SOCIAL CARE,LONDON CARE LTD,582.96,PHY LTS 65+,HOMECARE - C&V,2102906149,1000003398,
04.01.2019,ADULT SOCIAL CARE,LONDON CARE LTD,599.40,PHY LTS 65+,HOMECARE - C&V,2102906033,1000003398,
04.01.2019,ADULT SOCIAL CARE,LONDON CARE LTD,599.72,PHY LTS 65+,HOMECARE - C&V,2102906040,1000003398,
04.01.2019,ADULT SOCIAL CARE,LONDON CARE LTD,632.92,PHY LTS 65+,HOMECARE - C&V,2102906100,1000003398,
04.01.2019,ADULT SOCIAL CARE,LONDON CARE LTD,632.96,PHY LTS 65+,HOMECARE - C&V,2102906183,1000003398,
04.01.2019,ADULT SOCIAL CARE,LONDON CARE LTD,637.07,PHY LTS 65+,HOMECARE - C&V,2102906057,1000003398,
04.01.2019,ADULT SOCIAL CARE,LONDON CARE LTD,649.56,PHY LTS 65+,HOMECARE - C&V,2102906132,1000003398,
04.01.2019,ADULT SOCIAL CARE,LONDON CARE LTD,682.97,PHY LTS 65+,HOMECARE - C&V,2102906103,1000003398,
04.01.2019,ADULT SOCIAL CARE,LONDON CARE LTD,691.35,PHY LTS 65+,HOMECARE - C&V,2102906028,1000003398,
04.01.2019,ADULT SOCIAL CARE,LONDON CARE LTD,699.44,PHY LTS 65+,HOMECARE - C&V,2102906087,1000003398,
04.01.2019,ADULT SOCIAL CARE,LONDON CARE LTD,699.44,PHY LTS 65+,HOMECARE - C&V,2102906115,1000003398,
04.01.2019,ADULT SOCIAL CARE,LONDON CARE LTD,707.81,PHY LTS 65+,HOMECARE - C&V,2102906122,1000003398,
04.01.2019,ADULT SOCIAL CARE,LONDON CARE LTD,716.16,PHY LTS 65+,HOMECARE - C&V,2102906079,1000003398,
04.01.2019,ADULT SOCIAL CARE,LONDON CARE LTD,741.06,PHY LTS 65+,HOMECARE - C&V,2102906101,1000003398,
04.01.2019,ADULT SOCIAL CARE,LONDON CARE LTD,741.33,PHY LTS 65+,HOMECARE - C&V,2102906072,1000003398,
04.01.2019,ADULT SOCIAL CARE,LONDON CARE LTD,757.86,PHY LTS 65+,HOMECARE - C&V,2102906182,1000003398,
04.01.2019,ADULT SOCIAL CARE,LONDON CARE LTD,757.99,PHY LTS 65+,HOMECARE - C&V,2102906160,1000003398,
04.01.2019,ADULT SOCIAL CARE,LONDON CARE LTD,782.71,PHY LTS 65+,HOMECARE - C&V,2102906153,1000003398,
04.01.2019,ADULT SOCIAL CARE,LONDON CARE LTD,791.29,PHY LTS 65+,HOMECARE - C&V,2102906061,1000003398,
04.01.2019,ADULT SOCIAL CARE,LONDON CARE LTD,795.38,PHY LTS 65+,HOMECARE - C&V,2102906017,1000003398,
04.01.2019,ADULT SOCIAL CARE,LONDON CARE LTD,799.36,PHY LTS 65+,HOMECARE - C&V,2102906010,1000003398,
04.01.2019,ADULT SOCIAL CARE,LONDON CARE LTD,807.87,PHY LTS 65+,HOMECARE - C&V,2102906048,1000003398,
04.01.2019,ADULT SOCIAL CARE,LONDON CARE LTD,815.92,PHY LTS 65+,HOMECARE - C&V,2102906172,1000003398,
04.01.2019,ADULT SOCIAL CARE,LONDON CARE LTD,824.59,PHY LTS 65+,HOMECARE - C&V,2102906026,1000003398,
04.01.2019,ADULT SOCIAL CARE,LONDON CARE LTD,832.64,PHY LTS 65+,HOMECARE - C&V,2102906044,1000003398,
04.01.2019,ADULT SOCIAL CARE,LONDON CARE LTD,845.25,PHY LTS 65+,HOMECARE - C&V,2102906005,1000003398,
04.01.2019,ADULT SOCIAL CARE,LONDON CARE LTD,861.98,PHY LTS 65+,HOMECARE - C&V,2102905998,1000003398,
04.01.2019,ADULT SOCIAL CARE,LONDON CARE LTD,866.13,PHY LTS 65+,HOMECARE - C&V,2102906030,1000003398,
04.01.2019,ADULT SOCIAL CARE,LONDON CARE LTD,882.71,PHY LTS 65+,HOMECARE - C&V,2102906049,1000003398,
04.01.2019,ADULT SOCIAL CARE,LONDON CARE LTD,882.80,PHY LTS 65+,HOMECARE - C&V,2102906197,1000003398,
04.01.2019,ADULT SOCIAL CARE,LONDON CARE LTD,916.12,PHY LTS 65+,HOMECARE - C&V,2102906113,1000003398,
04.01.2019,ADULT SOCIAL CARE,LONDON CARE LTD,920.28,PHY LTS 65+,HOMECARE - C&V,2102906135,1000003398,
04.01.2019,ADULT SOCIAL CARE,LONDON CARE LTD,924.35,PHY LTS 65+,HOMECARE - C&V,2102906086,1000003398,
04.01.2019,ADULT SOCIAL CARE,LONDON CARE LTD,924.35,PHY LTS 65+,HOMECARE - C&V,2102906118,1000003398,
04.01.2019,ADULT SOCIAL CARE,LONDON CARE LTD,932.40,PHY LTS 65+,HOMECARE - C&V,2102906073,1000003398,
04.01.2019,ADULT SOCIAL CARE,LONDON CARE LTD,932.68,PHY LTS 65+,HOMECARE - C&V,2102906012,1000003398,
04.01.2019,ADULT SOCIAL CARE,LONDON CARE LTD,932.96,PHY LTS 65+,HOMECARE - C&V,2102906123,1000003398,
04.01.2019,ADULT SOCIAL CARE,LONDON CARE LTD,965.96,PHY LTS 65+,HOMECARE - C&V,2102906074,1000003398,
04.01.2019,ADULT SOCIAL CARE,LONDON CARE LTD,974.30,PHY LTS 65+,HOMECARE - C&V,2102906041,1000003398,
04.01.2019,ADULT SOCIAL CARE,LONDON CARE LTD,982.44,PHY LTS 65+,HOMECARE - C&V,2102906043,1000003398,
04.01.2019,ADULT SOCIAL CARE,LONDON CARE LTD,"1,015.97",PHY LTS 65+,HOMECARE - C&V,2102906126,1000003398,
04.01.2019,ADULT SOCIAL CARE,LONDON CARE LTD,"1,032.60",PHY LTS 65+,HOMECARE - C&V,2102906138,1000003398,
04.01.2019,ADULT SOCIAL CARE,LONDON CARE LTD,"1,048.10",PHY LTS 65+,HOMECARE - C&V,2102906207,1000003398,
04.01.2019,ADULT SOCIAL CARE,LONDON CARE LTD,"1,049.44",PHY LTS 65+,HOMECARE - C&V,2102906091,1000003398,
04.01.2019,ADULT SOCIAL CARE,LONDON CARE LTD,"1,057.55",PHY LTS 65+,HOMECARE - C&V,2102906112,1000003398,
04.01.2019,ADULT SOCIAL CARE,LONDON CARE LTD,"1,065.73",PHY LTS 65+,HOMECARE - C&V,2102906108,1000003398,
04.01.2019,ADULT SOCIAL CARE,LONDON CARE LTD,"1,099.36",PHY LTS 65+,HOMECARE - C&V,2102906056,1000003398,
04.01.2019,ADULT SOCIAL CARE,LONDON CARE LTD,"1,116.04",PHY LTS 65+,HOMECARE - C&V,2102906077,1000003398,
04.01.2019,ADULT SOCIAL CARE,LONDON CARE LTD,"1,132.61",PHY LTS 65+,HOMECARE - C&V,2102906214,1000003398,
04.01.2019,ADULT SOCIAL CARE,LONDON CARE LTD,"1,165.92",PHY LTS 65+,HOMECARE - C&V,2102906083,1000003398,
04.01.2019,ADULT SOCIAL CARE,LONDON CARE LTD,"1,190.80",PHY LTS 65+,HOMECARE - C&V,2102906109,1000003398,
04.01.2019,ADULT SOCIAL CARE,LONDON CARE LTD,"1,194.91",PHY LTS 65+,HOMECARE - C&V,2102906003,1000003398,
04.01.2019,ADULT SOCIAL CARE,LONDON CARE LTD,"1,245.03",PHY LTS 65+,HOMECARE - C&V,2102906019,1000003398,
04.01.2019,ADULT SOCIAL CARE,LONDON CARE LTD,"1,248.92",PHY LTS 65+,HOMECARE - C&V,2102906059,1000003398,
04.01.2019,ADULT SOCIAL CARE,LONDON CARE LTD,"1,257.51",PHY LTS 65+,HOMECARE - C&V,2102906208,1000003398,
04.01.2019,ADULT SOCIAL CARE,LONDON CARE LTD,"1,315.72",PHY LTS 65+,HOMECARE - C&V,2102906210,1000003398,
04.01.2019,ADULT SOCIAL CARE,LONDON CARE LTD,"1,444.99",PHY LTS 65+,HOMECARE - C&V,2102906186,1000003398,
04.01.2019,ADULT SOCIAL CARE,LONDON CARE LTD,"1,594.93",PHY LTS 65+,HOMECARE - C&V,2102906173,1000003398,
04.01.2019,ADULT SOCIAL CARE,LONDON CARE LTD,"1,765.18",PHY LTS 65+,HOMECARE - C&V,2102906140,1000003398,
04.01.2019,ADULT SOCIAL CARE,LONDON CARE LTD,"1,815.13",PHY LTS 65+,HOMECARE - C&V,2102906205,1000003398,
04.01.2019,ADULT SOCIAL CARE,LONDON CARE LTD,"1,852.87",PHY LTS 65+,HOMECARE - C&V,2102906095,1000003398,
04.01.2019,ADULT SOCIAL CARE,LONDON CARE LTD,"1,873.67",PHY LTS 65+,HOMECARE - C&V,2102906085,1000003398,
04.01.2019,ADULT SOCIAL CARE,LONDON CARE LTD,"1,973.94",PHY LTS 65+,HOMECARE - C&V,2102906189,1000003398,
04.01.2019,ADULT SOCIAL CARE,LONDON CARE LTD,"2,115.52",PHY LTS 65+,HOMECARE - C&V,2102906120,1000003398,
04.01.2019,ADULT SOCIAL CARE,LONDON CARE LTD,"2,244.40",PHY LTS 65+,HOMECARE - C&V,2102905996,1000003398,
04.01.2019,ADULT SOCIAL CARE,LONDON CARE LTD,"2,297.98",PHY LTS 65+,HOMECARE - C&V,2102906185,1000003398,
04.01.2019,ADULT SOCIAL CARE,LONDON CARE LTD,"2,385.96",PHY LTS 65+,HOMECARE - C&V,2102906053,1000003398,
04.01.2019,ADULT SOCIAL CARE,LONDON CARE LTD,"2,406.78",PHY LTS 65+,HOMECARE - C&V,2102906111,1000003398,
04.01.2019,ADULT SOCIAL CARE,LONDON CARE LTD,"2,423.34",PHY LTS 65+,HOMECARE - C&V,2102906158,1000003398,
04.01.2019,ADULT SOCIAL CARE,LONDON CARE LTD,"2,444.07",PHY LTS 65+,HOMECARE - C&V,2102906052,1000003398,
04.01.2019,ADULT SOCIAL CARE,LONDON CARE LTD,"2,502.35",PHY LTS 65+,HOMECARE - C&V,2102906050,1000003398,
04.01.2019,ADULT SOCIAL CARE,LONDON CARE LTD,"2,635.56",PHY LTS 65+,HOMECARE - C&V,2102906176,1000003398,
04.01.2019,ADULT SOCIAL CARE,LONDON CARE LTD,"2,648.06",PHY LTS 65+,HOMECARE - C&V,2102906202,1000003398,
04.01.2019,ADULT SOCIAL CARE,LONDON CARE LTD,"2,739.33",PHY LTS 65+,HOMECARE - C&V,2102906203,1000003398,
04.01.2019,ADULT SOCIAL CARE,LONDON CARE LTD,"2,814.48",PHY LTS 65+,HOMECARE - C&V,2102906004,1000003398,
04.01.2019,ADULT SOCIAL CARE,LONDON CARE LTD,"3,305.55",PHY LTS 65+,HOMECARE - C&V,2102906116,1000003398,
04.01.2019,ADULT SOCIAL CARE,LONDON CARE LTD,"3,463.76",PHY LTS 65+,HOMECARE - C&V,2102906157,1000003398,
04.01.2019,ADULT SOCIAL CARE,LONDON CARE LTD,"3,472.22",PHY LTS 65+,HOMECARE - C&V,2102906134,1000003398,
04.01.2019,ADULT SOCIAL CARE,LONDON CARE LTD,258.19,PHY LTS 65+,HOMECARE - SPOT,2102906170,1000003398,
04.01.2019,ADULT SOCIAL CARE,LONDON CARE LTD,407.99,PHY LTS 65+,HOMECARE - SPOT,2102906209,1000003398,
04.01.2019,ADULT SOCIAL CARE,LONDON CARE LTD,999.28,PHY LTS 65+,HOMECARE - SPOT,2102906034,1000003398,
04.01.2019,ADULT SOCIAL CARE,THAMES HOMECARE SERVICE LTD,"20,160.00",REABLEMENT CONTRACT,HOMECARE - C&V,5902336408,1000079295,
04.01.2019,ADULT SOCIAL CARE,THAMES HOMECARE SERVICE LTD,"20,160.00",REABLEMENT CONTRACT,HOMECARE - C&V,5902336409,1000079295,
04.01.2019,ADULT SOCIAL CARE,THAMES HOMECARE SERVICE LTD,"20,160.00",REABLEMENT CONTRACT,HOMECARE - C&V,5902336411,1000079295,
04.01.2019,ADULT SOCIAL CARE,LONDON CARE LTD,324.74,SOCIAL ISOLATION,HOMECARE - C&V,2102905997,1000003398,
04.01.2019,ADULT SOCIAL CARE,LONDON CARE LTD,432.90,SOCIAL ISOLATION,HOMECARE - C&V,2102906093,1000003398,
04.01.2019,ADULT SOCIAL CARE,LONDON CARE LTD,920.33,SOCIAL ISOLATION,HOMECARE - C&V,2102906124,1000003398,
04.01.2019,ADULT SOCIAL CARE,LONDON CARE LTD,"1,246.39",SOCIAL ISOLATION,HOMECARE - C&V,2102906062,1000003398,
04.01.2019,ADULT SOCIAL CARE,LONDON CARE LTD,"2,273.00",SOCIAL ISOLATION,HOMECARE - SPOT,2102906065,1000003398,
04.01.2019,ADULT SOCIAL CARE,CONTACT PROFESSIONALS,266.00,SPECIALIST CARE,SECTION 17 PAYMENTS TO AGENCIES/CARERS,2102906249,1000057263,
04.01.2019,ADULT SOCIAL CARE,CONTACT PROFESSIONALS,266.00,SPECIALIST CARE,SECTION 17 PAYMENTS TO AGENCIES/CARERS,2102906271,1000057263,
04.01.2019,ADULT SOCIAL CARE,CONTACT PROFESSIONALS,266.00,SPECIALIST CARE,SECTION 17 PAYMENTS TO AGENCIES/CARERS,2102906313,1000057263,
04.01.2019,ADULT SOCIAL CARE,CONTACT PROFESSIONALS,304.00,SPECIALIST CARE,SECTION 17 PAYMENTS TO AGENCIES/CARERS,2102906233,1000057263,
04.01.2019,ADULT SOCIAL CARE,CONTACT PROFESSIONALS,304.00,SPECIALIST CARE,SECTION 17 PAYMENTS TO AGENCIES/CARERS,2102906245,1000057263,
04.01.2019,ADULT SOCIAL CARE,CONTACT PROFESSIONALS,304.00,SPECIALIST CARE,SECTION 17 PAYMENTS TO AGENCIES/CARERS,2102906251,1000057263,
04.01.2019,ADULT SOCIAL CARE,CONTACT PROFESSIONALS,304.00,SPECIALIST CARE,SECTION 17 PAYMENTS TO AGENCIES/CARERS,2102906274,1000057263,
04.01.2019,ADULT SOCIAL CARE,CONTACT PROFESSIONALS,304.00,SPECIALIST CARE,SECTION 17 PAYMENTS TO AGENCIES/CARERS,2102906286,1000057263,
04.01.2019,ADULT SOCIAL CARE,CONTACT PROFESSIONALS,304.00,SPECIALIST CARE,SECTION 17 PAYMENTS TO AGENCIES/CARERS,2102906301,1000057263,
04.01.2019,ADULT SOCIAL CARE,CONTACT PROFESSIONALS,323.00,SPECIALIST CARE,SECTION 17 PAYMENTS TO AGENCIES/CARERS,2102906256,1000057263,
04.01.2019,ADULT SOCIAL CARE,CONTACT PROFESSIONALS,380.00,SPECIALIST CARE,SECTION 17 PAYMENTS TO AGENCIES/CARERS,2102906232,1000057263,
04.01.2019,ADULT SOCIAL CARE,CONTACT PROFESSIONALS,380.00,SPECIALIST CARE,SECTION 17 PAYMENTS TO AGENCIES/CARERS,2102906295,1000057263,
04.01.2019,ADULT SOCIAL CARE,CONTACT PROFESSIONALS,456.00,SPECIALIST CARE,SECTION 17 PAYMENTS TO AGENCIES/CARERS,2102906307,1000057263,
04.01.2019,ADULT SOCIAL CARE,CONTACT PROFESSIONALS,456.00,SPECIALIST CARE,SECTION 17 PAYMENTS TO AGENCIES/CARERS,2102906311,1000057263,
04.01.2019,ADULT SOCIAL CARE,CONTACT PROFESSIONALS,608.00,SPECIALIST CARE,SECTION 17 PAYMENTS TO AGENCIES/CARERS,2102906285,1000057263,
04.01.2019,ADULT SOCIAL CARE,INTERSERVE HEALTHCARE,952.92,SPECIALIST CARE,SECTION 17 PAYMENTS TO AGENCIES/CARERS,2102906302,1000049612,
04.01.2019,ADULT SOCIAL CARE,CONTACT PROFESSIONALS,570.00,TRANSITIONS 14-18YRS,SECTION 17 PAYMENTS TO AGENCIES/CARERS,2102906241,1000057263,
04.01.2019,ADULT SOCIAL CARE,CONTACT PROFESSIONALS,"1,007.00",TRANSITIONS 14-18YRS,SECTION 17 PAYMENTS TO AGENCIES/CARERS,2102906314,1000057263,
04.01.2019,ADULT SOCIAL CARE,CONTACT PROFESSIONALS,"1,102.00",TRANSITIONS 14-18YRS,SECTION 17 PAYMENTS TO AGENCIES/CARERS,2102906294,1000057263,
04.01.2019,ADULT SOCIAL CARE,CONTACT PROFESSIONALS,"1,489.00",TRANSITIONS 14-18YRS,SECTION 17 PAYMENTS TO AGENCIES/CARERS,2102906238,1000057263,
04.01.2019,ADULT SOCIAL CARE,CONTACT PROFESSIONALS,"1,489.00",TRANSITIONS 14-18YRS,SECTION 17 PAYMENTS TO AGENCIES/CARERS,2102906290,1000057263,
04.01.2019,ASSET MANAGEMENT,BAILY  GARNER LLP,"12,427.11",DEVELOPMENT DELIVERY,PROFESSIONAL FEES,5902336310,1000663,
04.01.2019,ASSET MANAGEMENT,UNIVERSA LAW LTD,"1,767.51",DISREPAIR,BUILDING R&M,5902336277,1000081466,
04.01.2019,ASSET MANAGEMENT,ANTHONY GOLD SOLICITORS,"4,000.00",DISREPAIR,LEGAL FEES & COURT COSTS,2102906374,1000050198,
04.01.2019,ASSET MANAGEMENT,MASHER BROTHERS LTD,"7,555.46",R&M CONTRACTS (SOUTH),BUILDING R&M,2102905981,3000001100,
04.01.2019,ASSET MANAGEMENT,BRIDGEWATER ROOFING CONTRACTORS LTD,"70,841.41",VISIBLE DIFFERENCE (NORTH),BUILDING R&M,2102906367,3000001482,
04.01.2019,ASSET MANAGEMENT,A & E ELKINS LTD,"74,240.79",VISIBLE DIFFERENCE (SOUTH),BUILDING R&M,2102906365,4012501,
04.01.2019,CENTRAL FUNCTIONS,QUEST SOFTWARE INTERNATIONAL LTD,784.00,BUSINESS APPLICATIONS,SOFTWARE,5902336329,1000080218,
04.01.2019,CENTRAL FUNCTIONS,THE SMITH INSTITUTE,"14,300.00",OPERATIONAL TEAM,CONSULTANTS SERVICES,5902336344,1000056740,
04.01.2019,CHIEF EXECUTIVE,CONWAY AECOM LTD,"1,815.00",CAPITAL PS (REGEN),CONSTR'N SUB CONTRACT - NON CERTIFICATED,5902336342,1000071205,
04.01.2019,CHIEF EXECUTIVE,CONWAY AECOM LTD,"1,985.19",CAPITAL PS (REGEN),CONSTR'N SUB CONTRACT - NON CERTIFICATED,5902336343,1000071205,
04.01.2019,CHIEF EXECUTIVE,PROJECT CENTRE LTD,"6,313.00",CAPITAL PS (REGEN),CONSTR'N SUB CONTRACT - NON CERTIFICATED,5902336426,1000072621,
04.01.2019,CHIEF EXECUTIVE,STANBURY BUILDING SERVICES LTD,"5,995.00",CAPITAL PS (REGEN),FIT-OUT,2102906370,3000001967,
04.01.2019,CHIEF EXECUTIVE'S OFFICE,TREE SHEPHERD LTD,"8,012.50",BUSINESS SUPPORT,PROFESSIONAL FEES,5902336402,1000076895,
04.01.2019,CHILDREN AND ADULT,CBS MAINTENANCE SERVICES LTD,"7,694.23",CAPITAL PS (EDUCATION),CONSTRUCTION FEES,2102906368,3000001518,
04.01.2019,CHILDREN'S SERVICES,CREATIVE THERAPIES LTD,"2,842.50",ADOPTION REFORM GRANT (PART B),PROFESSIONAL FEES,5902335621,1000082094,
04.01.2019,CHILDREN'S SERVICES,COMPASS FOSTERING LONDON LTD,296.45,AGENCY FOSTERING,EXTERNAL AGENCIES AND BODIES,5902336260,1000057908,
04.01.2019,CHILDREN'S SERVICES,SWIIS FOSTER CARE LTD,697.97,AGENCY FOSTERING,EXTERNAL AGENCIES AND BODIES,2102906215,1000069633,
04.01.2019,CHILDREN'S SERVICES,SWIIS FOSTER CARE LTD,697.97,AGENCY FOSTERING,EXTERNAL AGENCIES AND BODIES,2102906216,1000069633,
04.01.2019,CHILDREN'S SERVICES,INTEGRATED SERVICES PROGRAMME,"5,396.10",AGENCY FOSTERING,EXTERNAL AGENCIES AND BODIES,5902336278,1642068,
04.01.2019,CHILDREN'S SERVICES,CARE O LINE,"1,760.00",AIS - PRAC GRP C SET7-9,OTHER PAYMENTS FOR CLIENTS,5902336432,11241743,
04.01.2019,CHILDREN'S SERVICES,CARE O LINE,"2,915.00",AIS - PRAC GRP C SET7-9,OTHER PAYMENTS FOR CLIENTS,5902336431,11241743,
04.01.2019,CHILDREN'S SERVICES,CARE O LINE,"3,366.55",AIS - PRAC GRP C SET7-9,OTHER PAYMENTS FOR CLIENTS,5902336433,11241743,
04.01.2019,CHILDREN'S SERVICES,THE COMPLETE WORKS INDEPENDENT SCHOOL,500.00,ALTERNATIVE PROVISION,EXTERNAL AGENCIES AND BODIES,5902336357,1000033256,
04.01.2019,CHILDREN'S SERVICES,RISE EDUCATION LTD,"1,120.00",ALTERNATIVE PROVISION,EXTERNAL AGENCIES AND BODIES,5902336403,1000077642,
04.01.2019,CHILDREN'S SERVICES,THE COMPLETE WORKS INDEPENDENT SCHOOL,"1,150.00",ALTERNATIVE PROVISION,EXTERNAL AGENCIES AND BODIES,5902336391,1000033256,
04.01.2019,CHILDREN'S SERVICES,THE COMPLETE WORKS INDEPENDENT SCHOOL,"2,100.00",ALTERNATIVE PROVISION,EXTERNAL AGENCIES AND BODIES,5902336392,1000033256,
04.01.2019,CHILDREN'S SERVICES,TREASURE HOUSE (LONDON) CIC,"2,310.00",ALTERNATIVE PROVISION,EXTERNAL AGENCIES AND BODIES,5902336397,1000061163,
04.01.2019,CHILDREN'S SERVICES,THE COMPLETE WORKS INDEPENDENT SCHOOL,"5,600.00",ALTERNATIVE PROVISION,EXTERNAL AGENCIES AND BODIES,5902336275,1000033256,
04.01.2019,CHILDREN'S SERVICES,THE COMPLETE WORKS INDEPENDENT SCHOOL,"7,000.00",ALTERNATIVE PROVISION,EXTERNAL AGENCIES AND BODIES,5902336268,1000033256,
04.01.2019,CHILDREN'S SERVICES,THE COMPLETE WORKS INDEPENDENT SCHOOL,"7,000.00",ALTERNATIVE PROVISION,EXTERNAL AGENCIES AND BODIES,5902336270,1000033256,
04.01.2019,CHILDREN'S SERVICES,THE COMPLETE WORKS INDEPENDENT SCHOOL,"7,000.00",ALTERNATIVE PROVISION,EXTERNAL AGENCIES AND BODIES,5902336273,1000033256,
04.01.2019,CHILDREN'S SERVICES,THE COMPLETE WORKS INDEPENDENT SCHOOL,"7,000.00",ALTERNATIVE PROVISION,EXTERNAL AGENCIES AND BODIES,5902336274,1000033256,
04.01.2019,CHILDREN'S SERVICES,WIZE UP INDEPENDENT SCHOOL,"1,155.00",ALTERNATIVE PROVISION,EXTERNAL AGENCIES AND BODIES,5902336395,1000080560,
04.01.2019,CHILDREN'S SERVICES,WIZE UP INDEPENDENT SCHOOL,"1,155.00",ALTERNATIVE PROVISION,EXTERNAL AGENCIES AND BODIES,5902336396,1000080560,
04.01.2019,CHILDREN'S SERVICES,WILSON SOLICITORS LLP,"1,533.00",CARE GRPS  1 TO 3,OTHER PAYMENTS FOR CLIENTS,5902336282,1000074614,
04.01.2019,CHILDREN'S SERVICES,CONTACT PROFESSIONALS,456.00,CARE GRPS  4 TO 6,OTHER PAYMENTS FOR CLIENTS,5902336295,1000057263,
04.01.2019,CHILDREN'S SERVICES,CONTACT PROFESSIONALS,475.00,CARE GRPS  4 TO 6,OTHER PAYMENTS FOR CLIENTS,5902336294,1000057263,
04.01.2019,CHILDREN'S SERVICES,CONTACT PROFESSIONALS,475.00,CARE GRPS  4 TO 6,OTHER PAYMENTS FOR CLIENTS,5902336296,1000057263,
04.01.2019,CHILDREN'S SERVICES,CONTACT PROFESSIONALS,402.06,CARE PRACTICE GROUP SET C,OTHER PAYMENTS FOR CLIENTS,5902336290,1000057263,
04.01.2019,CHILDREN'S SERVICES,CONTACT PROFESSIONALS,420.87,CARE PRACTICE GROUP SET C,OTHER PAYMENTS FOR CLIENTS,5902336291,1000057263,
04.01.2019,CHILDREN'S SERVICES,POSTURITE (UK) LTD,413.51,CENTRAL COSTS - SEN,OP LEASE/HIRE CHARGES:PLANT/EQUIP/FURNIT,5902336423,11015468,
04.01.2019,CHILDREN'S SERVICES,SITA UK LTD (SUEZ),300.70,CENTRAL SUPPORT,OTHER PAYMENTS FOR CLIENTS,5902336264,1000006452,
04.01.2019,CHILDREN'S SERVICES,UNIVERSITY OF BEDFORDSHIRE,"3,800.00",CLINICAL SERVICE,TRAINING,5902335923,1000065832,
04.01.2019,CHILDREN'S SERVICES,REDRIFF PRIMARY SCHOOL,"71,906.00",FREE HEALTHY SCHOOL,SCHOOLS CAPITATION,2102906373,1000067877,
04.01.2019,CHILDREN'S SERVICES,IVYDALE PRIMARY SCHOOL,"52,000.00",GROWTH FUND-PUPIL NUMBERS,SCHOOLS CAPITATION,2102906372,5001000038,
04.01.2019,CHILDREN'S SERVICES,ARGOS BUSINESS SOLUTIONS LTD,-263.45,LEAVING CARE GRANT,OTHER PAYMENTS FOR CLIENTS,5902336331,1000001734,
04.01.2019,CHILDREN'S SERVICES,ARGOS BUSINESS SOLUTIONS LTD,263.00,LEAVING CARE GRANT,OTHER PAYMENTS FOR CLIENTS,5902336326,1000001734,
04.01.2019,CHILDREN'S SERVICES,ARGOS BUSINESS SOLUTIONS LTD,263.45,LEAVING CARE GRANT,OTHER PAYMENTS FOR CLIENTS,5902336326,1000001734,
04.01.2019,CHILDREN'S SERVICES,COBOURG PRIMARY SCHOOL,"9,032.00",MATERNITY COVER,SCHOOLS CAPITATION,2102906371,5001000021,
04.01.2019,CHILDREN'S SERVICES,NATIONAL OFFENDER MANAGEMENT,"7,320.00",REMAND - YDA STC & SCH,RESIDENTIAL CARE,5902336434,1000075478,
04.01.2019,CHILDREN'S SERVICES,NATIONAL OFFENDER MANAGEMENT,"2,079.00",REMAND - YDA YOI,RESIDENTIAL CARE,5902336436,1000075478,
04.01.2019,CHILDREN'S SERVICES,NATIONAL OFFENDER MANAGEMENT,"2,268.00",REMAND - YDA YOI,RESIDENTIAL CARE,5902336444,1000075478,
04.01.2019,CHILDREN'S SERVICES,NATIONAL OFFENDER MANAGEMENT,"3,969.00",REMAND - YDA YOI,RESIDENTIAL CARE,5902336445,1000075478,
04.01.2019,CHILDREN'S SERVICES,NATIONAL OFFENDER MANAGEMENT,"4,011.00",REMAND - YDA YOI,RESIDENTIAL CARE,5902336442,1000075478,
04.01.2019,CHILDREN'S SERVICES,NATIONAL OFFENDER MANAGEMENT,"4,158.00",REMAND - YDA YOI,RESIDENTIAL CARE,5902336443,1000075478,
04.01.2019,CHILDREN'S SERVICES,THE CHILDRENS TRUST,"22,475.00",RESIDENTIAL,RESIDENTIAL CARE,2102906328,1758469,
04.01.2019,CHILDREN'S SERVICES,ZENITH CARS LTD,300.00,S & FAM SUPP - PRAC GRP B SET 17-19,OTHER PAYMENTS FOR CLIENTS,5902336437,1000070570,
04.01.2019,CHILDREN'S SERVICES,RANGEFIELD SCHOOL,945.00,S & FAM SUPP - PRAC GRP E SET 26-28,OTHER PAYMENTS FOR CLIENTS,5902335987,1000076750,
04.01.2019,CHILDREN'S SERVICES,YOUNG FUTURES,-903.34,S24 CLA,EXTERNAL AGENCIES AND BODIES,2102906338,1000059563,
04.01.2019,CHILDREN'S SERVICES,YOUNG FUTURES,-450.43,S24 CLA,EXTERNAL AGENCIES AND BODIES,2102906342,1000059563,
04.01.2019,CHILDREN'S SERVICES,JORDAN XAVIER LTD,321.43,S24 CLA,EXTERNAL AGENCIES AND BODIES,5902336284,1000081470,
04.01.2019,CHILDREN'S SERVICES,JORDAN XAVIER LTD,321.43,S24 CLA,EXTERNAL AGENCIES AND BODIES,5902336289,1000081470,
04.01.2019,CHILDREN'S SERVICES,PLUS ONE LTD,454.20,S24 CLA,EXTERNAL AGENCIES AND BODIES,2102906329,1000013874,
04.01.2019,CHILDREN'S SERVICES,JORDAN XAVIER LTD,642.86,S24 CLA,EXTERNAL AGENCIES AND BODIES,5902336287,1000081470,
04.01.2019,CHILDREN'S SERVICES,JORDAN XAVIER LTD,"1,928.57",S24 CLA,EXTERNAL AGENCIES AND BODIES,5902336284,1000081470,
04.01.2019,CHILDREN'S SERVICES,JORDAN XAVIER LTD,"1,928.57",S24 CLA,EXTERNAL AGENCIES AND BODIES,5902336287,1000081470,
04.01.2019,CHILDREN'S SERVICES,JORDAN XAVIER LTD,"1,928.57",S24 CLA,EXTERNAL AGENCIES AND BODIES,5902336289,1000081470,
04.01.2019,CHILDREN'S SERVICES,YOUNG FUTURES,"1,984.00",S24 CLA,EXTERNAL AGENCIES AND BODIES,2102906341,1000059563,
04.01.2019,CHILDREN'S SERVICES,CREATING LIFESTYLES LTD,"2,180.00",S24 CLA,EXTERNAL AGENCIES AND BODIES,2102906332,1000075830,
04.01.2019,CHILDREN'S SERVICES,YOUNG FUTURES,"2,790.00",S24 CLA,EXTERNAL AGENCIES AND BODIES,2102906330,1000059563,
04.01.2019,CHILDREN'S SERVICES,FAMILY FOSTERING LTD,"2,914.10",S24 CLA,EXTERNAL AGENCIES AND BODIES,2102906343,1000075179,
04.01.2019,CHILDREN'S SERVICES,JUST ONE RECRUITMENT AND TRAINING LTD,"2,996.00",S24 CLA,EXTERNAL AGENCIES AND BODIES,2102906333,1000081607,
04.01.2019,CHILDREN'S SERVICES,JUST ONE RECRUITMENT AND TRAINING LTD,"2,996.00",S24 CLA,EXTERNAL AGENCIES AND BODIES,2102906340,1000081607,
04.01.2019,CHILDREN'S SERVICES,CREATING LIFESTYLES LTD,"3,180.00",S24 CLA,EXTERNAL AGENCIES AND BODIES,2102906334,1000075830,
04.01.2019,CHILDREN'S SERVICES,CREATING LIFESTYLES LTD,"3,180.00",S24 CLA,EXTERNAL AGENCIES AND BODIES,2102906337,1000075830,
04.01.2019,CHILDREN'S SERVICES,CREATING LIFESTYLES LTD,"3,420.00",S24 CLA,EXTERNAL AGENCIES AND BODIES,2102906335,1000075830,
04.01.2019,CHILDREN'S SERVICES,CREATING LIFESTYLES LTD,"3,420.00",S24 CLA,EXTERNAL AGENCIES AND BODIES,2102906336,1000075830,
04.01.2019,CHILDREN'S SERVICES,CREATING LIFESTYLES LTD,"3,420.00",S24 CLA,EXTERNAL AGENCIES AND BODIES,2102906344,1000075830,
04.01.2019,CHILDREN'S SERVICES,UNIVERSITY OF BRISTOL,"1,350.00",SCHOLARSHIPS AND WRL,EXTERNAL AGENCIES AND BODIES,5902336422,1000047054,
04.01.2019,CHILDREN'S SERVICES,JORDAN XAVIER LTD,750.00,SEMI INDEPENDENT,EXTERNAL AGENCIES AND BODIES,5902336285,1000081470,
04.01.2019,CHILDREN'S SERVICES,JORDAN XAVIER LTD,"1,928.57",SEMI INDEPENDENT,EXTERNAL AGENCIES AND BODIES,5902336285,1000081470,
04.01.2019,CHILDREN'S SERVICES,YOUNG FUTURES,"2,790.00",SEMI INDEPENDENT,EXTERNAL AGENCIES AND BODIES,2102906219,1000059563,
04.01.2019,CHILDREN'S SERVICES,YOUNG FUTURES,"2,790.00",SEMI INDEPENDENT,EXTERNAL AGENCIES AND BODIES,2102906339,1000059563,
04.01.2019,CHILDREN'S SERVICES,YOUNG FUTURES,"3,365.67",SEMI INDEPENDENT,EXTERNAL AGENCIES AND BODIES,2102906221,1000059563,
04.01.2019,CHILDREN'S SERVICES,YOUNG FUTURES,"8,192.68",SEMI INDEPENDENT,EXTERNAL AGENCIES AND BODIES,2102906217,1000059563,
04.01.2019,CHILDREN'S SERVICES,YOUNG FUTURES,"8,192.68",SEMI INDEPENDENT,EXTERNAL AGENCIES AND BODIES,2102906220,1000059563,
04.01.2019,CHILDREN'S SERVICES,YOUNG FUTURES,300.00,SEMI INDEPENDENT,OTHER PAYMENTS FOR CLIENTS,2102906218,1000059563,
04.01.2019,CHILDREN'S SERVICES,INTEGRATED SERVICES PROGRAMME,"2,334.00",STAYING PUT,EXTERNAL AGENCIES AND BODIES,5902336276,1642068,
04.01.2019,CHILDREN'S SERVICES,REDACTED PERSONAL DATA,300.00,UNIVERSITY SUPPORT,CLIENT TRANSPORT,REDACTED,REDACTED,
04.01.2019,CHILDREN'S SERVICES,REDACTED PERSONAL DATA,"2,550.00",UNIVERSITY SUPPORT,OTHER PAYMENTS FOR CLIENTS,REDACTED,REDACTED,
04.01.2019,CHILDREN'S SERVICES,SILVERBULLET BUSINESS TRAINING SOLUTIONS,"1,935.00",YOS SUPPORT,TRAINING,5902335986,1000082109,
04.01.2019,COMMISSIONING & CENTRAL,SYED & QUINN LTD,500.00,"ASC - PROVIDER SRVS, OTS AND BUS SUPPORT",TRAINING,5902336355,1000029554,
04.01.2019,COMMISSIONING & CENTRAL,MAYBO LIMITED,445.00,"CSC - PAS, BUSINESS SUPPORT & OTHER ROLE",TRAINING,5902336297,1000036856,
04.01.2019,COMMISSIONING & CENTRAL,MAYBO LIMITED,445.00,"CSC - PAS, BUSINESS SUPPORT & OTHER ROLE",TRAINING,5902336300,1000036856,
04.01.2019,COMMISSIONING & CENTRAL,MAYBO LIMITED,890.00,"CSC - PAS, BUSINESS SUPPORT & OTHER ROLE",TRAINING,5902336301,1000036856,
04.01.2019,COMMISSIONING & CENTRAL,MAYBO LIMITED,990.00,"CSC - PAS, BUSINESS SUPPORT & OTHER ROLE",TRAINING,5902336286,1000036856,
04.01.2019,COMMISSIONING & CENTRAL,MAYBO LIMITED,990.00,"CSC - PAS, BUSINESS SUPPORT & OTHER ROLE",TRAINING,5902336293,1000036856,
04.01.2019,COMMISSIONING & CENTRAL,REAL GROUP LTD,"1,425.00","CSC - PROF DEV, QUALIFICATIONS AND CONSU",TRAINING,5902335919,1000065285,
04.01.2019,COMMUNITIES,DENHAN INTERNATIONAL LTD,"1,725.00",NO RECOURSE TO PUBLIC FUNDS,ACCOMMODATION CHARGES,5902336393,1000075567,
04.01.2019,COMMUNITIES,LONDON CARE LTD,366.36,NO RECOURSE TO PUBLIC FUNDS,HOMECARE - C&V,2102906045,1000003398,
04.01.2019,COMMUNITIES,LONDON CARE LTD,399.72,NO RECOURSE TO PUBLIC FUNDS,HOMECARE - C&V,2102906096,1000003398,
04.01.2019,COMMUNITIES,LONDON CARE LTD,978.65,NO RECOURSE TO PUBLIC FUNDS,HOMECARE - C&V,2102906162,1000003398,
04.01.2019,COMMUNITIES,LONDON CARE LTD,"1,282.40",NO RECOURSE TO PUBLIC FUNDS,HOMECARE - C&V,2102906133,1000003398,
04.01.2019,COMMUNITIES,COLLINGWOOD COURT (BUPA CARE HOMES),408.00,NO RECOURSE TO PUBLIC FUNDS,OTHER PAYMENTS FOR CLIENTS,5902336389,11042563,
04.01.2019,COMMUNITIES,EQUINOX CARE,"13,920.00",TIER 4 SERVICES,OTHER CONTRACTORS,5902336351,11325422,
04.01.2019,CORPORATE & DEMOCRATIC CORE,YOUNG VIC COMPANY,"50,000.00",CORPORATE & DEPARTMENTAL EXP.,MISCELLANEOUS EXPENSES,5902336265,11050645,
04.01.2019,CUSTOMER EXPERIENCE HGF,WILLOW ESTATE AGENTS (LONDON) LTD,"51,292.00",NIGHTLY TA (NSC),EXTERNAL AGENCIES AND BODIES,5902336398,1000060607,
04.01.2019,CUSTOMER EXPERIENCE HGF,DMS PROPERTIES SERVICES LTD,"54,897.00",NIGHTLY TA (NSC),EXTERNAL AGENCIES AND BODIES,5902336399,1000081522,
04.01.2019,ENVIRONMENT AND LEISURE,CONWAY AECOM LTD,"222,497.30",CAPITAL PS (LEISURE),CONSTRUCTION,2102906357,3000001595,
04.01.2019,ENVIRONMENT AND LEISURE,SEVENOAKS ENVIRONMENTAL CONSULTANCY LTD,"3,900.00",CAPITAL PS (LEISURE),CONSTRUCTION FEES  - EXTERNAL,5902336369,1000075742,
04.01.2019,ENVIRONMENT AND LEISURE,VERTASE F.L.I.LTD,"36,857.16",CAPITAL PS (LEISURE),CONSTRUCTION FEES  - EXTERNAL,2102906369,3000002069,
04.01.2019,ENVIRONMENT AND LEISURE,ROOFF LTD,"131,088.60",CAPITAL PS (LEISURE),CONSTRUCTION FEES  - EXTERNAL,2102906358,3000001090,
04.01.2019,ENVIRONMENT AND LEISURE,VERTASE F.L.I.LTD,"172,717.69",CAPITAL PS (LEISURE),CONSTRUCTION FEES  - EXTERNAL,2102905980,3000002069,
04.01.2019,ENVIRONMENT DIRECTORATE,DAIMLER FLEET MANAGEMENT,639.59,CAR LEASING CTRL A/C,VEHICLE LEASING CHARGES,5902336359,1000079667,
04.01.2019,ENVIRONMENT DIRECTORATE,ARNOLD CLARK VEHICLE MANAGEMENT,651.20,CAR LEASING CTRL A/C,VEHICLE LEASING CHARGES,5902336374,1000079116,
04.01.2019,ENVIRONMENT DIRECTORATE,DAIMLER FLEET MANAGEMENT,660.33,CAR LEASING CTRL A/C,VEHICLE LEASING CHARGES,5902336359,1000079667,
04.01.2019,ENVIRONMENT DIRECTORATE,ARNOLD CLARK VEHICLE MANAGEMENT,669.44,CAR LEASING CTRL A/C,VEHICLE LEASING CHARGES,5902336374,1000079116,
04.01.2019,ENVIRONMENT DIRECTORATE,SCOT GROUP LIMITED,392.08,COMMERCIAL VEH CTRL A/C,HIRED VEHICLES,5902336366,1709512,
04.01.2019,ENVIRONMENT DIRECTORATE,GULLIVERS TRUCK HIRE LTD,683.00,COMMERCIAL VEH CTRL A/C,HIRED VEHICLES,5902336352,1000052656,
04.01.2019,ENVIRONMENT DIRECTORATE,GULLIVERS TRUCK HIRE LTD,915.00,COMMERCIAL VEH CTRL A/C,HIRED VEHICLES,5902336353,1000052656,
04.01.2019,ENVIRONMENT DIRECTORATE,SOUTHWARK NEWSPAPER LTD,384.00,HIGHWAYS DEVELOPMENT,MARKETING & PUBLICITY SERVICES,5902336400,1556957,
04.01.2019,ENVIRONMENT DIRECTORATE,SOUTHWARK NEWSPAPER LTD,396.00,HIGHWAYS DEVELOPMENT,MARKETING & PUBLICITY SERVICES,5902336424,1556957,
04.01.2019,ENVIRONMENT DIRECTORATE,SOUTHWARK NEWSPAPER LTD,540.00,HIGHWAYS DEVELOPMENT,MARKETING & PUBLICITY SERVICES,5902336420,1556957,
04.01.2019,ENVIRONMENT DIRECTORATE,SOUTHWARK NEWSPAPER LTD,564.00,HIGHWAYS DEVELOPMENT,MARKETING & PUBLICITY SERVICES,5902336418,1556957,
04.01.2019,ENVIRONMENT DIRECTORATE,SYMMONS MADGE ASSOCIATES LTD,270.00,TRANSPORT PROJECTS,TRAINING,5902336332,1000067012,
04.01.2019,F & C S EXCLUDING CORPORATE BUDGETS,IRRV,"1,200.00",ADMINISTRATIVE SUPPORT,SUBSCRIPTIONS,5902336416,1153371,
04.01.2019,HOUSING GENERAL FUND,STAR LEISURE,500.00,CAPITAL PS (HOUSING GF),CONSTRUCTION FEES - INTERNAL,5902336272,1000080966,
04.01.2019,HOUSING HRA,MORGAN SINDALL PLC,"167,255.00",CAPITAL PS (HRA),CONSTR'N SUB CONTRACT - NON CERTIFICATED,2102906366,3000001556,
04.01.2019,HOUSING HRA,ENGIE REGENERATION (APOLLO) LTD,"-79,855.33",CAPITAL PS (HRA),CONSTRUCTION MAIN CONTRACT -CERTIFICATED,5902336751,1000013358,
04.01.2019,HOUSING HRA,SALTASH ENTERPRISES LTD,"2,650.00",CAPITAL PS (HRA),CONSTRUCTION MAIN CONTRACT -CERTIFICATED,2102906361,4013605,
04.01.2019,HOUSING HRA,SALTASH ENTERPRISES LTD,"26,712.23",CAPITAL PS (HRA),CONSTRUCTION MAIN CONTRACT -CERTIFICATED,2102906360,4013605,
04.01.2019,HOUSING HRA,SALTASH ENTERPRISES LTD,"29,657.18",CAPITAL PS (HRA),CONSTRUCTION MAIN CONTRACT -CERTIFICATED,2102906363,4013605,
04.01.2019,HOUSING HRA,SALTASH ENTERPRISES LTD,"32,668.95",CAPITAL PS (HRA),CONSTRUCTION MAIN CONTRACT -CERTIFICATED,2102906362,4013605,
04.01.2019,HOUSING HRA,ENGIE REGENERATION (APOLLO) LTD,"79,855.33",CAPITAL PS (HRA),CONSTRUCTION MAIN CONTRACT -CERTIFICATED,5902336481,1000013358,
04.01.2019,HOUSING HRA,MORGAN SINDALL PLC,"143,488.00",CAPITAL PS (HRA),CONSTRUCTION MAIN CONTRACT -CERTIFICATED,2102906364,3000001556,
04.01.2019,HOUSING HRA,PERSONA ASSOCIATES LTD,291.90,CAPITAL PS (REGEN),LAND & BUILDINGS ACQUISITION FEES,5902336317,1000080150,
04.01.2019,HOUSING HRA,PERSONA ASSOCIATES LTD,"1,400.00",CAPITAL PS (REGEN),LAND & BUILDINGS ACQUISITION FEES,5902336319,1000080150,
04.01.2019,HOUSING HRA,PERSONA ASSOCIATES LTD,"1,575.00",CAPITAL PS (REGEN),LAND & BUILDINGS ACQUISITION FEES,5902336316,1000080150,
04.01.2019,HOUSING HRA,CARTER JONAS LLP,"1,900.00",CAPITAL PS (REGEN),LAND & BUILDINGS ACQUISITION FEES,5902336377,1000073124,
04.01.2019,HOUSING HRA,KENT COUNTY COUNCIL - LASER,"28,276.39",RESIDENT SERVICES BUSINESS SUPPORT,ELECTRICITY,6101867104,DIRECT DEBIT PAYMENT,
04.01.2019,HOUSING HRA,KENT COUNTY COUNCIL - LASER,"11,862.59",RESIDENT SERVICES BUSINESS SUPPORT,ELECTRICITY,6101867105,DIRECT DEBIT PAYMENT,
04.01.2019,HOUSING STRATEGY AND OPTIONS,STEPHENSONS SOLICITORS LLP,"5,000.00",HOMELESS & HOUSING OPTIONS MGT,LEGAL FEES & COURT COSTS,2102904576,1000071061,
04.01.2019,LEISURE DIRECTORATE,KENT COUNTY COUNCIL - LASER,678.53,BURGESS AREA TEAM,GAS,5902336341,1000012926,
04.01.2019,LEISURE DIRECTORATE,CURVINGROAD LTD,666.67,BURGESS AREA TEAM,PROFESSIONAL FEES,5902335534,1000081411,
04.01.2019,LEISURE DIRECTORATE,KENT COUNTY COUNCIL - LASER,"1,482.91",BURGESS SPORTS CENTRE,ELECTRICITY,5902336330,1000012926,
04.01.2019,LEISURE DIRECTORATE,F G MARSHALL LTD,340.00,CREMATORIUM,MATERIALS,5902336407,1002639,
04.01.2019,LEISURE DIRECTORATE,HEALTHCARE & TRANSPORT SERVICES,450.00,FAST FORWARD,HIRED VEHICLES,5902336299,1000042743,
04.01.2019,LEISURE DIRECTORATE,PLANET TRAINING LIMITED,575.00,PARKS SERVICES DEVELOPMENT,TRAINING,5902336404,1000064733,
04.01.2019,LEISURE DIRECTORATE,BIBLIOTHECA LTD,761.89,STOCK SERVICES,STATIONERY,5902336435,1000069536,
04.01.2019,MODERNISATION HGF,INSTITUTE OF LICENCE (EVENTS) LTD,697.00,MEMBER DEVELOPMENT,MEMBERS' TRAINING,5902336312,1000054694,
04.01.2019,MODERNISATION HGF,POSTURITE (UK) LTD,333.15,REPAIR AND MAINTENANCE SERVICES,FURNITURE PURCHASE & REPAIR,5902336387,11015468,
04.01.2019,MODERNISATION HGF,POSTURITE (UK) LTD,667.83,REPAIR AND MAINTENANCE SERVICES,FURNITURE PURCHASE & REPAIR,5902336401,11015468,
04.01.2019,MODERNISATION HGF,TELEFONICA O2 UK LTD,"10,201.96",TECHNOLOGY,COMMS & COMPUTING CONTRACT CHARGES,5902336368,11269631,
04.01.2019,MODERNISATION HGF,TELEFONICA O2 UK LTD,"44,140.52",TECHNOLOGY,COMMS & COMPUTING CONTRACT CHARGES,5902336368,11269631,
04.01.2019,MODERNISATION HGF,DAISY COMMUNICATIONS LTD,"11,262.08",TECHNOLOGY,DATA COMMUNICATIONS,5902336361,1000075666,
04.01.2019,PROPERTY SERVICES,BRITISH GAS,"1,269.85",5/5A WESTMINSTER BRIDGE ROAD.,GAS,5902336439,1000054825,
04.01.2019,PROPERTY SERVICES,VEOLIA ES (UK)LTD,286.83,LBS SOJOURNER TRUTH COMMUNITY CENTRE,REFUSE COLLECTION CONTRACT,5902336336,1824835,
04.01.2019,PROPERTY SERVICES,INITIAL WASHROOM HYGIENE,"1,354.70",TOWER WORKSHOPS,PREMISES CLEANING,5902336440,1644695,
04.01.2019,PROPERTY SERVICES,BYWATERS (LEYTON) LTD,"5,696.72",TOWER WORKSHOPS,REFUSE COLLECTION CONTRACT,5902336438,1822101,
04.01.2019,PUBLIC HEALTH,WILLIAM MARTIN PROPERTY CONSULTANTS LTD,500.00,22 SHAND STREET,PROFESSIONAL FEES,5902336441,1000062171,
04.01.2019,PUBLIC HEALTH,MEDIA CITIZENS LTD,440.00,MASTER PLAN-H/WAY & TRANS INTERCHANGE,MARKETING & PUBLICITY SERVICES,5902336311,1000052669,
04.01.2019,PUBLIC HEALTH,CHELSEA AND WESTMINSTER HOSPITAL,429.73,SEXUAL HEALTH - STI,EXTERNAL AGENCIES AND BODIES,5902336318,1000072053,
04.01.2019,PUBLIC HEALTH,LEWISHAM AND GREENWICH NHS TRUST,773.80,SEXUAL HEALTH - STI,EXTERNAL AGENCIES AND BODIES,5902336266,1000076183,
04.01.2019,PUBLIC HEALTH,CENTRAL LONDON COMMUNITY HEALTHCARE,778.00,SEXUAL HEALTH - STI,EXTERNAL AGENCIES AND BODIES,5902336325,1000077767,
04.01.2019,PUBLIC HEALTH,CENTRAL LONDON COMMUNITY HEALTHCARE,"1,056.84",SEXUAL HEALTH - STI,EXTERNAL AGENCIES AND BODIES,5902336323,1000077767,
04.01.2019,PUBLIC HEALTH,LEWISHAM AND GREENWICH NHS TRUST,"15,749.58",SEXUAL HEALTH - STI,EXTERNAL AGENCIES AND BODIES,5902336267,1000076183,
04.01.2019,PUBLIC HEALTH,LEWISHAM AND GREENWICH NHS TRUST,"16,616.59",SEXUAL HEALTH - STI,EXTERNAL AGENCIES AND BODIES,5902336269,1000076183,
04.01.2019,RESIDENT SERVICES,HARROW GREEN LTD,358.20,OPERATIONS/OFFICES ACCOMMODATION,REMOVAL EXPENSES,5902336339,1000076673,
04.01.2019,RESIDENT SERVICES,HARROW GREEN LTD,812.70,OPERATIONS/OFFICES ACCOMMODATION,REMOVAL EXPENSES,5902336338,1000076673,
04.01.2019,RESIDENT SERVICES,HARROW GREEN LTD,"1,829.82",OPERATIONS/OFFICES ACCOMMODATION,REMOVAL EXPENSES,5902336328,1000076673,
04.01.2019,RESIDENT SERVICES,HARROW GREEN LTD,"2,160.74",OPERATIONS/OFFICES ACCOMMODATION,REMOVAL EXPENSES,5902336333,1000076673,
04.01.2019,RESIDENT SERVICES,HARROW GREEN LTD,"3,841.40",OPERATIONS/OFFICES ACCOMMODATION,REMOVAL EXPENSES,5902336322,1000076673,
04.01.2019,RESIDENT SERVICES,HARROW GREEN LTD,"10,583.19",OPERATIONS/OFFICES ACCOMMODATION,REMOVAL EXPENSES,5902336335,1000076673,
04.01.2019,RESIDENT SERVICES,HARROW GREEN LTD,"15,701.14",OPERATIONS/OFFICES ACCOMMODATION,REMOVAL EXPENSES,5902336324,1000076673,
04.01.2019,RESIDENT SERVICES,HARROW GREEN LTD,"18,123.75",OPERATIONS/OFFICES ACCOMMODATION,REMOVAL EXPENSES,5902336327,1000076673,
04.01.2019,RESIDENT SERVICES,DSG RETAIL LTD,282.50,SHS MANAGER,EQUIPMENT PURCHASE & REPAIR,5902336320,1000060952,
04.01.2019,RESIDENT SERVICES,LIVING ACCOMODATION LTD,315.00,TA ESTATE VOIDS,EXTERNAL AGENCIES AND BODIES,5902336419,1000063985,
04.01.2019,RESIDENT SERVICES,LIVING ACCOMODATION LTD,315.00,TA ESTATE VOIDS,EXTERNAL AGENCIES AND BODIES,5902336421,1000063985,
04.01.2019,RESIDENT SERVICES,LIVING ACCOMODATION LTD,357.00,TA ESTATE VOIDS,EXTERNAL AGENCIES AND BODIES,5902336417,1000063985,
04.01.2019,RESIDENT SERVICES,CITYGLEN LTD,"1,050.00",TA PLACEMENTS,EXTERNAL AGENCIES AND BODIES,5902336425,1000026239,
04.01.2019,RESIDENT SERVICES,DMS PROPERTIES SERVICES LTD,"2,160.00",TA PLACEMENTS,EXTERNAL AGENCIES AND BODIES,5902336370,1000081522,
04.01.2019,RESIDENT SERVICES,J & M OASIS LTD,"3,270.00",TA PLACEMENTS,EXTERNAL AGENCIES AND BODIES,5902336354,1000072169,
04.01.2019,RESIDENT SERVICES,SOUTH OF THE RIVER INVESTMENTS LTD,"3,345.00",TA PLACEMENTS,EXTERNAL AGENCIES AND BODIES,5902336406,1000073638,
04.01.2019,RESIDENT SERVICES HGF,POSTURITE (UK) LTD,301.95,ILDERTON ROAD PERM,FURNITURE PURCHASE & REPAIR,5902336390,11015468,
04.01.2019,SOUTHWARK BUILDING SERVICES,EXTREME ROPE ACCESS LTD,693.00,BUSINESS SUPPORT,OTHER CONTRACTORS,2102906348,3000001805,
04.01.2019,SOUTHWARK BUILDING SERVICES,ENVIROVENT LTD,"1,222.74",BUSINESS SUPPORT,OTHER CONTRACTORS,2102906350,1000075373,
04.01.2019,SOUTHWARK BUILDING SERVICES,DIAMOND SCAFFOLDING (SOUTH EAST),"2,899.37",BUSINESS SUPPORT,OTHER CONTRACTORS,2102906354,3000001625,
04.01.2019,SOUTHWARK BUILDING SERVICES,GMS ELECTRICAL LTD,"5,742.40",BUSINESS SUPPORT,OTHER CONTRACTORS,2102906347,3000002085,
04.01.2019,SOUTHWARK BUILDING SERVICES,EMPIRE BUILDERS,"10,390.45",BUSINESS SUPPORT,OTHER CONTRACTORS,2102905983,3000001466,
04.01.2019,SOUTHWARK BUILDING SERVICES,A & E ELKINS LTD,"11,654.43",BUSINESS SUPPORT,OTHER CONTRACTORS,2102906351,4012501,
04.01.2019,SOUTHWARK BUILDING SERVICES,FRANKLYN SHAW ASSOCIATES LTD,"15,982.55",BUSINESS SUPPORT,OTHER CONTRACTORS,2102905984,3000001465,
04.01.2019,SOUTHWARK BUILDING SERVICES,BUDMAX CONSTRUCTION LTD,"17,792.09",BUSINESS SUPPORT,OTHER CONTRACTORS,2102906349,3000001936,
04.01.2019,SOUTHWARK BUILDING SERVICES,1st ACTIVE PROPERTY SERVICES LTD,"31,407.20",BUSINESS SUPPORT,OTHER CONTRACTORS,2102905982,3000001655,
04.01.2019,SOUTHWARK BUILDING SERVICES,MASHER BROTHERS LTD,"45,090.17",BUSINESS SUPPORT,OTHER CONTRACTORS,2102906356,3000001100,
04.01.2019,SOUTHWARK BUILDING SERVICES,DEREK BUILDING SERVICES LTD,"64,839.06",BUSINESS SUPPORT,OTHER CONTRACTORS,2102906355,3000001751,
04.01.2019,SOUTHWARK BUILDING SERVICES,E & E BUILDING SERVICES LTD,"76,408.65",BUSINESS SUPPORT,OTHER CONTRACTORS,2102906345,3000001176,
04.01.2019,SOUTHWARK BUILDING SERVICES,KINGDOM SERVICES GROUP LTD,333.50,DEPOT COSTS,SECURITY SERVICES,5902336386,1000064479,
07.01.2019,ADULT SOCIAL CARE,REDACTED PERSONAL DATA,266.65,APPOINTEESHIPS,OTHER PAYMENTS FOR CLIENTS,REDACTED,REDACTED,
07.01.2019,ADULT SOCIAL CARE,LONDON CARE LTD,432.90,LD LTS 18-64,HOMECARE - C&V,2102906632,1000003398,
07.01.2019,ADULT SOCIAL CARE,PROFAD CARE AGENCY,"2,922.78",LD LTS 18-64,HOMECARE - SPOT,2102906685,1000079032,
07.01.2019,ADULT SOCIAL CARE,CARE DIRECT UK LTD,"1,323.84",LD LTS 18-64,SUPPORTED LIVING,2102906602,1000066322,
07.01.2019,ADULT SOCIAL CARE,TOGETHER WORKING FOR WELLBEING,"9,342.50",LD/MH/SM MANAGEMENT,OTHER CONTRACTORS,5902336565,1000039537,
07.01.2019,ADULT SOCIAL CARE,THAMES HOMECARE SERVICE LTD,420.65,MEM LTS 65+,HOMECARE - SPOT,2102906608,1000079295,
07.01.2019,ADULT SOCIAL CARE,ELEANOR NURSING AND SOCIAL CARE LTD,512.96,MEM LTS 65+,HOMECARE - SPOT,2102906490,1000081695,
07.01.2019,ADULT SOCIAL CARE,ELEANOR NURSING AND SOCIAL CARE LTD,"2,042.68",MEM LTS 65+,HOMECARE - SPOT,2102906503,1000081695,
07.01.2019,ADULT SOCIAL CARE,PROFAD CARE AGENCY,251.10,MH LTS 65+,HOMECARE - SPOT,2102906638,1000079032,
07.01.2019,ADULT SOCIAL CARE,PROFAD CARE AGENCY,334.80,MH STS 65+,HOMECARE - IC,2102906677,1000079032,
07.01.2019,ADULT SOCIAL CARE,ELEANOR NURSING AND SOCIAL CARE LTD,796.08,PHY LTS 18-64,HOMECARE - C&V,2102906506,1000081695,
07.01.2019,ADULT SOCIAL CARE,THAMES HOMECARE SERVICE LTD,286.40,PHY LTS 18-64,HOMECARE - SPOT,2102906626,1000079295,
07.01.2019,ADULT SOCIAL CARE,PROFAD CARE AGENCY,288.30,PHY LTS 18-64,HOMECARE - SPOT,2102906658,1000079032,
07.01.2019,ADULT SOCIAL CARE,ELEANOR NURSING AND SOCIAL CARE LTD,311.45,PHY LTS 18-64,HOMECARE - SPOT,2102906488,1000081695,
07.01.2019,ADULT SOCIAL CARE,THAMES HOMECARE SERVICE LTD,375.90,PHY LTS 18-64,HOMECARE - SPOT,2102906625,1000079295,
07.01.2019,ADULT SOCIAL CARE,ELEANOR NURSING AND SOCIAL CARE LTD,389.25,PHY LTS 18-64,HOMECARE - SPOT,2102906524,1000081695,
07.01.2019,ADULT SOCIAL CARE,PROFAD CARE AGENCY,395.25,PHY LTS 18-64,HOMECARE - SPOT,2102906636,1000079032,
07.01.2019,ADULT SOCIAL CARE,ELEANOR NURSING AND SOCIAL CARE LTD,419.53,PHY LTS 18-64,HOMECARE - SPOT,2102906517,1000081695,
07.01.2019,ADULT SOCIAL CARE,ELEANOR NURSING AND SOCIAL CARE LTD,458.00,PHY LTS 18-64,HOMECARE - SPOT,2102906531,1000081695,
07.01.2019,ADULT SOCIAL CARE,ELEANOR NURSING AND SOCIAL CARE LTD,592.53,PHY LTS 18-64,HOMECARE - SPOT,2102906530,1000081695,
07.01.2019,ADULT SOCIAL CARE,ELEANOR NURSING AND SOCIAL CARE LTD,605.52,PHY LTS 18-64,HOMECARE - SPOT,2102906505,1000081695,
07.01.2019,ADULT SOCIAL CARE,THAMES HOMECARE SERVICE LTD,608.60,PHY LTS 18-64,HOMECARE - SPOT,2102906616,1000079295,
07.01.2019,ADULT SOCIAL CARE,PROFAD CARE AGENCY,627.75,PHY LTS 18-64,HOMECARE - SPOT,2102906679,1000079032,
07.01.2019,ADULT SOCIAL CARE,ELEANOR NURSING AND SOCIAL CARE LTD,679.03,PHY LTS 18-64,HOMECARE - SPOT,2102906502,1000081695,
07.01.2019,ADULT SOCIAL CARE,THAMES HOMECARE SERVICE LTD,760.75,PHY LTS 18-64,HOMECARE - SPOT,2102906606,1000079295,
07.01.2019,ADULT SOCIAL CARE,ELEANOR NURSING AND SOCIAL CARE LTD,792.10,PHY LTS 18-64,HOMECARE - SPOT,2102906472,1000081695,
07.01.2019,ADULT SOCIAL CARE,ELEANOR NURSING AND SOCIAL CARE LTD,847.84,PHY LTS 18-64,HOMECARE - SPOT,2102906484,1000081695,
07.01.2019,ADULT SOCIAL CARE,ELEANOR NURSING AND SOCIAL CARE LTD,865.00,PHY LTS 18-64,HOMECARE - SPOT,2102906537,1000081695,
07.01.2019,ADULT SOCIAL CARE,THAMES HOMECARE SERVICE LTD,"2,174.85",PHY LTS 18-64,HOMECARE - SPOT,2102906601,1000079295,
07.01.2019,ADULT SOCIAL CARE,CARE DIRECT UK LTD,497.00,PHY LTS 65+,HOMECARE - C&V,2102906620,1000066322,
07.01.2019,ADULT SOCIAL CARE,THAMES HOMECARE SERVICE LTD,501.20,PHY LTS 65+,HOMECARE - C&V,2102906611,1000079295,
07.01.2019,ADULT SOCIAL CARE,PROFAD CARE AGENCY,"1,315.29",PHY LTS 65+,HOMECARE - C&V,2102906647,1000079032,
07.01.2019,ADULT SOCIAL CARE,LONDON CARE LTD,"1,542.37",PHY LTS 65+,HOMECARE - C&V,2102906633,1000003398,
07.01.2019,ADULT SOCIAL CARE,THAMES HOMECARE SERVICE LTD,"2,385.18",PHY LTS 65+,HOMECARE - C&V,2102906610,1000079295,
07.01.2019,ADULT SOCIAL CARE,PROFAD CARE AGENCY,251.10,PHY LTS 65+,HOMECARE - SPOT,2102906635,1000079032,
07.01.2019,ADULT SOCIAL CARE,ELEANOR NURSING AND SOCIAL CARE LTD,255.22,PHY LTS 65+,HOMECARE - SPOT,2102906535,1000081695,
07.01.2019,ADULT SOCIAL CARE,PROFAD CARE AGENCY,265.05,PHY LTS 65+,HOMECARE - SPOT,2102906669,1000079032,
07.01.2019,ADULT SOCIAL CARE,THAMES HOMECARE SERVICE LTD,268.50,PHY LTS 65+,HOMECARE - SPOT,2102906613,1000079295,
07.01.2019,ADULT SOCIAL CARE,THAMES HOMECARE SERVICE LTD,281.93,PHY LTS 65+,HOMECARE - SPOT,2102906605,1000079295,
07.01.2019,ADULT SOCIAL CARE,ELEANOR NURSING AND SOCIAL CARE LTD,293.12,PHY LTS 65+,HOMECARE - SPOT,2102906516,1000081695,
07.01.2019,ADULT SOCIAL CARE,ELEANOR NURSING AND SOCIAL CARE LTD,298.49,PHY LTS 65+,HOMECARE - SPOT,2102906493,1000081695,
07.01.2019,ADULT SOCIAL CARE,THAMES HOMECARE SERVICE LTD,322.20,PHY LTS 65+,HOMECARE - SPOT,2102906622,1000079295,
07.01.2019,ADULT SOCIAL CARE,ELEANOR NURSING AND SOCIAL CARE LTD,337.35,PHY LTS 65+,HOMECARE - SPOT,2102906538,1000081695,
07.01.2019,ADULT SOCIAL CARE,PROFAD CARE AGENCY,339.45,PHY LTS 65+,HOMECARE - SPOT,2102906657,1000079032,
07.01.2019,ADULT SOCIAL CARE,PROFAD CARE AGENCY,339.45,PHY LTS 65+,HOMECARE - SPOT,2102906684,1000079032,
07.01.2019,ADULT SOCIAL CARE,THAMES HOMECARE SERVICE LTD,344.58,PHY LTS 65+,HOMECARE - SPOT,2102906614,1000079295,
07.01.2019,ADULT SOCIAL CARE,ELEANOR NURSING AND SOCIAL CARE LTD,346.00,PHY LTS 65+,HOMECARE - SPOT,2102906491,1000081695,
07.01.2019,ADULT SOCIAL CARE,PROFAD CARE AGENCY,372.00,PHY LTS 65+,HOMECARE - SPOT,2102906645,1000079032,
07.01.2019,ADULT SOCIAL CARE,THAMES HOMECARE SERVICE LTD,384.85,PHY LTS 65+,HOMECARE - SPOT,2102906628,1000079295,
07.01.2019,ADULT SOCIAL CARE,PROFAD CARE AGENCY,390.60,PHY LTS 65+,HOMECARE - SPOT,2102906649,1000079032,
07.01.2019,ADULT SOCIAL CARE,PROFAD CARE AGENCY,390.60,PHY LTS 65+,HOMECARE - SPOT,2102906682,1000079032,
07.01.2019,ADULT SOCIAL CARE,ELEANOR NURSING AND SOCIAL CARE LTD,393.88,PHY LTS 65+,HOMECARE - SPOT,2102906468,1000081695,
07.01.2019,ADULT SOCIAL CARE,PROFAD CARE AGENCY,418.50,PHY LTS 65+,HOMECARE - SPOT,2102906662,1000079032,
07.01.2019,ADULT SOCIAL CARE,ELEANOR NURSING AND SOCIAL CARE LTD,432.61,PHY LTS 65+,HOMECARE - SPOT,2102906500,1000081695,
07.01.2019,ADULT SOCIAL CARE,THAMES HOMECARE SERVICE LTD,443.03,PHY LTS 65+,HOMECARE - SPOT,2102906607,1000079295,
07.01.2019,ADULT SOCIAL CARE,ELEANOR NURSING AND SOCIAL CARE LTD,445.50,PHY LTS 65+,HOMECARE - SPOT,2102906496,1000081695,
07.01.2019,ADULT SOCIAL CARE,THAMES HOMECARE SERVICE LTD,447.50,PHY LTS 65+,HOMECARE - SPOT,2102906627,1000079295,
07.01.2019,ADULT SOCIAL CARE,ELEANOR NURSING AND SOCIAL CARE LTD,449.80,PHY LTS 65+,HOMECARE - SPOT,2102906520,1000081695,
07.01.2019,ADULT SOCIAL CARE,THAMES HOMECARE SERVICE LTD,492.25,PHY LTS 65+,HOMECARE - SPOT,2102906624,1000079295,
07.01.2019,ADULT SOCIAL CARE,CARE DIRECT UK LTD,497.00,PHY LTS 65+,HOMECARE - SPOT,2102906603,1000066322,
07.01.2019,ADULT SOCIAL CARE,CARE DIRECT UK LTD,497.00,PHY LTS 65+,HOMECARE - SPOT,2102906619,1000066322,
07.01.2019,ADULT SOCIAL CARE,ELEANOR NURSING AND SOCIAL CARE LTD,512.96,PHY LTS 65+,HOMECARE - SPOT,2102906522,1000081695,
07.01.2019,ADULT SOCIAL CARE,ELEANOR NURSING AND SOCIAL CARE LTD,527.65,PHY LTS 65+,HOMECARE - SPOT,2102906498,1000081695,
07.01.2019,ADULT SOCIAL CARE,ELEANOR NURSING AND SOCIAL CARE LTD,536.30,PHY LTS 65+,HOMECARE - SPOT,2102906526,1000081695,
07.01.2019,ADULT SOCIAL CARE,PROFAD CARE AGENCY,558.00,PHY LTS 65+,HOMECARE - SPOT,2102906670,1000079032,
07.01.2019,ADULT SOCIAL CARE,ELEANOR NURSING AND SOCIAL CARE LTD,622.88,PHY LTS 65+,HOMECARE - SPOT,2102906540,1000081695,
07.01.2019,ADULT SOCIAL CARE,ELEANOR NURSING AND SOCIAL CARE LTD,641.20,PHY LTS 65+,HOMECARE - SPOT,2102906512,1000081695,
07.01.2019,ADULT SOCIAL CARE,ELEANOR NURSING AND SOCIAL CARE LTD,666.16,PHY LTS 65+,HOMECARE - SPOT,2102906494,1000081695,
07.01.2019,ADULT SOCIAL CARE,THAMES HOMECARE SERVICE LTD,690.43,PHY LTS 65+,HOMECARE - SPOT,2102906618,1000079295,
07.01.2019,ADULT SOCIAL CARE,ELEANOR NURSING AND SOCIAL CARE LTD,782.95,PHY LTS 65+,HOMECARE - SPOT,2102906527,1000081695,
07.01.2019,ADULT SOCIAL CARE,PROFAD CARE AGENCY,837.00,PHY LTS 65+,HOMECARE - SPOT,2102906640,1000079032,
07.01.2019,ADULT SOCIAL CARE,ELEANOR NURSING AND SOCIAL CARE LTD,934.32,PHY LTS 65+,HOMECARE - SPOT,2102906518,1000081695,
07.01.2019,ADULT SOCIAL CARE,THAMES HOMECARE SERVICE LTD,948.70,PHY LTS 65+,HOMECARE - SPOT,2102906629,1000079295,
07.01.2019,ADULT SOCIAL CARE,ELEANOR NURSING AND SOCIAL CARE LTD,"1,025.92",PHY LTS 65+,HOMECARE - SPOT,2102906486,1000081695,
07.01.2019,ADULT SOCIAL CARE,ELEANOR NURSING AND SOCIAL CARE LTD,"1,094.23",PHY LTS 65+,HOMECARE - SPOT,2102906515,1000081695,
07.01.2019,ADULT SOCIAL CARE,PROFAD CARE AGENCY,"1,120.34",PHY LTS 65+,HOMECARE - SPOT,2102906671,1000079032,
07.01.2019,ADULT SOCIAL CARE,ELEANOR NURSING AND SOCIAL CARE LTD,"1,479.41",PHY LTS 65+,HOMECARE - SPOT,2102906543,1000081695,
07.01.2019,ADULT SOCIAL CARE,PROFAD CARE AGENCY,"1,497.30",PHY LTS 65+,HOMECARE - SPOT,2102906654,1000079032,
07.01.2019,ADULT SOCIAL CARE,PROFAD CARE AGENCY,"1,930.60",PHY LTS 65+,HOMECARE - SPOT,2102906667,1000079032,
07.01.2019,ADULT SOCIAL CARE,THAMES HOMECARE SERVICE LTD,"2,103.25",PHY LTS 65+,HOMECARE - SPOT,2102906612,1000079295,
07.01.2019,ADULT SOCIAL CARE,ELEANOR NURSING AND SOCIAL CARE LTD,"2,179.80",PHY LTS 65+,HOMECARE - SPOT,2102906539,1000081695,
07.01.2019,ADULT SOCIAL CARE,ELEANOR NURSING AND SOCIAL CARE LTD,"2,180.08",PHY LTS 65+,HOMECARE - SPOT,2102906482,1000081695,
07.01.2019,ADULT SOCIAL CARE,PROFAD CARE AGENCY,"2,435.65",PHY LTS 65+,HOMECARE - SPOT,2102906675,1000079032,
07.01.2019,ADULT SOCIAL CARE,ELEANOR NURSING AND SOCIAL CARE LTD,289.84,PHY STS 18-64,HOMECARE - IC,2102906514,1000081695,
07.01.2019,ADULT SOCIAL CARE,PROFAD CARE AGENCY,395.25,PHY STS 18-64,HOMECARE - IC,2102906678,1000079032,
07.01.2019,ADULT SOCIAL CARE,ELEANOR NURSING AND SOCIAL CARE LTD,441.19,PHY STS 18-64,HOMECARE - IC,2102906509,1000081695,
07.01.2019,ADULT SOCIAL CARE,ELEANOR NURSING AND SOCIAL CARE LTD,"1,046.78",PHY STS 18-64,HOMECARE - IC,2102906541,1000081695,
07.01.2019,ADULT SOCIAL CARE,ELEANOR NURSING AND SOCIAL CARE LTD,"1,923.60",PHY STS 18-64,HOMECARE - IC,2102906686,1000081695,
07.01.2019,ADULT SOCIAL CARE,PROFAD CARE AGENCY,269.70,PHY STS 65+,HOMECARE - IC,2102906672,1000079032,
07.01.2019,ADULT SOCIAL CARE,THAMES HOMECARE SERVICE LTD,281.93,PHY STS 65+,HOMECARE - IC,2102906596,1000079295,
07.01.2019,ADULT SOCIAL CARE,ELEANOR NURSING AND SOCIAL CARE LTD,389.25,PHY STS 65+,HOMECARE - IC,2102906499,1000081695,
07.01.2019,ADULT SOCIAL CARE,PROFAD CARE AGENCY,390.60,PHY STS 65+,HOMECARE - IC,2102906668,1000079032,
07.01.2019,ADULT SOCIAL CARE,ELEANOR NURSING AND SOCIAL CARE LTD,497.38,PHY STS 65+,HOMECARE - IC,2102906519,1000081695,
07.01.2019,ADULT SOCIAL CARE,PROFAD CARE AGENCY,511.50,PHY STS 65+,HOMECARE - IC,2102906650,1000079032,
07.01.2019,ADULT SOCIAL CARE,ELEANOR NURSING AND SOCIAL CARE LTD,544.95,PHY STS 65+,HOMECARE - IC,2102906542,1000081695,
07.01.2019,ADULT SOCIAL CARE,PROFAD CARE AGENCY,558.00,PHY STS 65+,HOMECARE - IC,2102906639,1000079032,
07.01.2019,ADULT SOCIAL CARE,ELEANOR NURSING AND SOCIAL CARE LTD,635.78,PHY STS 65+,HOMECARE - IC,2102906474,1000081695,
07.01.2019,ADULT SOCIAL CARE,THAMES HOMECARE SERVICE LTD,737.10,PHY STS 65+,HOMECARE - IC,2102906617,1000079295,
07.01.2019,ADULT SOCIAL CARE,ELEANOR NURSING AND SOCIAL CARE LTD,795.93,PHY STS 65+,HOMECARE - IC,2102906492,1000081695,
07.01.2019,ADULT SOCIAL CARE,ELEANOR NURSING AND SOCIAL CARE LTD,856.35,PHY STS 65+,HOMECARE - IC,2102906489,1000081695,
07.01.2019,ADULT SOCIAL CARE,ELEANOR NURSING AND SOCIAL CARE LTD,"1,126.68",PHY STS 65+,HOMECARE - IC,2102906536,1000081695,
07.01.2019,ADULT SOCIAL CARE,ELEANOR NURSING AND SOCIAL CARE LTD,"1,859.98",PHY STS 65+,HOMECARE - IC,2102906508,1000081695,
07.01.2019,ADULT SOCIAL CARE,PROFAD CARE AGENCY,"1,869.30",PHY STS 65+,HOMECARE - IC,2102906676,1000079032,
07.01.2019,ADULT SOCIAL CARE,ELEANOR NURSING AND SOCIAL CARE LTD,760.74,PSEN STS 65+,HOMECARE - IC,2102906478,1000081695,
07.01.2019,ADULT SOCIAL CARE,CAREMARK LTD,456.00,SOCIAL ISOLATION,HOMECARE - SPOT,2102906630,1000081358,
07.01.2019,ADULT SOCIAL CARE,ELEANOR NURSING AND SOCIAL CARE LTD,"1,016.38",SOCIAL ISOLATION,HOMECARE - SPOT,2102906495,1000081695,
07.01.2019,ADULT SOCIAL CARE,CONTACT PROFESSIONALS,285.00,SPECIALIST CARE,SECTION 17 PAYMENTS TO AGENCIES/CARERS,2102906573,1000057263,
07.01.2019,ADULT SOCIAL CARE,CONTACT PROFESSIONALS,285.00,SPECIALIST CARE,SECTION 17 PAYMENTS TO AGENCIES/CARERS,2102906577,1000057263,
07.01.2019,ADULT SOCIAL CARE,CONTACT PROFESSIONALS,304.00,SPECIALIST CARE,SECTION 17 PAYMENTS TO AGENCIES/CARERS,2102906575,1000057263,
07.01.2019,ADULT SOCIAL CARE,CONTACT PROFESSIONALS,418.00,SPECIALIST CARE,SECTION 17 PAYMENTS TO AGENCIES/CARERS,2102906553,1000057263,
07.01.2019,ADULT SOCIAL CARE,CONTACT PROFESSIONALS,418.00,SPECIALIST CARE,SECTION 17 PAYMENTS TO AGENCIES/CARERS,2102906557,1000057263,
07.01.2019,ADULT SOCIAL CARE,CONTACT PROFESSIONALS,418.00,SPECIALIST CARE,SECTION 17 PAYMENTS TO AGENCIES/CARERS,2102906560,1000057263,
07.01.2019,ADULT SOCIAL CARE,CONTACT PROFESSIONALS,418.00,SPECIALIST CARE,SECTION 17 PAYMENTS TO AGENCIES/CARERS,2102906564,1000057263,
07.01.2019,ADULT SOCIAL CARE,CONTACT PROFESSIONALS,418.00,SPECIALIST CARE,SECTION 17 PAYMENTS TO AGENCIES/CARERS,2102906565,1000057263,
07.01.2019,ADULT SOCIAL CARE,CONTACT PROFESSIONALS,418.00,SPECIALIST CARE,SECTION 17 PAYMENTS TO AGENCIES/CARERS,2102906570,1000057263,
07.01.2019,ADULT SOCIAL CARE,CONTACT PROFESSIONALS,418.00,SPECIALIST CARE,SECTION 17 PAYMENTS TO AGENCIES/CARERS,2102906587,1000057263,
07.01.2019,ADULT SOCIAL CARE,CONTACT PROFESSIONALS,418.00,SPECIALIST CARE,SECTION 17 PAYMENTS TO AGENCIES/CARERS,2102906595,1000057263,
07.01.2019,ADULT SOCIAL CARE,CONTACT PROFESSIONALS,437.00,SPECIALIST CARE,SECTION 17 PAYMENTS TO AGENCIES/CARERS,2102906552,1000057263,
07.01.2019,ADULT SOCIAL CARE,CONTACT PROFESSIONALS,437.00,SPECIALIST CARE,SECTION 17 PAYMENTS TO AGENCIES/CARERS,2102906579,1000057263,
07.01.2019,ADULT SOCIAL CARE,CONTACT PROFESSIONALS,570.00,SPECIALIST CARE,SECTION 17 PAYMENTS TO AGENCIES/CARERS,2102906589,1000057263,
07.01.2019,ADULT SOCIAL CARE,CONTACT PROFESSIONALS,579.50,SPECIALIST CARE,SECTION 17 PAYMENTS TO AGENCIES/CARERS,2102906554,1000057263,
07.01.2019,ADULT SOCIAL CARE,CONTACT PROFESSIONALS,627.00,SPECIALIST CARE,SECTION 17 PAYMENTS TO AGENCIES/CARERS,2102906594,1000057263,
07.01.2019,ADULT SOCIAL CARE,CONTACT PROFESSIONALS,665.00,SPECIALIST CARE,SECTION 17 PAYMENTS TO AGENCIES/CARERS,2102906547,1000057263,
07.01.2019,ADULT SOCIAL CARE,CONTACT PROFESSIONALS,665.00,SPECIALIST CARE,SECTION 17 PAYMENTS TO AGENCIES/CARERS,2102906558,1000057263,
07.01.2019,ADULT SOCIAL CARE,CONTACT PROFESSIONALS,931.00,SPECIALIST CARE,SECTION 17 PAYMENTS TO AGENCIES/CARERS,2102906561,1000057263,
07.01.2019,ASSET MANAGEMENT,AJMADAPTIONS LTD,900.00,ADAPTATIONS,BUILDING R&M,2102906377,3000002056,
07.01.2019,ASSET MANAGEMENT,BAILY  GARNER LLP,"1,878.21",DEVELOPMENT DELIVERY,PROFESSIONAL FEES,5902336542,1000663,
07.01.2019,ASSET MANAGEMENT,BELSHAW & CURTIN SOLICITORS,"9,750.00",DISREPAIR,BUILDING R&M,5902336538,1767379,
07.01.2019,ASSET MANAGEMENT,CERTSURE LLP,"21,735.00",ENG CONTRACTS,SUBSCRIPTIONS,5902336476,1706379,
07.01.2019,ASSET MANAGEMENT,BRIDGEWATER ROOFING CONTRACTORS LTD,"77,614.32",VISIBLE DIFFERENCE (NORTH),BUILDING R&M,2102906376,3000001482,
07.01.2019,CENTRAL FUNCTIONS,CALLOW MASTER LOCKSMITHS,260.00,COMMERCIAL PROPERTIES,BUILDING R&M,5902336448,11179552,
07.01.2019,CENTRAL FUNCTIONS,STANBURY BUILDING SERVICES LTD,"1,950.00",COMMERCIAL PROPERTIES,BUILDING R&M,5902336473,1000078207,
07.01.2019,CENTRAL FUNCTIONS,STANBURY BUILDING SERVICES LTD,"2,950.00",COMMERCIAL PROPERTIES,BUILDING R&M,5902336471,1000078207,
07.01.2019,CHIEF EXECUTIVE,MILTON KEYNES SURVEYS LTD,995.00,CAPITAL PS (REGEN),CONSTRUCTION,5902336535,1000077138,
07.01.2019,CHILDREN AND ADULT,FAITHFUL & GOULD,"1,500.00",CAPITAL PS (SOC SERV),CONSTRUCTION FEES,5902336480,1000061390,
07.01.2019,CHILDREN'S SERVICES,THE COMPLETE WORKS INDEPENDENT SCHOOL,414.00,ALTERNATIVE PROVISION,EXTERNAL AGENCIES AND BODIES,5902336446,1000033256,
07.01.2019,CHILDREN'S SERVICES,THE COMPLETE WORKS INDEPENDENT SCHOOL,777.00,ALTERNATIVE PROVISION,EXTERNAL AGENCIES AND BODIES,5902336456,1000033256,
07.01.2019,CHILDREN'S SERVICES,THE COMPLETE WORKS INDEPENDENT SCHOOL,"2,125.00",ALTERNATIVE PROVISION,EXTERNAL AGENCIES AND BODIES,5902336452,1000033256,
07.01.2019,CHILDREN'S SERVICES,THE COMPLETE WORKS INDEPENDENT SCHOOL,"2,415.00",ALTERNATIVE PROVISION,EXTERNAL AGENCIES AND BODIES,5902336455,1000033256,
07.01.2019,CHILDREN'S SERVICES,THE COMPLETE WORKS INDEPENDENT SCHOOL,"2,530.00",ALTERNATIVE PROVISION,EXTERNAL AGENCIES AND BODIES,5902336447,1000033256,
07.01.2019,CHILDREN'S SERVICES,THE COMPLETE WORKS INDEPENDENT SCHOOL,"2,530.00",ALTERNATIVE PROVISION,EXTERNAL AGENCIES AND BODIES,5902336459,1000033256,
07.01.2019,CHILDREN'S SERVICES,THE COMPLETE WORKS INDEPENDENT SCHOOL,"4,015.00",ALTERNATIVE PROVISION,EXTERNAL AGENCIES AND BODIES,5902336458,1000033256,
07.01.2019,CHILDREN'S SERVICES,BROMLEY TRUST ACADEMY,"4,200.00",ALTERNATIVE PROVISION,EXTERNAL AGENCIES AND BODIES,5902336499,1000077097,
07.01.2019,CHILDREN'S SERVICES,BROMLEY TRUST ACADEMY,"4,200.00",ALTERNATIVE PROVISION,EXTERNAL AGENCIES AND BODIES,5902336502,1000077097,
07.01.2019,CHILDREN'S SERVICES,ABBEY MANOR COLLEGE,"4,725.00",ALTERNATIVE PROVISION,EXTERNAL AGENCIES AND BODIES,5902336463,1000073855,
07.01.2019,CHILDREN'S SERVICES,GLS EDUCATIONAL SUPPLIES LTD,378.26,CAMBERWELL & DULWICH,MATERIALS,5902336519,1318282,
07.01.2019,CHILDREN'S SERVICES,OASIS ACADEMY SOUTH BANK,"20,515.47",CASEWORK OLA  0-8,CENTRAL GOVERNMENT,2102906445,1000073422,
07.01.2019,CHILDREN'S SERVICES,CENMAC,"4,350.25",CASEWORK OLA  0-8,OP LEASE/HIRE CHARGES:PLANT/EQUIP/FURNIT,2102906414,1000042131,
07.01.2019,CHILDREN'S SERVICES,MOOR HOUSE SCHOOL & COLLEGE,"2,118.00",CASEWORK OLA  0-8,OTHER CONTRACTORS,2102906442,1000080062,
07.01.2019,CHILDREN'S SERVICES,KEYS CHILDCARE LTD,"10,260.00",CASEWORK OLA  0-8,RECOUPMENT,2102906399,1000081582,
07.01.2019,CHILDREN'S SERVICES,MOOR HOUSE SCHOOL & COLLEGE,"14,602.67",CASEWORK OLA  0-8,RECOUPMENT,2102906441,1000080062,
07.01.2019,CHILDREN'S SERVICES,MOOR HOUSE SCHOOL & COLLEGE,"15,308.67",CASEWORK OLA  0-8,RECOUPMENT,2102906440,1000080062,
07.01.2019,CHILDREN'S SERVICES,OCTAVIA HOUSE SCHOOLS LTD,"254,000.00",CASEWORK OLA  0-8,RECOUPMENT,2102906405,1000073579,
07.01.2019,CHILDREN'S SERVICES,THE LIVITY SCHOOL,"26,523.71",CASEWORK OLA  0-8,RECOUPMENT,2102906447,1000073175,
07.01.2019,CHILDREN'S SERVICES,FLEET TUTORS,"3,162.00",CASEWORK OLA  0-8,"SCHOOLS CAPITATION, OTHER GRANTS",2102906394,1000044820,
07.01.2019,CHILDREN'S SERVICES,LOVE ABA LTD,650.00,CASEWORK SOUTHWARK 0-8,CONTRIBUTION TO PROVISIONS (TP PAYMENTS),2102906428,1000079474,
07.01.2019,CHILDREN'S SERVICES,LOVE ABA LTD,650.00,CASEWORK SOUTHWARK 0-8,CONTRIBUTION TO PROVISIONS (TP PAYMENTS),2102906429,1000079474,
07.01.2019,CHILDREN'S SERVICES,LOVE ABA LTD,650.00,CASEWORK SOUTHWARK 0-8,CONTRIBUTION TO PROVISIONS (TP PAYMENTS),2102906430,1000079474,
07.01.2019,CHILDREN'S SERVICES,REDACTED PERSONAL DATA,300.00,CASEWORK SOUTHWARK 0-8,CONTRIBUTION TO PROVISIONS (TP PAYMENTS),REDACTED,REDACTED,
07.01.2019,CHILDREN'S SERVICES,REDACTED PERSONAL DATA,500.00,CASEWORK SOUTHWARK 0-8,CONTRIBUTION TO PROVISIONS (TP PAYMENTS),REDACTED,REDACTED,
07.01.2019,CHILDREN'S SERVICES,REDACTED PERSONAL DATA,500.00,CASEWORK SOUTHWARK 0-8,CONTRIBUTION TO PROVISIONS (TP PAYMENTS),REDACTED,REDACTED,
07.01.2019,CHILDREN'S SERVICES,REDACTED PERSONAL DATA,500.00,CASEWORK SOUTHWARK 0-8,CONTRIBUTION TO PROVISIONS (TP PAYMENTS),REDACTED,REDACTED,
07.01.2019,CHILDREN'S SERVICES,REDACTED PERSONAL DATA,700.00,CASEWORK SOUTHWARK 0-8,CONTRIBUTION TO PROVISIONS (TP PAYMENTS),REDACTED,REDACTED,
07.01.2019,CHILDREN'S SERVICES,REDACTED PERSONAL DATA,"1,350.00",CASEWORK SOUTHWARK 0-8,CONTRIBUTION TO PROVISIONS (TP PAYMENTS),REDACTED,REDACTED,
07.01.2019,CHILDREN'S SERVICES,BRUNSWICK PARK PRIMARY SCHOOL,"4,550.00",CASEWORK SOUTHWARK 0-8,CONTRIBUTION TO PROVISIONS (TP PAYMENTS),2102906379,5001000013,
07.01.2019,CHILDREN'S SERVICES,CENMAC,"25,653.25",CASEWORK SOUTHWARK 0-8,OP LEASE/HIRE CHARGES:PLANT/EQUIP/FURNIT,2102906413,1000042131,
07.01.2019,CHILDREN'S SERVICES,REDACTED PERSONAL DATA,"1,050.00",CASEWORK SOUTHWARK 0-8,PROFESSIONAL FEES,REDACTED,REDACTED,
07.01.2019,CHILDREN'S SERVICES,CAVENDISH SCHOOL,"14,727.28",CASEWORK SOUTHWARK 0-8,RECOUPMENT,2102906425,1000024278,
07.01.2019,CHILDREN'S SERVICES,HARRIS ACADEMY BERMONDSEY,"27,762.37",CASEWORK SOUTHWARK 0-8,STATEMENTED FEES,2102906400,1000052842,
07.01.2019,CHILDREN'S SERVICES,WALWORTH ACADEMY,"33,068.04",CASEWORK SOUTHWARK 0-8,STATEMENTED FEES,2102906385,1000062868,
07.01.2019,CHILDREN'S SERVICES,THE CHARTER SCHOOL EDUCATIONAL TRUST,"69,298.71",CASEWORK SOUTHWARK 0-8,STATEMENTED FEES,2102906409,1000079578,
07.01.2019,CHILDREN'S SERVICES,THE CHARTER SCHOOL EDUCATIONAL TRUST,"75,795.36",CASEWORK SOUTHWARK 0-8,STATEMENTED FEES,2102906411,1000064975,
07.01.2019,CHILDREN'S SERVICES,ACCESSIBLE TRAINING LTD,265.00,CHILDRENS CENTRE,TRAINING,5902336472,1000000705,
07.01.2019,CHILDREN'S SERVICES,EARLY EDUCATION,975.25,CHILDRENS CENTRE,TRAINING,5902336468,11032986,
07.01.2019,CHILDREN'S SERVICES,SP HOMES LTD,"2,442.78",FAMILY ASSESSMENTS,RESIDENTIAL CARE,2102906464,1000080326,
07.01.2019,CHILDREN'S SERVICES,ARGOS BUSINESS SOLUTIONS LTD,258.32,LEAVING CARE GRANT,OTHER PAYMENTS FOR CLIENTS,5902336451,1000001734,
07.01.2019,CHILDREN'S SERVICES,ARGOS BUSINESS SOLUTIONS LTD,316.66,LEAVING CARE GRANT,OTHER PAYMENTS FOR CLIENTS,5902336451,1000001734,
07.01.2019,CHILDREN'S SERVICES,CRUCKTON HALL SCHOOL,"-17,444.00",PFA TEAM SOUTHWARK 9 PLUS,ADDITIONAL PAYMENTS TO AGENCIES/CARERS,2102906452,1000060937,
07.01.2019,CHILDREN'S SERVICES,CRUCKTON HALL SCHOOL,"-14,744.00",PFA TEAM SOUTHWARK 9 PLUS,ADDITIONAL PAYMENTS TO AGENCIES/CARERS,2102906453,1000060937,
07.01.2019,CHILDREN'S SERVICES,CRUCKTON HALL SCHOOL,"17,444.00",PFA TEAM SOUTHWARK 9 PLUS,ADDITIONAL PAYMENTS TO AGENCIES/CARERS,2102906387,1000060937,
07.01.2019,CHILDREN'S SERVICES,CRUCKTON HALL SCHOOL,"60,186.66",PFA TEAM SOUTHWARK 9 PLUS,ADDITIONAL PAYMENTS TO AGENCIES/CARERS,2102906388,1000060937,
07.01.2019,CHILDREN'S SERVICES,OASIS ACADEMY SOUTH BANK,"53,456.82",PFA TEAM SOUTHWARK 9 PLUS,CENTRAL GOVERNMENT,2102906446,1000073422,
07.01.2019,CHILDREN'S SERVICES,RIVERSTON SCHOOL,"6,427.50",PFA TEAM SOUTHWARK 9 PLUS,CENTRAL GOVERNMENT,2102906380,11213696,
07.01.2019,CHILDREN'S SERVICES,VIBE TEACHER RECRUITMENT LTD,"1,040.00",PFA TEAM SOUTHWARK 9 PLUS,CONTRIBUTION TO PROVISIONS (TP PAYMENTS),2102906381,1000081423,
07.01.2019,CHILDREN'S SERVICES,AMBITIOUS ABOUT AUTISM,"9,949.76",PFA TEAM SOUTHWARK 9 PLUS,CONTRIBUTION TO PROVISIONS (TP PAYMENTS),2102906390,1000035784,
07.01.2019,CHILDREN'S SERVICES,AMBITIOUS ABOUT AUTISM,"10,148.76",PFA TEAM SOUTHWARK 9 PLUS,CONTRIBUTION TO PROVISIONS (TP PAYMENTS),2102906393,1000035784,
07.01.2019,CHILDREN'S SERVICES,CENMAC,"3,033.75",PFA TEAM SOUTHWARK 9 PLUS,OP LEASE/HIRE CHARGES:PLANT/EQUIP/FURNIT,2102906416,1000042131,
07.01.2019,CHILDREN'S SERVICES,CENMAC,"10,485.50",PFA TEAM SOUTHWARK 9 PLUS,OP LEASE/HIRE CHARGES:PLANT/EQUIP/FURNIT,2102906415,1000042131,
07.01.2019,CHILDREN'S SERVICES,KIKIS CHILDRENS CLINIC LTD,340.00,PFA TEAM SOUTHWARK 9 PLUS,OTHER CONTRACTORS,2102906398,1000075244,
07.01.2019,CHILDREN'S SERVICES,MOOR HOUSE SCHOOL & COLLEGE,"2,080.00",PFA TEAM SOUTHWARK 9 PLUS,OTHER CONTRACTORS,2102906444,1000080062,
07.01.2019,CHILDREN'S SERVICES,PHOENIXPLACE,"3,648.00",PFA TEAM SOUTHWARK 9 PLUS,RECOUPMENT,2102906403,1000075565,
07.01.2019,CHILDREN'S SERVICES,PHOENIXPLACE,"3,648.00",PFA TEAM SOUTHWARK 9 PLUS,RECOUPMENT,2102906404,1000075565,
07.01.2019,CHILDREN'S SERVICES,MOOR HOUSE SCHOOL & COLLEGE,"14,983.67",PFA TEAM SOUTHWARK 9 PLUS,RECOUPMENT,2102906443,1000080062,
07.01.2019,CHILDREN'S SERVICES,AMBITIOUS ABOUT AUTISM,"24,042.44",PFA TEAM SOUTHWARK 9 PLUS,RECOUPMENT,2102906389,1000035784,
07.01.2019,CHILDREN'S SERVICES,AMBITIOUS ABOUT AUTISM,"24,589.96",PFA TEAM SOUTHWARK 9 PLUS,RECOUPMENT,2102906391,1000035784,
07.01.2019,CHILDREN'S SERVICES,NCYPE,"45,290.84",PFA TEAM SOUTHWARK 9 PLUS,RECOUPMENT,2102906433,1264546,
07.01.2019,CHILDREN'S SERVICES,OCTAVIA HOUSE SCHOOLS LTD,"75,000.00",PFA TEAM SOUTHWARK 9 PLUS,RECOUPMENT,2102906406,1000073579,
07.01.2019,CHILDREN'S SERVICES,CAVENDISH SCHOOL,450.00,PFA TEAM SOUTHWARK 9 PLUS,RECOUPMENT,2102906427,1000024278,
07.01.2019,CHILDREN'S SERVICES,CAVENDISH SCHOOL,755.00,PFA TEAM SOUTHWARK 9 PLUS,RECOUPMENT,2102906423,1000024278,
07.01.2019,CHILDREN'S SERVICES,WIZE UP INDEPENDENT SCHOOL,"3,000.00",PFA TEAM SOUTHWARK 9 PLUS,RECOUPMENT,2102906434,1000080560,
07.01.2019,CHILDREN'S SERVICES,MORE HOUSE SCHOOL,"9,535.00",PFA TEAM SOUTHWARK 9 PLUS,RECOUPMENT,2102906397,1000076379,
07.01.2019,CHILDREN'S SERVICES,CAVENDISH SCHOOL,"9,818.18",PFA TEAM SOUTHWARK 9 PLUS,RECOUPMENT,2102906424,1000024278,
07.01.2019,CHILDREN'S SERVICES,CAVENDISH SCHOOL,"103,090.96",PFA TEAM SOUTHWARK 9 PLUS,RECOUPMENT,2102906426,1000024278,
07.01.2019,CHILDREN'S SERVICES,SOUTHWARK INCLUSIVE LEARNING SERVICE,"2,666.50",PFA TEAM SOUTHWARK 9 PLUS,"SCHOOLS CAPITATION, OTHER GRANTS",2102906407,5001000105,
07.01.2019,CHILDREN'S SERVICES,THE COMPLETE WORKS INDEPENDENT SCHOOL,"3,325.00",PFA TEAM SOUTHWARK 9 PLUS,"SCHOOLS CAPITATION, OTHER GRANTS",2102906448,1000033256,
07.01.2019,CHILDREN'S SERVICES,THE COMPLETE WORKS INDEPENDENT SCHOOL,"5,075.00",PFA TEAM SOUTHWARK 9 PLUS,"SCHOOLS CAPITATION, OTHER GRANTS",2102906449,1000033256,
07.01.2019,CHILDREN'S SERVICES,THE COMPLETE WORKS INDEPENDENT SCHOOL,"7,000.00",PFA TEAM SOUTHWARK 9 PLUS,"SCHOOLS CAPITATION, OTHER GRANTS",2102906450,1000033256,
07.01.2019,CHILDREN'S SERVICES,THE COMPLETE WORKS INDEPENDENT SCHOOL,"7,000.00",PFA TEAM SOUTHWARK 9 PLUS,"SCHOOLS CAPITATION, OTHER GRANTS",2102906451,1000033256,
07.01.2019,CHILDREN'S SERVICES,FLEET TUTORS,"9,032.00",PFA TEAM SOUTHWARK 9 PLUS,"SCHOOLS CAPITATION, OTHER GRANTS",2102906395,1000044820,
07.01.2019,CHILDREN'S SERVICES,SOUTHWARK INCLUSIVE LEARNING SERVICE,"13,332.50",PFA TEAM SOUTHWARK 9 PLUS,"SCHOOLS CAPITATION, OTHER GRANTS",2102906408,5001000105,
07.01.2019,CHILDREN'S SERVICES,MANDER PORTMAN WOODWARD LTD,"8,388.00",PFA TEAM SOUTHWARK 9 PLUS,"SCHOOLS CAPITATION, STANDARDS FUND",2102906396,1000068075,
07.01.2019,CHILDREN'S SERVICES,WALWORTH ACADEMY,268.04,PFA TEAM SOUTHWARK 9 PLUS,STATEMENTED FEES,2102906383,1000062868,
07.01.2019,CHILDREN'S SERVICES,LONDON SOUTH EAST ACADEMIES TRUST,460.00,PFA TEAM SOUTHWARK 9 PLUS,STATEMENTED FEES,2102906437,1000082046,
07.01.2019,CHILDREN'S SERVICES,LONDON SOUTH EAST ACADEMIES TRUST,920.00,PFA TEAM SOUTHWARK 9 PLUS,STATEMENTED FEES,2102906439,1000082046,
07.01.2019,CHILDREN'S SERVICES,WALWORTH ACADEMY,"1,319.59",PFA TEAM SOUTHWARK 9 PLUS,STATEMENTED FEES,2102906384,1000062868,
07.01.2019,CHILDREN'S SERVICES,LONDON SOUTH EAST ACADEMIES TRUST,"6,000.00",PFA TEAM SOUTHWARK 9 PLUS,STATEMENTED FEES,2102906438,1000082046,
07.01.2019,CHILDREN'S SERVICES,LONDON SOUTH EAST ACADEMIES TRUST,"6,770.00",PFA TEAM SOUTHWARK 9 PLUS,STATEMENTED FEES,2102906435,1000082046,
07.01.2019,CHILDREN'S SERVICES,HARRIS ACADEMY BERMONDSEY,"13,489.43",PFA TEAM SOUTHWARK 9 PLUS,STATEMENTED FEES,2102906401,1000052842,
07.01.2019,CHILDREN'S SERVICES,THE CHARTER SCHOOL EDUCATIONAL TRUST,"13,881.19",PFA TEAM SOUTHWARK 9 PLUS,STATEMENTED FEES,2102906410,1000079578,
07.01.2019,CHILDREN'S SERVICES,WALWORTH ACADEMY,"50,127.06",PFA TEAM SOUTHWARK 9 PLUS,STATEMENTED FEES,2102906386,1000062868,
07.01.2019,CHILDREN'S SERVICES,THE CHARTER SCHOOL EDUCATIONAL TRUST,"175,055.44",PFA TEAM SOUTHWARK 9 PLUS,STATEMENTED FEES,2102906412,1000064975,
07.01.2019,CHILDREN'S SERVICES,HYDE HOUSING ASSOCIATION,"2,500.00",RESOURCE PANEL,OTHER PAYMENTS FOR CLIENTS,5902336729,1000031709,
07.01.2019,CHILDREN'S SERVICES,KENT COUNTY COUNCIL - LASER,"1,236.36",SOUTH BERMONDSEY CHILDRENS & PARENTS CNT,INTERPRETING SERVICES,5902336486,1000012926,
07.01.2019,COMMISSIONING & CENTRAL,BRIDGER BELL COMMERCIAL LLP,"4,855.00",COMMISSIONING TEAM,RENTS,2102906487,1000064051,
07.01.2019,COMMUNITIES,ELEANOR NURSING AND SOCIAL CARE LTD,506.09,NO RECOURSE TO PUBLIC FUNDS,HOMECARE - C&V,2102906521,1000081695,
07.01.2019,COMMUNITIES,PROFAD CARE AGENCY,781.20,NO RECOURSE TO PUBLIC FUNDS,HOMECARE - C&V,2102906680,1000079032,
07.01.2019,CUSTOMER EXPERIENCE,ARGOS BUSINESS SOLUTIONS LTD,263.09,PECKHAM MSSP,OFFICE EXPENSES,5902336546,1000001734,
07.01.2019,CUSTOMER EXPERIENCE HGF,ABLE 2 OCCUPATIONAL THERAPY SERVICE,"1,920.00",BLUE BADGES,PROFESSIONAL FEES,5902336545,1000064695,
07.01.2019,CUSTOMER EXPERIENCE HGF,WATERLOGIC,764.04,CORONER'S,OP LEASE/HIRE CHARGES:PLANT/EQUIP/FURNIT,5902336575,1000052108,
07.01.2019,CUSTOMER EXPERIENCE HGF,GUYS & ST THOMAS NHS FOUNDATION TRUST,300.00,CORONER'S,OTHER CONTRACTORS,5902336568,1765536,
07.01.2019,CUSTOMER EXPERIENCE HGF,GUYS & ST THOMAS NHS FOUNDATION TRUST,"1,150.00",CORONER'S,OTHER CONTRACTORS,5902336566,1765536,
07.01.2019,CUSTOMER EXPERIENCE HGF,DIGNITY FUNERALS LTD,"16,460.00",CORONER'S,OTHER CONTRACTORS,5902336582,1000041373,
07.01.2019,CUSTOMER EXPERIENCE HGF,SG PATH LTD,415.80,CORONER'S,PROFESSIONAL FEES,5902336553,1000077883,
07.01.2019,CUSTOMER EXPERIENCE HGF,SG PATH LTD,415.80,CORONER'S,PROFESSIONAL FEES,5902336590,1000077883,
07.01.2019,CUSTOMER EXPERIENCE HGF,IMPERIAL COLLEGE PROJECTS LTD,460.00,CORONER'S,PROFESSIONAL FEES,5902336562,1000080106,
07.01.2019,CUSTOMER EXPERIENCE HGF,DENHAN INTERNATIONAL LTD,"178,726.97",PSL PLACEMENTS,EXTERNAL AGENCIES AND BODIES,5902336516,1000075567,
07.01.2019,ENVIRONMENT AND LEISURE,MILTON KEYNES SURVEYS LTD,995.00,CAPITAL PS (LEISURE),CONSTRUCTION,5902336497,1000077138,
07.01.2019,ENVIRONMENT AND LEISURE,MILTON KEYNES SURVEYS LTD,995.00,CAPITAL PS (LEISURE),CONSTRUCTION,5902336592,1000077138,
07.01.2019,ENVIRONMENT AND LEISURE,LDA DESIGN CONSULTING LTD,"2,688.00",CAPITAL PS (LEISURE),CONSTRUCTION FEES  - EXTERNAL,5902336552,1000031830,
07.01.2019,ENVIRONMENT AND LEISURE,SEVENOAKS ENVIRONMENTAL CONSULTANCY LTD,"7,180.00",CAPITAL PS (LEISURE),CONSTRUCTION FEES  - EXTERNAL,5902336474,1000075742,
07.01.2019,ENVIRONMENT AND LEISURE,BELL PHILLIPS ARCHITECTS LTD,"8,680.00",CAPITAL PS (LEISURE),CONSTRUCTION FEES  - EXTERNAL,5902336467,1000069307,
07.01.2019,ENVIRONMENT AND LEISURE,BELL PHILLIPS ARCHITECTS LTD,"10,000.00",CAPITAL PS (LEISURE),CONSTRUCTION FEES  - EXTERNAL,5902336466,1000069307,
07.01.2019,ENVIRONMENT AND LEISURE,BELL PHILLIPS ARCHITECTS LTD,"16,950.00",CAPITAL PS (LEISURE),CONSTRUCTION FEES  - EXTERNAL,5902336469,1000069307,
07.01.2019,ENVIRONMENT DIRECTORATE,KENT COUNTY COUNCIL - LASER,659.96,BUSINESS CORE,ELECTRICITY,5902336599,1000012926,
07.01.2019,ENVIRONMENT DIRECTORATE,ARVAL UK LTD,558.90,CAR LEASING CTRL A/C,VEHICLE LEASING CHARGES,5902336555,1000079802,
07.01.2019,ENVIRONMENT DIRECTORATE,M H COACHWORKS & SONS LTD,"1,257.65",COMMERCIAL VEH CTRL A/C,VEHICLE REPAIRS & MAINTENANCE,5902336495,1000033495,
07.01.2019,ENVIRONMENT DIRECTORATE,CALLOW MASTER LOCKSMITHS,464.28,ENGINEERING CRAFTS,OTHER CONTRACTORS,5902336682,11179552,
07.01.2019,ENVIRONMENT DIRECTORATE,GREENHAM TRADING LTD,323.20,ESTATE CLEANING-GENERAL,MATERIALS,5902336528,1000006610,
07.01.2019,ENVIRONMENT DIRECTORATE,GREENHAM TRADING LTD,426.52,ESTATE CLEANING-GENERAL,MATERIALS,5902336525,1000006610,
07.01.2019,ENVIRONMENT DIRECTORATE,GREENHAM TRADING LTD,463.34,ESTATE CLEANING-GENERAL,MATERIALS,5902336524,1000006610,
07.01.2019,ENVIRONMENT DIRECTORATE,AGENTIS WORKWEAR LTD,512.00,MANAGEMENT TEAM,"CLOTHING, UNIFORMS & LAUNDRY",5902336531,1000065561,
07.01.2019,ENVIRONMENT DIRECTORATE,FUTURE GARMENTS LTD T/A EUROX,"2,630.90",MANAGEMENT TEAM,"CLOTHING, UNIFORMS & LAUNDRY",5902336580,1000080983,
07.01.2019,ENVIRONMENT DIRECTORATE,GRAFTON MERCHANTING GB LTD,322.20,PARKS TECH UNIT (PREMISES),BUILDING R&M,5902336645,11296147,
07.01.2019,ENVIRONMENT DIRECTORATE,CABLE TEST LTD,275.32,PUBLIC LIGHTING,SOUTHWARK DIRECT CHARGES,5902336651,1000079183,
07.01.2019,ENVIRONMENT DIRECTORATE,CABLE TEST LTD,413.00,PUBLIC LIGHTING,SOUTHWARK DIRECT CHARGES,5902336652,1000079183,
07.01.2019,ENVIRONMENT DIRECTORATE,CABLE TEST LTD,593.84,PUBLIC LIGHTING,SOUTHWARK DIRECT CHARGES,5902336653,1000079183,
07.01.2019,ENVIRONMENT DIRECTORATE,CABLE TEST LTD,"2,032.00",PUBLIC LIGHTING,SOUTHWARK DIRECT CHARGES,5902336654,1000079183,
07.01.2019,F & C S EXCLUDING CORPORATE BUDGETS,DUE NORTH LTD,"11,200.00",ANTI-FRAUD AND INVESTIGATIONS,COMMS & COMPUTING CONTRACT CHARGES,5902336532,1000076012,
07.01.2019,HOUSING HRA,JOHN BURKE ASSOCIATES,"1,504.00",CAPITAL PS (HRA),CONSTRUCTION FEES - INTERNAL,5902336479,1000026411,
07.01.2019,HOUSING HRA,JOHN BURKE ASSOCIATES,"2,016.00",CAPITAL PS (HRA),CONSTRUCTION FEES - INTERNAL,5902336478,1000026411,
07.01.2019,HOUSING HRA,SALTASH ENTERPRISES LTD,"22,116.77",CAPITAL PS (HRA),CONSTRUCTION MAIN CONTRACT -CERTIFICATED,2102906375,4013605,
07.01.2019,HOUSING HRA,CARTER JONAS LLP,"-1,200.00",CAPITAL PS (HRA),LAND & BUILDINGS ACQUISITION FEES,5902337274,1000073124,
07.01.2019,HOUSING HRA,CARTER JONAS LLP,"1,200.00",CAPITAL PS (HRA),LAND & BUILDINGS ACQUISITION FEES,5902336375,1000073124,
07.01.2019,HOUSING STRATEGY AND OPTIONS,LONDON & QUADRANT,500.00,HOMELESS & HOUSING OPTIONS MGT,EXTERNAL AGENCIES AND BODIES,5902336536,1000045704,
07.01.2019,HOUSING STRATEGY AND OPTIONS,MIDLAND RELOCATION LTD,"2,500.00",HOMELESS PROJECTS,GRANTS,5902336649,1000081577,
07.01.2019,LEISURE DIRECTORATE,NPOWER LTD,330.88,CEMETERIES,ELECTRICITY,5902336544,1000078994,
07.01.2019,LEISURE DIRECTORATE,NPOWER LTD,372.82,CEMETERIES,ELECTRICITY,5902336547,1000078994,
07.01.2019,LEISURE DIRECTORATE,RANDALL SHAW BILLINGHAM LTD,"3,185.00",CREMATORIUM,BUILDING R&M,5902336539,1000057014,
07.01.2019,LEISURE DIRECTORATE,SECURE-A-FIELD LTD,550.80,DULWICH AREA TEAM,OTHER R&M,5902336520,1000072371,
07.01.2019,LEISURE DIRECTORATE,KENT COUNTY COUNCIL - LASER,343.52,PECKHAM ADVENTURE PLAY,ELECTRICITY,5902336510,1000012926,
07.01.2019,LEISURE DIRECTORATE,KENT COUNTY COUNCIL - LASER,397.88,PECKHAM ADVENTURE PLAY,ELECTRICITY,5902336509,1000012926,
07.01.2019,LEISURE DIRECTORATE,ASKEWS & HOLTS LIBRARY SERVICES LTD,"11,839.46",STOCK SERVICES,BOOKS & PUBLICATIONS,5902336484,1494168,
07.01.2019,MODERNISATION HGF,CAMPBELL-MCLOUGHLIN LTD,400.00,MEMBER DEVELOPMENT,TRAINING,5902336460,1000081802,
07.01.2019,MODERNISATION HGF,KENT COUNTY COUNCIL - LASER,"8,249.64",QUEENS RD 1 (BLOCK F),ELECTRICITY,5902336477,1000012926,
07.01.2019,PROPERTY SERVICES,ALI EKBER BULUT,"1,750.00",CPHA  MANAGED PROPERTIES,RENTS,2102906483,1000080799,
07.01.2019,PUBLIC HEALTH,WORKMAN LLP,720.18,22 SHAND STREET,SERVICE CHARGES,2102906471,1000063692,
07.01.2019,PUBLIC HEALTH,WORKMAN LLP,866.57,22 SHAND STREET,SERVICE CHARGES,2102906473,1000063692,
07.01.2019,PUBLIC HEALTH,WORKMAN LLP,866.57,22 SHAND STREET,SERVICE CHARGES,2102906475,1000063692,
07.01.2019,PUBLIC HEALTH,WORKMAN LLP,866.57,22 SHAND STREET,SERVICE CHARGES,2102906477,1000063692,
07.01.2019,PUBLIC HEALTH,WORKMAN LLP,866.57,22 SHAND STREET,SERVICE CHARGES,2102906479,1000063692,
07.01.2019,PUBLIC HEALTH,WORKMAN LLP,866.57,22 SHAND STREET,SERVICE CHARGES,2102906481,1000063692,
07.01.2019,PUBLIC HEALTH,KENT COMMUNITY HEALTH NHS TRUST,254.43,SEXUAL HEALTH - STI,EXTERNAL AGENCIES AND BODIES,5902336507,1000073298,
07.01.2019,PUBLIC HEALTH,UNIVERSITY HOSPITAL BRISTOL,279.45,SEXUAL HEALTH - STI,EXTERNAL AGENCIES AND BODIES,5902336501,1000075525,
07.01.2019,PUBLIC HEALTH,EAST SUSSEX HEALTHCARE NHS TRUST,284.21,SEXUAL HEALTH - STI,EXTERNAL AGENCIES AND BODIES,5902336506,1000060406,
07.01.2019,PUBLIC HEALTH,NORTH MIDDLESEX UNIVERSITY HOSPITAL,291.22,SEXUAL HEALTH - STI,EXTERNAL AGENCIES AND BODIES,5902336454,1000077305,
07.01.2019,PUBLIC HEALTH,OXFORD UNIVERSITY HOSPITALS NHS TRUST,543.00,SEXUAL HEALTH - STI,EXTERNAL AGENCIES AND BODIES,5902336461,1000066147,
07.01.2019,RESIDENT SERVICES,PINNACLE POWER LTD,"3,742.29",PRIVATE SERVICE CHARGES,SERVICE CHARGES,5902336492,1000081494,
07.01.2019,RESIDENT SERVICES,PINNACLE POWER LTD,"3,742.29",PRIVATE SERVICE CHARGES,SERVICE CHARGES,5902336493,1000081494,
07.01.2019,RESIDENT SERVICES,PINNACLE POWER LTD,"7,484.58",PRIVATE SERVICE CHARGES,SERVICE CHARGES,5902336494,1000081494,
07.01.2019,SOUTHWARK BUILDING SERVICES,N & C BUILDING MATERIALS,402.77,R & M OVERHEADS,MATERIALS,5902336707,1005586,
07.01.2019,SOUTHWARK BUILDING SERVICES,TRAVIS PERKINS,259.80,STORES/LOGISTICS,CREDITORS -GR/IR CLEARING ACCOUNT,5902336573,1514319,
07.01.2019,SOUTHWARK BUILDING SERVICES,TRAVIS PERKINS,261.54,STORES/LOGISTICS,CREDITORS -GR/IR CLEARING ACCOUNT,5902336583,1514319,
07.01.2019,SOUTHWARK BUILDING SERVICES,TRAVIS PERKINS,285.00,STORES/LOGISTICS,CREDITORS -GR/IR CLEARING ACCOUNT,5902336583,1514319,
07.01.2019,SOUTHWARK BUILDING SERVICES,TRAVIS PERKINS,285.00,STORES/LOGISTICS,CREDITORS -GR/IR CLEARING ACCOUNT,5902336583,1514319,
07.01.2019,SOUTHWARK BUILDING SERVICES,TRAVIS PERKINS,286.00,STORES/LOGISTICS,CREDITORS -GR/IR CLEARING ACCOUNT,5902336573,1514319,
07.01.2019,SOUTHWARK BUILDING SERVICES,TRAVIS PERKINS,288.72,STORES/LOGISTICS,CREDITORS -GR/IR CLEARING ACCOUNT,5902336583,1514319,
07.01.2019,SOUTHWARK BUILDING SERVICES,"BROWNING, JONES & MORRIS LTD",299.75,STORES/LOGISTICS,CREDITORS -GR/IR CLEARING ACCOUNT,5902336701,1027429,
07.01.2019,SOUTHWARK BUILDING SERVICES,TRAVIS PERKINS,305.40,STORES/LOGISTICS,CREDITORS -GR/IR CLEARING ACCOUNT,5902336573,1514319,
07.01.2019,SOUTHWARK BUILDING SERVICES,CALLOW MASTER LOCKSMITHS,326.76,STORES/LOGISTICS,CREDITORS -GR/IR CLEARING ACCOUNT,5902336610,11179552,
07.01.2019,SOUTHWARK BUILDING SERVICES,TRAVIS PERKINS,335.60,STORES/LOGISTICS,CREDITORS -GR/IR CLEARING ACCOUNT,5902336583,1514319,
07.01.2019,SOUTHWARK BUILDING SERVICES,TRAVIS PERKINS,340.01,STORES/LOGISTICS,CREDITORS -GR/IR CLEARING ACCOUNT,5902336583,1514319,
07.01.2019,SOUTHWARK BUILDING SERVICES,TRAVIS PERKINS,342.00,STORES/LOGISTICS,CREDITORS -GR/IR CLEARING ACCOUNT,5902336573,1514319,
07.01.2019,SOUTHWARK BUILDING SERVICES,CALLOW MASTER LOCKSMITHS,357.70,STORES/LOGISTICS,CREDITORS -GR/IR CLEARING ACCOUNT,5902336610,11179552,
07.01.2019,SOUTHWARK BUILDING SERVICES,TRAVIS PERKINS,358.00,STORES/LOGISTICS,CREDITORS -GR/IR CLEARING ACCOUNT,5902336583,1514319,
07.01.2019,SOUTHWARK BUILDING SERVICES,TRAVIS PERKINS,361.90,STORES/LOGISTICS,CREDITORS -GR/IR CLEARING ACCOUNT,5902336583,1514319,
07.01.2019,SOUTHWARK BUILDING SERVICES,N & C BUILDING MATERIALS,373.00,STORES/LOGISTICS,CREDITORS -GR/IR CLEARING ACCOUNT,5902336709,1005586,
07.01.2019,SOUTHWARK BUILDING SERVICES,TRAVIS PERKINS,429.60,STORES/LOGISTICS,CREDITORS -GR/IR CLEARING ACCOUNT,5902336583,1514319,
07.01.2019,SOUTHWARK BUILDING SERVICES,TRAVIS PERKINS,432.00,STORES/LOGISTICS,CREDITORS -GR/IR CLEARING ACCOUNT,5902336583,1514319,
07.01.2019,SOUTHWARK BUILDING SERVICES,TRAVIS PERKINS,438.00,STORES/LOGISTICS,CREDITORS -GR/IR CLEARING ACCOUNT,5902336573,1514319,
07.01.2019,SOUTHWARK BUILDING SERVICES,N & C BUILDING MATERIALS,453.50,STORES/LOGISTICS,CREDITORS -GR/IR CLEARING ACCOUNT,5902336709,1005586,
07.01.2019,SOUTHWARK BUILDING SERVICES,TRAVIS PERKINS,486.60,STORES/LOGISTICS,CREDITORS -GR/IR CLEARING ACCOUNT,5902336573,1514319,
07.01.2019,SOUTHWARK BUILDING SERVICES,"BROWNING, JONES & MORRIS LTD",499.00,STORES/LOGISTICS,CREDITORS -GR/IR CLEARING ACCOUNT,5902336701,1027429,
07.01.2019,SOUTHWARK BUILDING SERVICES,TRAVIS PERKINS,515.27,STORES/LOGISTICS,CREDITORS -GR/IR CLEARING ACCOUNT,5902336583,1514319,
07.01.2019,SOUTHWARK BUILDING SERVICES,TRAVIS PERKINS,560.00,STORES/LOGISTICS,CREDITORS -GR/IR CLEARING ACCOUNT,5902336583,1514319,
07.01.2019,SOUTHWARK BUILDING SERVICES,TRAVIS PERKINS,567.20,STORES/LOGISTICS,CREDITORS -GR/IR CLEARING ACCOUNT,5902336583,1514319,
07.01.2019,SOUTHWARK BUILDING SERVICES,TRAVIS PERKINS,600.00,STORES/LOGISTICS,CREDITORS -GR/IR CLEARING ACCOUNT,5902336583,1514319,
07.01.2019,SOUTHWARK BUILDING SERVICES,TRAVIS PERKINS,610.00,STORES/LOGISTICS,CREDITORS -GR/IR CLEARING ACCOUNT,5902336583,1514319,
07.01.2019,SOUTHWARK BUILDING SERVICES,TRAVIS PERKINS,616.10,STORES/LOGISTICS,CREDITORS -GR/IR CLEARING ACCOUNT,5902336573,1514319,
07.01.2019,SOUTHWARK BUILDING SERVICES,TRAVIS PERKINS,618.20,STORES/LOGISTICS,CREDITORS -GR/IR CLEARING ACCOUNT,5902336573,1514319,
07.01.2019,SOUTHWARK BUILDING SERVICES,TRAVIS PERKINS,648.00,STORES/LOGISTICS,CREDITORS -GR/IR CLEARING ACCOUNT,5902336573,1514319,
07.01.2019,SOUTHWARK BUILDING SERVICES,TRAVIS PERKINS,684.50,STORES/LOGISTICS,CREDITORS -GR/IR CLEARING ACCOUNT,5902336573,1514319,
07.01.2019,SOUTHWARK BUILDING SERVICES,TRAVIS PERKINS,693.00,STORES/LOGISTICS,CREDITORS -GR/IR CLEARING ACCOUNT,5902336583,1514319,
07.01.2019,SOUTHWARK BUILDING SERVICES,TRAVIS PERKINS,750.00,STORES/LOGISTICS,CREDITORS -GR/IR CLEARING ACCOUNT,5902336583,1514319,
07.01.2019,SOUTHWARK BUILDING SERVICES,TRAVIS PERKINS,769.58,STORES/LOGISTICS,CREDITORS -GR/IR CLEARING ACCOUNT,5902336583,1514319,
07.01.2019,SOUTHWARK BUILDING SERVICES,CALLOW MASTER LOCKSMITHS,837.07,STORES/LOGISTICS,CREDITORS -GR/IR CLEARING ACCOUNT,5902336610,11179552,
07.01.2019,SOUTHWARK BUILDING SERVICES,TRAVIS PERKINS,"1,337.40",STORES/LOGISTICS,CREDITORS -GR/IR CLEARING ACCOUNT,5902336583,1514319,
07.01.2019,SOUTHWARK BUILDING SERVICES,TRAVIS PERKINS,"1,416.00",STORES/LOGISTICS,CREDITORS -GR/IR CLEARING ACCOUNT,5902336583,1514319,
07.01.2019,SOUTHWARK BUILDING SERVICES,TRAVIS PERKINS,"1,522.00",STORES/LOGISTICS,CREDITORS -GR/IR CLEARING ACCOUNT,5902336573,1514319,
07.01.2019,SOUTHWARK BUILDING SERVICES,N & C BUILDING MATERIALS,"1,773.20",STORES/LOGISTICS,CREDITORS -GR/IR CLEARING ACCOUNT,5902336709,1005586,
07.01.2019,SOUTHWARK BUILDING SERVICES,TRAVIS PERKINS,"2,042.40",STORES/LOGISTICS,CREDITORS -GR/IR CLEARING ACCOUNT,5902336583,1514319,
07.01.2019,SOUTHWARK BUILDING SERVICES,TRAVIS PERKINS,"2,205.00",STORES/LOGISTICS,CREDITORS -GR/IR CLEARING ACCOUNT,5902336583,1514319,
07.01.2019,SOUTHWARK BUILDING SERVICES,TRAVIS PERKINS,"2,846.30",STORES/LOGISTICS,CREDITORS -GR/IR CLEARING ACCOUNT,5902336573,1514319,
07.01.2019,SOUTHWARK BUILDING SERVICES,N & C BUILDING MATERIALS,"3,067.80",STORES/LOGISTICS,CREDITORS -GR/IR CLEARING ACCOUNT,5902336709,1005586,
07.01.2019,SOUTHWARK BUILDING SERVICES,"BROWNING, JONES & MORRIS LTD","3,120.00",STORES/LOGISTICS,CREDITORS -GR/IR CLEARING ACCOUNT,5902336696,1027429,
07.01.2019,SOUTHWARK BUILDING SERVICES,TRAVIS PERKINS,"3,353.60",STORES/LOGISTICS,CREDITORS -GR/IR CLEARING ACCOUNT,5902336573,1514319,
07.01.2019,SOUTHWARK BUILDING SERVICES,TRAVIS PERKINS,"5,692.60",STORES/LOGISTICS,CREDITORS -GR/IR CLEARING ACCOUNT,5902336583,1514319,
07.01.2019,SOUTHWARK BUILDING SERVICES,GRAFTON MERCHANTING GB LTD,332.93,WALWORTH VOIDS - WET TRADER,"CLOTHING, UNIFORMS & LAUNDRY",5902336681,11296147,
08.01.2019,ADULT SOCIAL CARE,VICTORIA FLOWERS,384.00,APPOINTEESHIPS,OTHER PAYMENTS FOR CLIENTS,2102906705,1000068739,
08.01.2019,ADULT SOCIAL CARE,PHS GROUP PLC,388.59,MH PREMISES COSTS,WASTE DISPOSAL CONTRACT,5902337098,1851993,
08.01.2019,ADULT SOCIAL CARE,RESOURCES FOR AUTISM,266.00,SPECIALIST CARE,SECTION 17 PAYMENTS TO AGENCIES/CARERS,5902337024,1000062540,
08.01.2019,ADULT SOCIAL CARE,RESOURCES FOR AUTISM,342.00,SPECIALIST CARE,SECTION 17 PAYMENTS TO AGENCIES/CARERS,5902337063,1000062540,
08.01.2019,ADULT SOCIAL CARE,RESOURCES FOR AUTISM,418.00,SPECIALIST CARE,SECTION 17 PAYMENTS TO AGENCIES/CARERS,5902337052,1000062540,
08.01.2019,ADULT SOCIAL CARE,RESOURCES FOR AUTISM,456.00,SPECIALIST CARE,SECTION 17 PAYMENTS TO AGENCIES/CARERS,5902337030,1000062540,
08.01.2019,ADULT SOCIAL CARE,RESOURCES FOR AUTISM,532.00,SPECIALIST CARE,SECTION 17 PAYMENTS TO AGENCIES/CARERS,5902337055,1000062540,
08.01.2019,ADULT SOCIAL CARE,KIDS,904.00,SPECIALIST CARE,SECTION 17 PAYMENTS TO AGENCIES/CARERS,5902337134,1000030036,
08.01.2019,ADULT SOCIAL CARE,CONTACT PROFESSIONALS,285.00,TRANSITIONS 14-18YRS,SECTION 17 PAYMENTS TO AGENCIES/CARERS,5902337147,1000057263,
08.01.2019,ADULT SOCIAL CARE,RESOURCES FOR AUTISM,380.00,TRANSITIONS 14-18YRS,SECTION 17 PAYMENTS TO AGENCIES/CARERS,5902337088,1000062540,
08.01.2019,ADULT SOCIAL CARE,RESOURCES FOR AUTISM,636.50,TRANSITIONS 14-18YRS,SECTION 17 PAYMENTS TO AGENCIES/CARERS,5902337109,1000062540,
08.01.2019,ADULT SOCIAL CARE,CARE O LINE,"1,235.00",TRANSITIONS 14-18YRS,SECTION 17 PAYMENTS TO AGENCIES/CARERS,5902337115,11241743,
08.01.2019,ASSET MANAGEMENT,CLOSOMAT LTD,"3,847.00",ADAPTATIONS,BUILDING R&M,5902336803,1793628,
08.01.2019,ASSET MANAGEMENT,LONDON TOOLS LIMITED,295.00,DESIGN & DELIVERY,"CLOTHING, UNIFORMS & LAUNDRY",5902336915,1000003017,
08.01.2019,ASSET MANAGEMENT,THE CITY SURVEYS GROUP LTD,"2,505.00",DEVELOPMENT DELIVERY,PROFESSIONAL FEES,5902336841,1000081624,
08.01.2019,CENTRAL FUNCTIONS,TANFIELD CHAMBERS,"10,000.00",HOME OWNERSHIP,LEGAL FEES & COURT COSTS,5902336774,1000078320,
08.01.2019,CENTRAL FUNCTIONS,MERLIN DMS LTD,496.72,HOME OWNERSHIP,OFFICE EXPENSES,5902336760,1000062300,
08.01.2019,CENTRAL FUNCTIONS,MERLIN DMS LTD,709.17,HOME OWNERSHIP,OFFICE EXPENSES,5902336765,1000062300,
08.01.2019,CENTRAL FUNCTIONS,COLLABORATIVE CHANGE LTD,"1,375.00",HOME OWNERSHIP,TRAINING,5902337187,1000081462,
08.01.2019,CHIEF EXECUTIVE'S OFFICE,ARCO ACADEMY,"-3,480.75",YOUTH FUND EMPLOYMENT,GRANTS,2102907531,1000080706,
08.01.2019,CHIEF EXECUTIVE'S OFFICE,ARCO ACADEMY,"3,480.75",YOUTH FUND EMPLOYMENT,GRANTS,2102907530,1000080706,
08.01.2019,CHILDREN'S SERVICES,PETE CRONIN PHOTOGRAPHY & VIDEO,775.00,ADOPTION PLACEMENTS & INTER AGENCY,EXTERNAL AGENCIES AND BODIES,5902336883,1000049115,
08.01.2019,CHILDREN'S SERVICES,REDACTED PERSONAL DATA,480.00,ADOPTION PLACEMENTS & INTER AGENCY,PAYMENTS TO CARERS,REDACTED,REDACTED,
08.01.2019,CHILDREN'S SERVICES,ALISON BICKMORE LTD,360.00,ADOPTION REFORM GRANT (PART B),PROFESSIONAL FEES,5902337051,1000081842,
08.01.2019,CHILDREN'S SERVICES,DECUS LTD,"4,950.00",ASSISSTANT DIRECTOR (CHILDREN),PROFESSIONAL FEES,5902337182,1000080190,
08.01.2019,CHILDREN'S SERVICES,ZOE BARTHOLOMEW T/A APOLLO TAXIS GRAVESEND LTD,"1,800.00",CARE GRPS  1 TO 3,CAB FARES,5902337007,1000082032,
08.01.2019,CHILDREN'S SERVICES,CONTACT PROFESSIONALS,304.00,CARE PRACTICE GROUP SET C,OTHER PAYMENTS FOR CLIENTS,5902337175,1000057263,
08.01.2019,CHILDREN'S SERVICES,ORCHID CELLMARK LTD,324.00,CARE PRACTICE GROUP SET C,OTHER PAYMENTS FOR CLIENTS,5902337000,1000078050,
08.01.2019,CHILDREN'S SERVICES,CONTACT PROFESSIONALS,385.85,CARE PRACTICE GROUP SET C,OTHER PAYMENTS FOR CLIENTS,5902337179,1000057263,
08.01.2019,CHILDREN'S SERVICES,TAYLOR CONWAY LTD,493.75,CATCH 22 INNOVATION GRANT,TRAINING,5902336991,1000080955,
08.01.2019,CHILDREN'S SERVICES,ISABELLE GRAVENSTEIN T/A REVIVAL,660.00,CENTRAL SUPPORT,OTHER PAYMENTS FOR CLIENTS,5902337138,1000027424,
08.01.2019,CHILDREN'S SERVICES,BUSOLA GIWA,"2,101.60",CLA TEAM SAFEGUARDING,PROFESSIONAL FEES,5902337256,1000078885,
08.01.2019,CHILDREN'S SERVICES,BUSOLA GIWA,"3,492.75",CLA TEAM SAFEGUARDING,PROFESSIONAL FEES,5902337249,1000078885,
08.01.2019,CHILDREN'S SERVICES,UCKFIELD COLLEGE,643.33,DISABILITY & HIV,EXTERNAL AGENCIES AND BODIES,5902337118,1000082043,
08.01.2019,CHILDREN'S SERVICES,AVOCET SOCIAL CARE LTD,"3,600.00",DISABILITY & HIV,PROFESSIONAL FEES,5902337277,1000071940,
08.01.2019,CHILDREN'S SERVICES,AVOCET SOCIAL CARE LTD,"4,250.00",DISABILITY & HIV,PROFESSIONAL FEES,5902337123,1000071940,
08.01.2019,CHILDREN'S SERVICES,OPTIMUM FOCUS COMPANY LTD,630.50,FAMILY GROUP CONFERENCES,EXTERNAL AGENCIES AND BODIES,5902336875,1000081322,
08.01.2019,CHILDREN'S SERVICES,OPTIMUM FOCUS COMPANY LTD,641.33,FAMILY GROUP CONFERENCES,EXTERNAL AGENCIES AND BODIES,5902336879,1000081322,
08.01.2019,CHILDREN'S SERVICES,OPTIMUM FOCUS COMPANY LTD,704.17,FAMILY GROUP CONFERENCES,EXTERNAL AGENCIES AND BODIES,5902336872,1000081322,
08.01.2019,CHILDREN'S SERVICES,PRIME PRODUCTION LTD,622.25,FINANCE,TRANSLATION SERVICES,5902337131,1000070086,
08.01.2019,CHILDREN'S SERVICES,STUART HAYTER,280.00,GOVERNOR TRAINING,CONSULTANTS SERVICES,5902336475,1000082057,
08.01.2019,CHILDREN'S SERVICES,STUART HAYTER,280.00,GOVERNOR TRAINING,CONSULTANTS SERVICES,5902336491,1000082057,
08.01.2019,CHILDREN'S SERVICES,THE LITERACY TREE LTD,475.00,NEWLY QUALIFIED TEACHERS,TRAINING,5902336861,1000069542,
08.01.2019,CHILDREN'S SERVICES,"THE SALVATION ARMY, WILLIAM BOOTH NURSERY & AFTER SCHOOL CLUB","5,409.00",NURSERY ED GRANT 3 YEAR OLD,GRANTS,2102906378,1000031051,
08.01.2019,CHILDREN'S SERVICES,REDACTED PERSONAL DATA,940.49,SPECIAL GUARDIANSHIP,PAYMENTS TO CARERS,REDACTED,REDACTED,
08.01.2019,CHILDREN'S SERVICES,REDACTED PERSONAL DATA,300.00,UNACCOMPANIED ASYLUM CHILDREN 16-17,OTHER PAYMENTS FOR CLIENTS,REDACTED,REDACTED,
08.01.2019,COMMUNITIES,BROWNING EST MGMT ASSN,"156,819.25",BROWNING EMB,M&M ALLOWANCE CO-OPS,5902336855,1000059362,
08.01.2019,COMMUNITIES,GLOUCESTER GROVE ESTATE TMO,"9,686.00",GLOUCESTER GROVE ESTATE,M&M ALLOWANCE CO-OPS,5902336859,1000073072,
08.01.2019,COMMUNITIES,STYLES HOUSE TMO,"16,253.00",STYLES HOUSE TMO,M&M ALLOWANCE CO-OPS,5902336860,1000072012,
08.01.2019,CUSTOMER EXPERIENCE,POSTURITE (UK) LTD,667.83,COMPLAINTS,FURNITURE PURCHASE & REPAIR,5902336834,11015468,
08.01.2019,CUSTOMER EXPERIENCE HGF,IMPERIAL COLLEGE PROJECTS LTD,368.00,CORONER'S,PROFESSIONAL FEES,5902336963,1000080106,
08.01.2019,CUSTOMER EXPERIENCE HGF,IMPERIAL COLLEGE PROJECTS LTD,368.00,CORONER'S,PROFESSIONAL FEES,5902336967,1000080106,
08.01.2019,CUSTOMER EXPERIENCE HGF,IMPERIAL COLLEGE PROJECTS LTD,368.00,CORONER'S,PROFESSIONAL FEES,5902336972,1000080106,
08.01.2019,CUSTOMER EXPERIENCE HGF,IMPERIAL COLLEGE PROJECTS LTD,404.00,CORONER'S,PROFESSIONAL FEES,5902336970,1000080106,
08.01.2019,CUSTOMER EXPERIENCE HGF,IMPERIAL COLLEGE PROJECTS LTD,408.00,CORONER'S,PROFESSIONAL FEES,5902336979,1000080106,
08.01.2019,CUSTOMER EXPERIENCE HGF,SG PATH LTD,415.80,CORONER'S,PROFESSIONAL FEES,5902337010,1000077883,
08.01.2019,CUSTOMER EXPERIENCE HGF,IMPERIAL COLLEGE PROJECTS LTD,464.00,CORONER'S,PROFESSIONAL FEES,5902336973,1000080106,
08.01.2019,CUSTOMER EXPERIENCE HGF,SG PATH LTD,595.90,CORONER'S,PROFESSIONAL FEES,5902336993,1000077883,
08.01.2019,ENVIRONMENT AND LEISURE,CAMBERWELL AFTER SCHOOL PROJECT,"3,986.00",CAPITAL PS (LEISURE),CAPITAL GRANTS,5902335961,11154503,
08.01.2019,ENVIRONMENT AND LEISURE,1ST LINE DEFENCE LTD,"20,962.00",CAPITAL PS (LEISURE),CONSTR'N SUB CONTRACT - NON CERTIFICATED,5902336835,1000074361,
08.01.2019,ENVIRONMENT AND LEISURE,THOMAS FORD AND PARTNERS,500.00,CAPITAL PS (LEISURE),CONSTRUCTION FEES  - EXTERNAL,5902337265,1000037686,
08.01.2019,ENVIRONMENT AND LEISURE,ARGOS BUSINESS SOLUTIONS LTD,797.84,CAPITAL PS (LEISURE),CONSTRUCTION FEES  - EXTERNAL,5902336809,1000001734,
08.01.2019,ENVIRONMENT AND LEISURE,BAILY GARNER,"1,008.00",CAPITAL PS (LEISURE),CONSTRUCTION FEES  - EXTERNAL,5902336842,1000033754,
08.01.2019,ENVIRONMENT AND LEISURE,THOMAS FORD AND PARTNERS,"3,700.00",CAPITAL PS (LEISURE),CONSTRUCTION FEES  - EXTERNAL,5902337276,1000037686,
08.01.2019,ENVIRONMENT DIRECTORATE,M H COACHWORKS & SONS LTD,"1,483.80",COMMERCIAL VEH CTRL A/C,VEHICLE REPAIRS & MAINTENANCE,5902336865,1000033495,
08.01.2019,ENVIRONMENT DIRECTORATE,LONDON TOOLS LIMITED,345.00,ENGINEERING CRAFTS,EQUIPMENT PURCHASE & REPAIR,5902337204,1000003017,
08.01.2019,ENVIRONMENT DIRECTORATE,LONDON TOOLS LIMITED,295.00,ENGINEERING CRAFTS,MATERIALS,5902337173,1000003017,
08.01.2019,ENVIRONMENT DIRECTORATE,LONDON TOOLS LIMITED,320.00,ENGINEERING CRAFTS,MATERIALS,5902337268,1000003017,
08.01.2019,ENVIRONMENT DIRECTORATE,LONDON TOOLS LIMITED,339.40,ENGINEERING CRAFTS,MATERIALS,5902337226,1000003017,
08.01.2019,ENVIRONMENT DIRECTORATE,LONDON TOOLS LIMITED,490.00,ENGINEERING CRAFTS,MATERIALS,5902337184,1000003017,
08.01.2019,ENVIRONMENT DIRECTORATE,LONDON TOOLS LIMITED,740.00,ENGINEERING CRAFTS,OP LEASE/HIRE CHARGES:PLANT/EQUIP/FURNIT,5902337181,1000003017,
08.01.2019,ENVIRONMENT DIRECTORATE,LONDON TOOLS LIMITED,370.00,ESTATES  (NORTH WEST),MATERIALS,5902336926,1000003017,
08.01.2019,ENVIRONMENT DIRECTORATE,LONDON TOOLS LIMITED,550.00,JETS SOUTH TEAM,MATERIALS,5902337178,1000003017,
08.01.2019,ENVIRONMENT DIRECTORATE,EASY-GATE LTD,"1,505.00",PARKS TECH UNIT (PREMISES),BUILDING R&M,5902336601,1000082137,
08.01.2019,ENVIRONMENT DIRECTORATE,LONDON TOOLS LIMITED,"2,482.20",PARKS TECH UNIT (PREMISES),BUILDING R&M,5902337257,1000003017,
08.01.2019,ENVIRONMENT DIRECTORATE,LONDON TOOLS LIMITED,770.00,PEST CONTROL,MATERIALS,5902336918,1000003017,
08.01.2019,ENVIRONMENT DIRECTORATE,LONDON TOOLS LIMITED,780.00,PEST CONTROL,MATERIALS,5902337275,1000003017,
08.01.2019,ENVIRONMENT DIRECTORATE,LONDON TOOLS LIMITED,365.00,PUBLIC LIGHTING,EQUIPMENT PURCHASE & REPAIR,5902337155,1000003017,
08.01.2019,ENVIRONMENT DIRECTORATE,LONDON TOOLS LIMITED,485.00,PUBLIC LIGHTING,EQUIPMENT PURCHASE & REPAIR,5902337155,1000003017,
08.01.2019,ENVIRONMENT DIRECTORATE,LONDON TOOLS LIMITED,506.00,PUBLIC LIGHTING,EQUIPMENT PURCHASE & REPAIR,5902337186,1000003017,
08.01.2019,ENVIRONMENT DIRECTORATE,LONDON TOOLS LIMITED,600.00,PUBLIC LIGHTING,EQUIPMENT PURCHASE & REPAIR,5902337177,1000003017,
08.01.2019,ENVIRONMENT DIRECTORATE,LONDON TOOLS LIMITED,"1,012.00",PUBLIC LIGHTING,EQUIPMENT PURCHASE & REPAIR,5902337189,1000003017,
08.01.2019,ENVIRONMENT DIRECTORATE,LONDON TOOLS LIMITED,"1,200.00",PUBLIC LIGHTING,EQUIPMENT PURCHASE & REPAIR,5902336821,1000003017,
08.01.2019,ENVIRONMENT DIRECTORATE,URBIS SCHREDER LTD,922.62,PUBLIC LIGHTING,MATERIALS,5902336365,1087958,
08.01.2019,ENVIRONMENT DIRECTORATE,LONDON TOOLS LIMITED,523.40,PUBLIC LIGHTING,OP LEASE/HIRE CHARGES:PLANT/EQUIP/FURNIT,5902337181,1000003017,
08.01.2019,ENVIRONMENT DIRECTORATE,LONDON TOOLS LIMITED,625.00,SIGN SHOP,MATERIALS,5902337248,1000003017,
08.01.2019,ENVIRONMENT DIRECTORATE,LONDON TOOLS LIMITED,800.00,SIGN SHOP,MATERIALS,5902336819,1000003017,
08.01.2019,ENVIRONMENT DIRECTORATE,SOUTHWARK NEWSPAPER LTD,276.00,STREET WORKS OVERHEADS,MARKETING & PUBLICITY SERVICES,5902337095,1556957,
08.01.2019,ENVIRONMENT DIRECTORATE,SOUTHWARK NEWSPAPER LTD,276.00,STREET WORKS OVERHEADS,MARKETING & PUBLICITY SERVICES,5902337124,1556957,
08.01.2019,ENVIRONMENT DIRECTORATE,SOUTHWARK NEWSPAPER LTD,276.00,STREET WORKS OVERHEADS,MARKETING & PUBLICITY SERVICES,5902337149,1556957,
08.01.2019,ENVIRONMENT DIRECTORATE,SOUTHWARK NEWSPAPER LTD,276.00,STREET WORKS OVERHEADS,MARKETING & PUBLICITY SERVICES,5902337158,1556957,
08.01.2019,ENVIRONMENT DIRECTORATE,SOUTHWARK NEWSPAPER LTD,288.00,STREET WORKS OVERHEADS,MARKETING & PUBLICITY SERVICES,5902337062,1556957,
08.01.2019,ENVIRONMENT DIRECTORATE,SOUTHWARK NEWSPAPER LTD,288.00,STREET WORKS OVERHEADS,MARKETING & PUBLICITY SERVICES,5902337078,1556957,
08.01.2019,ENVIRONMENT DIRECTORATE,SOUTHWARK NEWSPAPER LTD,288.00,STREET WORKS OVERHEADS,MARKETING & PUBLICITY SERVICES,5902337083,1556957,
08.01.2019,ENVIRONMENT DIRECTORATE,SOUTHWARK NEWSPAPER LTD,288.00,STREET WORKS OVERHEADS,MARKETING & PUBLICITY SERVICES,5902337090,1556957,
08.01.2019,ENVIRONMENT DIRECTORATE,SOUTHWARK NEWSPAPER LTD,288.00,STREET WORKS OVERHEADS,MARKETING & PUBLICITY SERVICES,5902337099,1556957,
08.01.2019,ENVIRONMENT DIRECTORATE,SOUTHWARK NEWSPAPER LTD,288.00,STREET WORKS OVERHEADS,MARKETING & PUBLICITY SERVICES,5902337144,1556957,
08.01.2019,ENVIRONMENT DIRECTORATE,SOUTHWARK NEWSPAPER LTD,288.00,STREET WORKS OVERHEADS,MARKETING & PUBLICITY SERVICES,5902337153,1556957,
08.01.2019,ENVIRONMENT DIRECTORATE,SOUTHWARK NEWSPAPER LTD,288.00,STREET WORKS OVERHEADS,MARKETING & PUBLICITY SERVICES,5902337165,1556957,
08.01.2019,ENVIRONMENT DIRECTORATE,SOUTHWARK NEWSPAPER LTD,288.00,STREET WORKS OVERHEADS,MARKETING & PUBLICITY SERVICES,5902337170,1556957,
08.01.2019,ENVIRONMENT DIRECTORATE,SOUTHWARK NEWSPAPER LTD,300.00,STREET WORKS OVERHEADS,MARKETING & PUBLICITY SERVICES,5902337066,1556957,
08.01.2019,ENVIRONMENT DIRECTORATE,SOUTHWARK NEWSPAPER LTD,300.00,STREET WORKS OVERHEADS,MARKETING & PUBLICITY SERVICES,5902337137,1556957,
08.01.2019,ENVIRONMENT DIRECTORATE,SOUTHWARK NEWSPAPER LTD,312.00,STREET WORKS OVERHEADS,MARKETING & PUBLICITY SERVICES,5902337071,1556957,
08.01.2019,ENVIRONMENT DIRECTORATE,SOUTHWARK NEWSPAPER LTD,312.00,STREET WORKS OVERHEADS,MARKETING & PUBLICITY SERVICES,5902337086,1556957,
08.01.2019,ENVIRONMENT DIRECTORATE,SOUTHWARK NEWSPAPER LTD,312.00,STREET WORKS OVERHEADS,MARKETING & PUBLICITY SERVICES,5902337110,1556957,
08.01.2019,ENVIRONMENT DIRECTORATE,SOUTHWARK NEWSPAPER LTD,408.00,STREET WORKS OVERHEADS,MARKETING & PUBLICITY SERVICES,5902337130,1556957,
08.01.2019,F & C S EXCLUDING CORPORATE BUDGETS,NORTHGATE PUBLIC SERVICES (UK) LTD,"8,396.46",ADMINISTRATIVE SUPPORT,POSTAGES,5902336810,1000037405,
08.01.2019,F & C S EXCLUDING CORPORATE BUDGETS,COLLABORATIVE CHANGE LTD,"3,300.00",COUNCIL TAX,OFFICE EXPENSES,5902337212,1000081462,
08.01.2019,HOUSING GENERAL FUND,AJM ADAPTIONS LTD,450.00,CAPITAL PS (HOUSING GF),CAPITAL GRANTS,5902336843,1000080297,
08.01.2019,HOUSING HRA,THE CITY SURVEYS GROUP LTD,"1,495.00",CAPITAL PS (HRA),CONSTRUCTION FEES  - EXTERNAL,5902336840,1000081624,
08.01.2019,HOUSING HRA,CALFORD SEADEN LLP,"2,085.92",CAPITAL PS (HRA),CONSTRUCTION FEES  - EXTERNAL,5902336851,1061592,
08.01.2019,HOUSING HRA,ENGIE REGENERATION (APOLLO) LTD,"114,424.78",CAPITAL PS (HRA),CONSTRUCTION MAIN CONTRACT -CERTIFICATED,2102906703,4000449,
08.01.2019,HOUSING HRA,PROPERTY LAW UK.NET LTD,"1,785.00",COMMERCIAL PROPERTIES,LEGAL & COURT FEES,CHAPS PAYMENT,CHAPS PAYMENT,
08.01.2019,LEISURE DIRECTORATE,KENT COUNTY COUNCIL - LASER,516.02,BURGESS AREA TEAM,ELECTRICITY,5902336825,1000012926,
08.01.2019,LEISURE DIRECTORATE,KENT COUNTY COUNCIL - LASER,802.97,BURGESS AREA TEAM,ELECTRICITY,5902336799,1000012926,
08.01.2019,LEISURE DIRECTORATE,KENT COUNTY COUNCIL - LASER,257.94,BURGESS SPORTS CENTRE,GAS,5902336808,1000012926,
08.01.2019,LEISURE DIRECTORATE,GLS EDUCATIONAL SUPPLIES LTD,442.74,PLAY NORTH,OP LEASE/HIRE CHARGES:PLANT/EQUIP/FURNIT,5902336837,1318282,
08.01.2019,LEISURE DIRECTORATE,COMPLETE TREE CARE LTD,721.50,TREES O'HEADS,CONSULTANTS SERVICES,5902336793,1000041410,
08.01.2019,LEISURE DIRECTORATE,COMPLETE TREE CARE LTD,731.25,TREES O'HEADS,CONSULTANTS SERVICES,5902336773,1000041410,
08.01.2019,MODERNISATION HGF,PLANET TRAINING LIMITED,"4,200.00",CORPORATE TRAINING BUDGETS,TRAINING,5902336848,1000064733,
08.01.2019,MODERNISATION HGF,PLANET TRAINING LIMITED,"9,000.00",CORPORATE TRAINING BUDGETS,TRAINING,5902336847,1000064733,
08.01.2019,PUBLIC HEALTH,KPMG LLP,"27,250.00",OKR MASTER PLANNING,PROFESSIONAL FEES,5902336839,1000080537,
08.01.2019,PUBLIC HEALTH,KINGSTON HOSPITAL NHS FOUNDATION TRUST,"2,144.85",SEXUAL HEALTH - STI,EXTERNAL AGENCIES AND BODIES,5902336783,1000076211,
08.01.2019,RESIDENT SERVICES,KNOWLEDGE EXCHANGE GROUP LTD,325.00,CENTRAL AREA RUNNING COSTS,TRAINING,5902336870,1000081232,
08.01.2019,RESIDENT SERVICES,KNOWLEDGE EXCHANGE GROUP LTD,975.00,CENTRAL AREA RUNNING COSTS,TRAINING,5902336868,1000081232,
08.01.2019,RESIDENT SERVICES,LONDON TOOLS LIMITED,265.00,SUPPORTED HOSTELS,MATERIALS,5902337107,1000003017,
08.01.2019,RESIDENT SERVICES,LONDON TOOLS LIMITED,278.00,SUPPORTED HOSTELS,MATERIALS,5902336884,1000003017,
08.01.2019,RESIDENT SERVICES,LONDON TOOLS LIMITED,325.00,SUPPORTED HOSTELS,MATERIALS,5902336884,1000003017,
08.01.2019,RESIDENT SERVICES,LONDON TOOLS LIMITED,354.00,SUPPORTED HOSTELS,MATERIALS,5902336884,1000003017,
08.01.2019,RESIDENT SERVICES,LONDON TOOLS LIMITED,347.50,TA HOSTELS,MATERIALS,5902337021,1000003017,
08.01.2019,RESIDENT SERVICES,LONDON TOOLS LIMITED,347.50,TA HOSTELS,MATERIALS,5902337085,1000003017,
08.01.2019,RESIDENT SERVICES,LONDON TOOLS LIMITED,790.00,TA HOSTELS,MATERIALS,5902337159,1000003017,
08.01.2019,SOUTHWARK BUILDING SERVICES,PEARSON GLAZING LIMITED,352.00,BOR & BKSIDE DAY TO DAY - GLAZIER,MATERIALS,5902336759,1891977,
08.01.2019,SOUTHWARK BUILDING SERVICES,LONDON TOOLS LIMITED,520.00,COMMERCIAL,MATERIALS,5902336941,1000003017,
08.01.2019,SOUTHWARK BUILDING SERVICES,LONDON TOOLS LIMITED,480.00,COMMUNAL GROUNDWORK TEAM,MATERIALS,5902336995,1000003017,
08.01.2019,SOUTHWARK BUILDING SERVICES,LONDON TOOLS LIMITED,285.60,DEPOT COSTS,MATERIALS,5902337012,1000003017,
08.01.2019,SOUTHWARK BUILDING SERVICES,LONDON TOOLS LIMITED,430.00,DEPOT COSTS,MATERIALS,5902337097,1000003017,
08.01.2019,SOUTHWARK BUILDING SERVICES,LONDON TOOLS LIMITED,280.00,ELECTRICAL TEAM - ELECTRICIAN,MATERIALS,5902337180,1000003017,
08.01.2019,SOUTHWARK BUILDING SERVICES,LONDON TOOLS LIMITED,805.00,ELECTRICAL TEAM - ELECTRICIAN,MATERIALS,5902336890,1000003017,
08.01.2019,SOUTHWARK BUILDING SERVICES,LONDON TOOLS LIMITED,270.00,R & M OVERHEADS,MATERIALS,5902336949,1000003017,
08.01.2019,SOUTHWARK BUILDING SERVICES,LONDON TOOLS LIMITED,270.00,R & M OVERHEADS,MATERIALS,5902337073,1000003017,
08.01.2019,SOUTHWARK BUILDING SERVICES,LONDON TOOLS LIMITED,270.00,R & M OVERHEADS,MATERIALS,5902337162,1000003017,
08.01.2019,SOUTHWARK BUILDING SERVICES,LONDON TOOLS LIMITED,274.50,R & M OVERHEADS,MATERIALS,5902337020,1000003017,
08.01.2019,SOUTHWARK BUILDING SERVICES,LONDON TOOLS LIMITED,280.00,R & M OVERHEADS,MATERIALS,5902336952,1000003017,
08.01.2019,SOUTHWARK BUILDING SERVICES,LONDON TOOLS LIMITED,305.00,R & M OVERHEADS,MATERIALS,5902336952,1000003017,
08.01.2019,SOUTHWARK BUILDING SERVICES,LONDON TOOLS LIMITED,320.00,R & M OVERHEADS,MATERIALS,5902337073,1000003017,
08.01.2019,SOUTHWARK BUILDING SERVICES,LONDON TOOLS LIMITED,477.00,R & M OVERHEADS,MATERIALS,5902337072,1000003017,
08.01.2019,SOUTHWARK BUILDING SERVICES,LONDON TOOLS LIMITED,495.00,R & M OVERHEADS,MATERIALS,5902337162,1000003017,
08.01.2019,SOUTHWARK BUILDING SERVICES,LONDON TOOLS LIMITED,675.00,R & M OVERHEADS,MATERIALS,5902337203,1000003017,
08.01.2019,SOUTHWARK BUILDING SERVICES,LONDON TOOLS LIMITED,"2,760.00",R & M OVERHEADS,MATERIALS,5902337037,1000003017,
08.01.2019,SOUTHWARK BUILDING SERVICES,LONDON TOOLS LIMITED,299.80,ROOFERS,MATERIALS,5902337188,1000003017,
08.01.2019,SOUTHWARK BUILDING SERVICES,PILKINGTON UK LTD,283.40,STORES/LOGISTICS,CREDITORS -GR/IR CLEARING ACCOUNT,5902336738,11224519,
08.01.2019,SOUTHWARK BUILDING SERVICES,LONDON TOOLS LIMITED,340.00,STORES/LOGISTICS,CREDITORS -GR/IR CLEARING ACCOUNT,5902336946,1000003017,
08.01.2019,SOUTHWARK BUILDING SERVICES,PILKINGTON UK LTD,359.04,STORES/LOGISTICS,CREDITORS -GR/IR CLEARING ACCOUNT,5902336738,11224519,
08.01.2019,SOUTHWARK BUILDING SERVICES,LONDON TOOLS LIMITED,437.50,STORES/LOGISTICS,CREDITORS -GR/IR CLEARING ACCOUNT,5902336950,1000003017,
08.01.2019,SOUTHWARK BUILDING SERVICES,LONDON TOOLS LIMITED,465.00,STORES/LOGISTICS,CREDITORS -GR/IR CLEARING ACCOUNT,5902337060,1000003017,
08.01.2019,SOUTHWARK BUILDING SERVICES,LONDON TOOLS LIMITED,489.00,STORES/LOGISTICS,CREDITORS -GR/IR CLEARING ACCOUNT,5902336894,1000003017,
08.01.2019,SOUTHWARK BUILDING SERVICES,LONDON TOOLS LIMITED,559.00,STORES/LOGISTICS,CREDITORS -GR/IR CLEARING ACCOUNT,5902337240,1000003017,
08.01.2019,SOUTHWARK BUILDING SERVICES,LONDON TOOLS LIMITED,770.00,STORES/LOGISTICS,CREDITORS -GR/IR CLEARING ACCOUNT,5902337047,1000003017,
08.01.2019,SOUTHWARK BUILDING SERVICES,LONDON TOOLS LIMITED,"1,050.00",STORES/LOGISTICS,CREDITORS -GR/IR CLEARING ACCOUNT,5902337049,1000003017,
08.01.2019,SOUTHWARK BUILDING SERVICES,PILKINGTON UK LTD,"1,055.40",STORES/LOGISTICS,CREDITORS -GR/IR CLEARING ACCOUNT,5902336738,11224519,
08.01.2019,SOUTHWARK BUILDING SERVICES,PILKINGTON UK LTD,"1,140.60",STORES/LOGISTICS,CREDITORS -GR/IR CLEARING ACCOUNT,5902336763,11224519,
08.01.2019,SOUTHWARK BUILDING SERVICES,LONDON TOOLS LIMITED,"1,360.00",STORES/LOGISTICS,CREDITORS -GR/IR CLEARING ACCOUNT,5902337216,1000003017,
08.01.2019,SOUTHWARK BUILDING SERVICES,LONDON TOOLS LIMITED,"1,625.00",STORES/LOGISTICS,CREDITORS -GR/IR CLEARING ACCOUNT,5902337079,1000003017,
08.01.2019,SOUTHWARK BUILDING SERVICES,LONDON TOOLS LIMITED,"1,700.00",STORES/LOGISTICS,CREDITORS -GR/IR CLEARING ACCOUNT,5902337112,1000003017,
08.01.2019,SOUTHWARK BUILDING SERVICES,PILKINGTON UK LTD,"2,230.20",STORES/LOGISTICS,CREDITORS -GR/IR CLEARING ACCOUNT,5902336763,11224519,
08.01.2019,SOUTHWARK BUILDING SERVICES,LONDON TOOLS LIMITED,"2,767.10",STORES/LOGISTICS,CREDITORS -GR/IR CLEARING ACCOUNT,5902337015,1000003017,
09.01.2019,ADULT SOCIAL CARE,REDACTED PERSONAL DATA,600.00,APPOINTEESHIPS,OTHER PAYMENTS FOR CLIENTS,REDACTED,REDACTED,
09.01.2019,ADULT SOCIAL CARE,ELEANOR NURSING AND SOCIAL CARE LTD,448.84,MEM LTS 65+,HOMECARE - SPOT,2102907303,1000081695,
09.01.2019,ADULT SOCIAL CARE,ELEANOR NURSING AND SOCIAL CARE LTD,512.96,MEM LTS 65+,HOMECARE - SPOT,2102907299,1000081695,
09.01.2019,ADULT SOCIAL CARE,ELEANOR NURSING AND SOCIAL CARE LTD,791.48,PHY LTS 18-64,HOMECARE - C&V,2102907285,1000081695,
09.01.2019,ADULT SOCIAL CARE,ELEANOR NURSING AND SOCIAL CARE LTD,471.74,PHY LTS 18-64,HOMECARE - SPOT,2102907264,1000081695,
09.01.2019,ADULT SOCIAL CARE,ELEANOR NURSING AND SOCIAL CARE LTD,609.83,PHY LTS 18-64,HOMECARE - SPOT,2102907301,1000081695,
09.01.2019,ADULT SOCIAL CARE,ELEANOR NURSING AND SOCIAL CARE LTD,713.63,PHY LTS 18-64,HOMECARE - SPOT,2102907277,1000081695,
09.01.2019,ADULT SOCIAL CARE,ELEANOR NURSING AND SOCIAL CARE LTD,795.80,PHY LTS 18-64,HOMECARE - SPOT,2102907281,1000081695,
09.01.2019,ADULT SOCIAL CARE,ELEANOR NURSING AND SOCIAL CARE LTD,834.73,PHY LTS 18-64,HOMECARE - SPOT,2102907286,1000081695,
09.01.2019,ADULT SOCIAL CARE,ELEANOR NURSING AND SOCIAL CARE LTD,847.70,PHY LTS 18-64,HOMECARE - SPOT,2102907288,1000081695,
09.01.2019,ADULT SOCIAL CARE,ELEANOR NURSING AND SOCIAL CARE LTD,960.15,PHY LTS 18-64,HOMECARE - SPOT,2102907306,1000081695,
09.01.2019,ADULT SOCIAL CARE,ELEANOR NURSING AND SOCIAL CARE LTD,990.42,PHY LTS 18-64,HOMECARE - SPOT,2102907259,1000081695,
09.01.2019,ADULT SOCIAL CARE,ELEANOR NURSING AND SOCIAL CARE LTD,"1,522.40",PHY LTS 18-64,HOMECARE - SPOT,2102907302,1000081695,
09.01.2019,ADULT SOCIAL CARE,ELEANOR NURSING AND SOCIAL CARE LTD,"2,941.00",PHY LTS 18-64,HOMECARE - SPOT,2102907267,1000081695,
09.01.2019,ADULT SOCIAL CARE,ELEANOR NURSING AND SOCIAL CARE LTD,293.12,PHY LTS 65+,HOMECARE - SPOT,2102907290,1000081695,
09.01.2019,ADULT SOCIAL CARE,ELEANOR NURSING AND SOCIAL CARE LTD,324.38,PHY LTS 65+,HOMECARE - SPOT,2102907279,1000081695,
09.01.2019,ADULT SOCIAL CARE,ELEANOR NURSING AND SOCIAL CARE LTD,363.30,PHY LTS 65+,HOMECARE - SPOT,2102907305,1000081695,
09.01.2019,ADULT SOCIAL CARE,ELEANOR NURSING AND SOCIAL CARE LTD,380.60,PHY LTS 65+,HOMECARE - SPOT,2102907274,1000081695,
09.01.2019,ADULT SOCIAL CARE,ELEANOR NURSING AND SOCIAL CARE LTD,380.60,PHY LTS 65+,HOMECARE - SPOT,2102907300,1000081695,
09.01.2019,ADULT SOCIAL CARE,ELEANOR NURSING AND SOCIAL CARE LTD,384.72,PHY LTS 65+,HOMECARE - SPOT,2102907304,1000081695,
09.01.2019,ADULT SOCIAL CARE,ELEANOR NURSING AND SOCIAL CARE LTD,403.04,PHY LTS 65+,HOMECARE - SPOT,2102907270,1000081695,
09.01.2019,ADULT SOCIAL CARE,ELEANOR NURSING AND SOCIAL CARE LTD,449.80,PHY LTS 65+,HOMECARE - SPOT,2102907293,1000081695,
09.01.2019,ADULT SOCIAL CARE,ELEANOR NURSING AND SOCIAL CARE LTD,484.40,PHY LTS 65+,HOMECARE - SPOT,2102907284,1000081695,
09.01.2019,ADULT SOCIAL CARE,ELEANOR NURSING AND SOCIAL CARE LTD,512.96,PHY LTS 65+,HOMECARE - SPOT,2102907291,1000081695,
09.01.2019,ADULT SOCIAL CARE,ELEANOR NURSING AND SOCIAL CARE LTD,523.32,PHY LTS 65+,HOMECARE - SPOT,2102907272,1000081695,
09.01.2019,ADULT SOCIAL CARE,ELEANOR NURSING AND SOCIAL CARE LTD,641.20,PHY LTS 65+,HOMECARE - SPOT,2102907278,1000081695,
09.01.2019,ADULT SOCIAL CARE,ELEANOR NURSING AND SOCIAL CARE LTD,726.60,PHY LTS 65+,HOMECARE - SPOT,2102907265,1000081695,
09.01.2019,ADULT SOCIAL CARE,ELEANOR NURSING AND SOCIAL CARE LTD,726.60,PHY LTS 65+,HOMECARE - SPOT,2102907273,1000081695,
09.01.2019,ADULT SOCIAL CARE,ELEANOR NURSING AND SOCIAL CARE LTD,761.20,PHY LTS 65+,HOMECARE - SPOT,2102907289,1000081695,
09.01.2019,ADULT SOCIAL CARE,ELEANOR NURSING AND SOCIAL CARE LTD,787.76,PHY LTS 65+,HOMECARE - SPOT,2102907257,1000081695,
09.01.2019,ADULT SOCIAL CARE,ELEANOR NURSING AND SOCIAL CARE LTD,826.08,PHY LTS 65+,HOMECARE - SPOT,2102907298,1000081695,
09.01.2019,ADULT SOCIAL CARE,ELEANOR NURSING AND SOCIAL CARE LTD,847.70,PHY LTS 65+,HOMECARE - SPOT,2102907256,1000081695,
09.01.2019,ADULT SOCIAL CARE,ELEANOR NURSING AND SOCIAL CARE LTD,934.32,PHY LTS 65+,HOMECARE - SPOT,2102907280,1000081695,
09.01.2019,ADULT SOCIAL CARE,ELEANOR NURSING AND SOCIAL CARE LTD,"1,012.05",PHY LTS 65+,HOMECARE - SPOT,2102907283,1000081695,
09.01.2019,ADULT SOCIAL CARE,ELEANOR NURSING AND SOCIAL CARE LTD,"1,025.92",PHY LTS 65+,HOMECARE - SPOT,2102907282,1000081695,
09.01.2019,ADULT SOCIAL CARE,ELEANOR NURSING AND SOCIAL CARE LTD,"1,089.90",PHY LTS 65+,HOMECARE - SPOT,2102907295,1000081695,
09.01.2019,ADULT SOCIAL CARE,ELEANOR NURSING AND SOCIAL CARE LTD,"2,179.80",PHY LTS 65+,HOMECARE - SPOT,2102907287,1000081695,
09.01.2019,ADULT SOCIAL CARE,ELEANOR NURSING AND SOCIAL CARE LTD,"2,283.60",PHY LTS 65+,HOMECARE - SPOT,2102907261,1000081695,
09.01.2019,ADULT SOCIAL CARE,ELEANOR NURSING AND SOCIAL CARE LTD,"1,120.18",PHY STS 18-64,HOMECARE - IC,2102907297,1000081695,
09.01.2019,ADULT SOCIAL CARE,ELEANOR NURSING AND SOCIAL CARE LTD,"1,612.16",PHY STS 18-64,HOMECARE - IC,2102907262,1000081695,
09.01.2019,ADULT SOCIAL CARE,ELEANOR NURSING AND SOCIAL CARE LTD,350.33,PHY STS 65+,HOMECARE - IC,2102907271,1000081695,
09.01.2019,ADULT SOCIAL CARE,ELEANOR NURSING AND SOCIAL CARE LTD,605.50,PHY STS 65+,HOMECARE - IC,2102907268,1000081695,
09.01.2019,ADULT SOCIAL CARE,ELEANOR NURSING AND SOCIAL CARE LTD,986.10,PHY STS 65+,HOMECARE - IC,2102907292,1000081695,
09.01.2019,ADULT SOCIAL CARE,ELEANOR NURSING AND SOCIAL CARE LTD,888.52,SEN LTS 65+,HOMECARE - SPOT,2102907294,1000081695,
09.01.2019,ADULT SOCIAL CARE,ELEANOR NURSING AND SOCIAL CARE LTD,588.20,SOCIAL ISOLATION,HOMECARE - SPOT,2102907276,1000081695,
09.01.2019,ADULT SOCIAL CARE,CONTACT PROFESSIONALS,266.00,SPECIALIST CARE,SECTION 17 PAYMENTS TO AGENCIES/CARERS,2102907329,1000057263,
09.01.2019,ADULT SOCIAL CARE,CONTACT PROFESSIONALS,266.00,SPECIALIST CARE,SECTION 17 PAYMENTS TO AGENCIES/CARERS,2102907344,1000057263,
09.01.2019,ADULT SOCIAL CARE,MEDACS HOMECARE,274.17,SPECIALIST CARE,SECTION 17 PAYMENTS TO AGENCIES/CARERS,2102907525,11287415,
09.01.2019,ADULT SOCIAL CARE,RESOURCES FOR AUTISM,285.00,SPECIALIST CARE,SECTION 17 PAYMENTS TO AGENCIES/CARERS,5902337516,1000062540,
09.01.2019,ADULT SOCIAL CARE,MEDACS HOMECARE,288.60,SPECIALIST CARE,SECTION 17 PAYMENTS TO AGENCIES/CARERS,2102907369,11287415,
09.01.2019,ADULT SOCIAL CARE,MEDACS HOMECARE,288.60,SPECIALIST CARE,SECTION 17 PAYMENTS TO AGENCIES/CARERS,2102907519,11287415,
09.01.2019,ADULT SOCIAL CARE,CONTACT PROFESSIONALS,304.00,SPECIALIST CARE,SECTION 17 PAYMENTS TO AGENCIES/CARERS,2102907348,1000057263,
09.01.2019,ADULT SOCIAL CARE,RESOURCES FOR AUTISM,304.00,SPECIALIST CARE,SECTION 17 PAYMENTS TO AGENCIES/CARERS,5902337520,1000062540,
09.01.2019,ADULT SOCIAL CARE,CONTACT PROFESSIONALS,323.00,SPECIALIST CARE,SECTION 17 PAYMENTS TO AGENCIES/CARERS,2102907357,1000057263,
09.01.2019,ADULT SOCIAL CARE,CONTACT PROFESSIONALS,332.00,SPECIALIST CARE,SECTION 17 PAYMENTS TO AGENCIES/CARERS,5902337526,1000057263,
09.01.2019,ADULT SOCIAL CARE,CONTACT PROFESSIONALS,342.00,SPECIALIST CARE,SECTION 17 PAYMENTS TO AGENCIES/CARERS,2102907351,1000057263,
09.01.2019,ADULT SOCIAL CARE,CONTACT PROFESSIONALS,351.50,SPECIALIST CARE,SECTION 17 PAYMENTS TO AGENCIES/CARERS,2102906877,1000057263,
09.01.2019,ADULT SOCIAL CARE,PECULIAR CARE HOMES LTD,359.00,SPECIALIST CARE,SECTION 17 PAYMENTS TO AGENCIES/CARERS,2102907360,1000076991,
09.01.2019,ADULT SOCIAL CARE,CONTACT PROFESSIONALS,380.00,SPECIALIST CARE,SECTION 17 PAYMENTS TO AGENCIES/CARERS,2102907343,1000057263,
09.01.2019,ADULT SOCIAL CARE,CONTACT PROFESSIONALS,380.00,SPECIALIST CARE,SECTION 17 PAYMENTS TO AGENCIES/CARERS,2102907359,1000057263,
09.01.2019,ADULT SOCIAL CARE,PECULIAR CARE HOMES LTD,430.80,SPECIALIST CARE,SECTION 17 PAYMENTS TO AGENCIES/CARERS,2102907324,1000076991,
09.01.2019,ADULT SOCIAL CARE,MEDACS HOMECARE,432.90,SPECIALIST CARE,SECTION 17 PAYMENTS TO AGENCIES/CARERS,2102907365,11287415,
09.01.2019,ADULT SOCIAL CARE,MEDACS HOMECARE,577.20,SPECIALIST CARE,SECTION 17 PAYMENTS TO AGENCIES/CARERS,2102907524,11287415,
09.01.2019,ADULT SOCIAL CARE,MEDACS HOMECARE,634.92,SPECIALIST CARE,SECTION 17 PAYMENTS TO AGENCIES/CARERS,2102907364,11287415,
09.01.2019,ADULT SOCIAL CARE,MEDACS HOMECARE,"2,712.84",SPECIALIST CARE,SECTION 17 PAYMENTS TO AGENCIES/CARERS,2102907367,11287415,
09.01.2019,ADULT SOCIAL CARE,MEDACS HOMECARE,"2,756.13",SPECIALIST CARE,SECTION 17 PAYMENTS TO AGENCIES/CARERS,2102907517,11287415,
09.01.2019,ADULT SOCIAL CARE,PECULIAR CARE HOMES LTD,"3,338.70",SPECIALIST CARE,SECTION 17 PAYMENTS TO AGENCIES/CARERS,2102907320,1000076991,
09.01.2019,ADULT SOCIAL CARE,PECULIAR CARE HOMES LTD,287.20,TRANSITIONS 14-18YRS,SECTION 17 PAYMENTS TO AGENCIES/CARERS,2102907361,1000076991,
09.01.2019,ADULT SOCIAL CARE,MEDACS HOMECARE,317.46,TRANSITIONS 14-18YRS,SECTION 17 PAYMENTS TO AGENCIES/CARERS,2102907363,11287415,
09.01.2019,ADULT SOCIAL CARE,MEDACS HOMECARE,317.46,TRANSITIONS 14-18YRS,SECTION 17 PAYMENTS TO AGENCIES/CARERS,2102907521,11287415,
09.01.2019,ADULT SOCIAL CARE,MEDACS HOMECARE,346.32,TRANSITIONS 14-18YRS,SECTION 17 PAYMENTS TO AGENCIES/CARERS,2102907366,11287415,
09.01.2019,ADULT SOCIAL CARE,MEDACS HOMECARE,404.04,TRANSITIONS 14-18YRS,SECTION 17 PAYMENTS TO AGENCIES/CARERS,2102907523,11287415,
09.01.2019,ADULT SOCIAL CARE,HCP STAFFING SERVICES LTD,451.10,TRANSITIONS 14-18YRS,SECTION 17 PAYMENTS TO AGENCIES/CARERS,2102907319,1000078329,
09.01.2019,ADULT SOCIAL CARE,MEDACS HOMECARE,808.08,TRANSITIONS 14-18YRS,SECTION 17 PAYMENTS TO AGENCIES/CARERS,2102907362,11287415,
09.01.2019,ADULT SOCIAL CARE,MEDACS HOMECARE,808.08,TRANSITIONS 14-18YRS,SECTION 17 PAYMENTS TO AGENCIES/CARERS,2102907518,11287415,
09.01.2019,ADULT SOCIAL CARE,CONTACT PROFESSIONALS,912.00,TRANSITIONS 14-18YRS,SECTION 17 PAYMENTS TO AGENCIES/CARERS,2102907340,1000057263,
09.01.2019,ADULT SOCIAL CARE,PECULIAR CARE HOMES LTD,"1,292.40",TRANSITIONS 14-18YRS,SECTION 17 PAYMENTS TO AGENCIES/CARERS,2102907326,1000076991,
09.01.2019,ASSET MANAGEMENT,SALTASH ENTERPRISES LTD,"1,447.70",DISREPAIR,CONSULTANTS SERVICES,2102906748,4013605,
09.01.2019,ASSET MANAGEMENT,CAMBRIDGE HOUSE & TALBOT,"1,456.07",DISREPAIR,LEGAL FEES & COURT COSTS,2102907527,11248874,
09.01.2019,ASSET MANAGEMENT,THAMES VALLEY CONTROLS LTD,"13,247.56",ENG CONTRACTS (NORTH),LIFTS,5902337360,1295718,
09.01.2019,ASSET MANAGEMENT,A & E ELKINS LTD,"13,531.07",ROOFING & RAINWATER,BUILDING R&M,2102906751,4012501,
09.01.2019,ASSET MANAGEMENT,A & E ELKINS LTD,"40,706.98",ROOFING & RAINWATER,BUILDING R&M,2102906752,4012501,
09.01.2019,CENTRAL FUNCTIONS,KENT COUNTY COUNCIL - LASER,"15,744.33",HEATING ACCOUNT,ELECTRICITY,5902337511,1000012926,
09.01.2019,CENTRAL FUNCTIONS,KENT COUNTY COUNCIL - LASER,"42,906.21",HEATING ACCOUNT,ELECTRICITY,5902337511,1000012926,
09.01.2019,CENTRAL FUNCTIONS,KENT COUNTY COUNCIL - LASER,"16,934.08",HEATING ACCOUNT,GAS,5902337517,1000012926,
09.01.2019,CENTRAL FUNCTIONS,KENT COUNTY COUNCIL - LASER,"472,112.02",HEATING ACCOUNT,GAS,5902337517,1000012926,
09.01.2019,CENTRAL FUNCTIONS,EDF ENERGY PLC,646.71,LEDBURY ESTATE,ELECTRICITY,5902337445,1008746,
09.01.2019,CENTRAL FUNCTIONS,EDF ENERGY PLC,689.78,LEDBURY ESTATE,ELECTRICITY,5902337426,1008746,
09.01.2019,CENTRAL FUNCTIONS,EDF ENERGY PLC,790.89,LEDBURY ESTATE,ELECTRICITY,5902337444,1008746,
09.01.2019,CENTRAL FUNCTIONS,EDF ENERGY PLC,795.75,LEDBURY ESTATE,ELECTRICITY,5902337427,1008746,
09.01.2019,CENTRAL FUNCTIONS,EDF ENERGY PLC,891.41,LEDBURY ESTATE,ELECTRICITY,5902337320,1008746,
09.01.2019,CENTRAL FUNCTIONS,EDF ENERGY PLC,914.34,LEDBURY ESTATE,ELECTRICITY,5902337448,1008746,
09.01.2019,CENTRAL FUNCTIONS,EDF ENERGY PLC,957.63,LEDBURY ESTATE,ELECTRICITY,5902337430,1008746,
09.01.2019,CENTRAL FUNCTIONS,EDF ENERGY PLC,"1,039.85",LEDBURY ESTATE,ELECTRICITY,5902337322,1008746,
09.01.2019,CENTRAL FUNCTIONS,EDF ENERGY PLC,"1,041.62",LEDBURY ESTATE,ELECTRICITY,5902337440,1008746,
09.01.2019,CENTRAL FUNCTIONS,EDF ENERGY PLC,"1,139.36",LEDBURY ESTATE,ELECTRICITY,5902337447,1008746,
09.01.2019,CENTRAL FUNCTIONS,EDF ENERGY PLC,"1,159.00",LEDBURY ESTATE,ELECTRICITY,5902337292,1008746,
09.01.2019,CENTRAL FUNCTIONS,EDF ENERGY PLC,"1,183.05",LEDBURY ESTATE,ELECTRICITY,5902337442,1008746,
09.01.2019,CENTRAL FUNCTIONS,EDF ENERGY PLC,"1,305.87",LEDBURY ESTATE,ELECTRICITY,5902337316,1008746,
09.01.2019,CENTRAL FUNCTIONS,EDF ENERGY PLC,"1,358.69",LEDBURY ESTATE,ELECTRICITY,5902337291,1008746,
09.01.2019,CENTRAL FUNCTIONS,EDF ENERGY PLC,"1,478.40",LEDBURY ESTATE,ELECTRICITY,5902337289,1008746,
09.01.2019,CHIEF EXECUTIVE,CONWAY AECOM LTD,"24,726.12",CAPITAL PS (REGEN),CONSTR'N SUB CONTRACT - NON CERTIFICATED,2102906749,3000001595,
09.01.2019,CHILDREN AND ADULT,CORELOGIC LTD,"-8,800.00",CAPITAL PS (STRAT SERV),ICT ACQUISITION,5902332783,1000074359,
09.01.2019,CHILDREN AND ADULT,CORELOGIC LTD,"8,800.00",CAPITAL PS (STRAT SERV),ICT ACQUISITION,5902338299,1000074359,
09.01.2019,CHILDREN'S SERVICES,NEXT STEP FOSTERING SERVICES LTD,348.00,AGENCY FOSTERING,EXTERNAL AGENCIES AND BODIES,2102906875,1000044973,
09.01.2019,CHILDREN'S SERVICES,TACT,918.00,AGENCY FOSTERING,EXTERNAL AGENCIES AND BODIES,2102907449,1000012941,
09.01.2019,CHILDREN'S SERVICES,TACT,"1,326.00",AGENCY FOSTERING,EXTERNAL AGENCIES AND BODIES,2102906873,1000012941,
09.01.2019,CHILDREN'S SERVICES,NATIONAL FOSTERING AGENCY,"1,337.16",AGENCY FOSTERING,EXTERNAL AGENCIES AND BODIES,2102907448,1000038868,
09.01.2019,CHILDREN'S SERVICES,CHILDREN OF COLOUR,"1,607.20",AGENCY FOSTERING,EXTERNAL AGENCIES AND BODIES,2102907416,1000044955,
09.01.2019,CHILDREN'S SERVICES,NATIONAL FOSTERING AGENCY,"1,894.31",AGENCY FOSTERING,EXTERNAL AGENCIES AND BODIES,2102907380,1000038868,
09.01.2019,CHILDREN'S SERVICES,CHILDREN OF COLOUR,"1,951.60",AGENCY FOSTERING,EXTERNAL AGENCIES AND BODIES,2102907386,1000044955,
09.01.2019,CHILDREN'S SERVICES,TACT,"2,320.24",AGENCY FOSTERING,EXTERNAL AGENCIES AND BODIES,2102907426,1000012941,
09.01.2019,CHILDREN'S SERVICES,TACT,"2,709.40",AGENCY FOSTERING,EXTERNAL AGENCIES AND BODIES,2102907425,1000012941,
09.01.2019,CHILDREN'S SERVICES,TACT,"2,709.40",AGENCY FOSTERING,EXTERNAL AGENCIES AND BODIES,2102907481,1000012941,
09.01.2019,CHILDREN'S SERVICES,TACT,"2,709.40",AGENCY FOSTERING,EXTERNAL AGENCIES AND BODIES,2102907512,1000012941,
09.01.2019,CHILDREN'S SERVICES,HELP ME GROW FOSTERING SERVICES LTD,"2,869.67",AGENCY FOSTERING,EXTERNAL AGENCIES AND BODIES,2102907395,1000079302,
09.01.2019,CHILDREN'S SERVICES,HELP ME GROW FOSTERING SERVICES LTD,"2,869.67",AGENCY FOSTERING,EXTERNAL AGENCIES AND BODIES,2102907397,1000079302,
09.01.2019,CHILDREN'S SERVICES,COMPASS FOSTERING SOUTH LTD,"2,889.60",AGENCY FOSTERING,EXTERNAL AGENCIES AND BODIES,2102907473,1000073772,
09.01.2019,CHILDREN'S SERVICES,FUTURES FOR CHILDREN LIMITED,"2,906.00",AGENCY FOSTERING,EXTERNAL AGENCIES AND BODIES,2102907443,1000041984,
09.01.2019,CHILDREN'S SERVICES,TACT,"2,915.55",AGENCY FOSTERING,EXTERNAL AGENCIES AND BODIES,2102907497,1000012941,
09.01.2019,CHILDREN'S SERVICES,HORIZON FOSTERING SERVICES LTD,"2,992.50",AGENCY FOSTERING,EXTERNAL AGENCIES AND BODIES,2102907424,1000075679,
09.01.2019,CHILDREN'S SERVICES,HORIZON FOSTERING SERVICES LTD,"2,992.50",AGENCY FOSTERING,EXTERNAL AGENCIES AND BODIES,2102907477,1000075679,
09.01.2019,CHILDREN'S SERVICES,KENT HOMEFINDING & FOSTERING LTD,"3,041.10",AGENCY FOSTERING,EXTERNAL AGENCIES AND BODIES,2102907415,1000033978,
09.01.2019,CHILDREN'S SERVICES,KENT HOMEFINDING & FOSTERING LTD,"3,041.10",AGENCY FOSTERING,EXTERNAL AGENCIES AND BODIES,2102907434,1000033978,
09.01.2019,CHILDREN'S SERVICES,KENT HOMEFINDING & FOSTERING LTD,"3,041.10",AGENCY FOSTERING,EXTERNAL AGENCIES AND BODIES,2102907505,1000033978,
09.01.2019,CHILDREN'S SERVICES,KENT HOMEFINDING & FOSTERING LTD,"3,041.10",AGENCY FOSTERING,EXTERNAL AGENCIES AND BODIES,2102907506,1000033978,
09.01.2019,CHILDREN'S SERVICES,COMPASS FOSTERING LONDON LTD,"3,077.99",AGENCY FOSTERING,EXTERNAL AGENCIES AND BODIES,2102907389,1000057908,
09.01.2019,CHILDREN'S SERVICES,HORIZON FOSTERING SERVICES LTD,"3,092.25",AGENCY FOSTERING,EXTERNAL AGENCIES AND BODIES,2102907375,1000075679,
09.01.2019,CHILDREN'S SERVICES,HORIZON FOSTERING SERVICES LTD,"3,092.25",AGENCY FOSTERING,EXTERNAL AGENCIES AND BODIES,2102907511,1000075679,
09.01.2019,CHILDREN'S SERVICES,SUPPORTED FOSTERING SERVICES,"3,095.66",AGENCY FOSTERING,EXTERNAL AGENCIES AND BODIES,2102907412,1927554,
09.01.2019,CHILDREN'S SERVICES,TIME FOR CHILDREN LTD,"3,100.00",AGENCY FOSTERING,EXTERNAL AGENCIES AND BODIES,2102907411,1000024439,
09.01.2019,CHILDREN'S SERVICES,HORIZON FOSTERING SERVICES LTD,"3,150.00",AGENCY FOSTERING,EXTERNAL AGENCIES AND BODIES,2102907396,1000075679,
09.01.2019,CHILDREN'S SERVICES,THE XCEL 2000 PARTNERSHIP LTD,"3,157.57",AGENCY FOSTERING,EXTERNAL AGENCIES AND BODIES,2102907462,1000024427,
09.01.2019,CHILDREN'S SERVICES,TACT,"3,162.00",AGENCY FOSTERING,EXTERNAL AGENCIES AND BODIES,2102907381,1000012941,
09.01.2019,CHILDREN'S SERVICES,TACT,"3,162.00",AGENCY FOSTERING,EXTERNAL AGENCIES AND BODIES,2102907399,1000012941,
09.01.2019,CHILDREN'S SERVICES,HELP ME GROW FOSTERING SERVICES LTD,"3,188.35",AGENCY FOSTERING,EXTERNAL AGENCIES AND BODIES,2102907378,1000079302,
09.01.2019,CHILDREN'S SERVICES,HELP ME GROW FOSTERING SERVICES LTD,"3,188.35",AGENCY FOSTERING,EXTERNAL AGENCIES AND BODIES,2102907398,1000079302,
09.01.2019,CHILDREN'S SERVICES,HELP ME GROW FOSTERING SERVICES LTD,"3,188.35",AGENCY FOSTERING,EXTERNAL AGENCIES AND BODIES,2102907445,1000079302,
09.01.2019,CHILDREN'S SERVICES,HELP ME GROW FOSTERING SERVICES LTD,"3,188.35",AGENCY FOSTERING,EXTERNAL AGENCIES AND BODIES,2102907496,1000079302,
09.01.2019,CHILDREN'S SERVICES,HELP ME GROW FOSTERING SERVICES LTD,"3,188.35",AGENCY FOSTERING,EXTERNAL AGENCIES AND BODIES,2102907515,1000079302,
09.01.2019,CHILDREN'S SERVICES,CORE ASSETS FOSTERING LTD,"3,211.60",AGENCY FOSTERING,EXTERNAL AGENCIES AND BODIES,2102907488,11288002,
09.01.2019,CHILDREN'S SERVICES,GREATER LONDON FOSTERING,"3,220.28",AGENCY FOSTERING,EXTERNAL AGENCIES AND BODIES,2102907465,1000029184,
09.01.2019,CHILDREN'S SERVICES,HORIZON FOSTERING SERVICES LTD,"3,255.00",AGENCY FOSTERING,EXTERNAL AGENCIES AND BODIES,2102907510,1000075679,
09.01.2019,CHILDREN'S SERVICES,FOSTERING FOR YOU LTD,"3,271.21",AGENCY FOSTERING,EXTERNAL AGENCIES AND BODIES,2102907421,1000080380,
09.01.2019,CHILDREN'S SERVICES,FOSTERING FOR YOU LTD,"3,271.21",AGENCY FOSTERING,EXTERNAL AGENCIES AND BODIES,2102907463,1000080380,
09.01.2019,CHILDREN'S SERVICES,SELECT FOSTERCARE SERVICES LTD,"3,286.00",AGENCY FOSTERING,EXTERNAL AGENCIES AND BODIES,2102907457,1000079277,
09.01.2019,CHILDREN'S SERVICES,GREATER LONDON FOSTERING,"3,286.00",AGENCY FOSTERING,EXTERNAL AGENCIES AND BODIES,2102907495,1000029184,
09.01.2019,CHILDREN'S SERVICES,GREATER LONDON FOSTERING,"3,286.00",AGENCY FOSTERING,EXTERNAL AGENCIES AND BODIES,2102907509,1000029184,
09.01.2019,CHILDREN'S SERVICES,COMPASS FOSTERING SOUTH LTD,"3,308.10",AGENCY FOSTERING,EXTERNAL AGENCIES AND BODIES,2102907458,1000073772,
09.01.2019,CHILDREN'S SERVICES,SHINING STARS FOSTERING AGENCY LTD,"3,321.34",AGENCY FOSTERING,EXTERNAL AGENCIES AND BODIES,2102907508,1000079431,
09.01.2019,CHILDREN'S SERVICES,CONNECT FOSTERING SERVICES LTD,"3,343.57",AGENCY FOSTERING,EXTERNAL AGENCIES AND BODIES,2102907430,1000079969,
09.01.2019,CHILDREN'S SERVICES,FIVE RIVERS CHILD CARE LTD,"3,365.71",AGENCY FOSTERING,EXTERNAL AGENCIES AND BODIES,2102907405,1000018792,
09.01.2019,CHILDREN'S SERVICES,THE FOSTER CARE AGENCY LTD,"3,387.99",AGENCY FOSTERING,EXTERNAL AGENCIES AND BODIES,2102907467,1000043235,
09.01.2019,CHILDREN'S SERVICES,FOSTERING FOR YOU LTD,"3,443.39",AGENCY FOSTERING,EXTERNAL AGENCIES AND BODIES,2102907440,1000080380,
09.01.2019,CHILDREN'S SERVICES,FOSTERING FOR YOU LTD,"3,443.39",AGENCY FOSTERING,EXTERNAL AGENCIES AND BODIES,2102907492,1000080380,
09.01.2019,CHILDREN'S SERVICES,FOSTERING FOR YOU LTD,"3,443.39",AGENCY FOSTERING,EXTERNAL AGENCIES AND BODIES,2102907493,1000080380,
09.01.2019,CHILDREN'S SERVICES,CHILDREN OF COLOUR,"3,472.00",AGENCY FOSTERING,EXTERNAL AGENCIES AND BODIES,2102907406,1000044955,
09.01.2019,CHILDREN'S SERVICES,CAPSTONE FOSTER CARE,"3,511.68",AGENCY FOSTERING,EXTERNAL AGENCIES AND BODIES,2102907439,1000050353,
09.01.2019,CHILDREN'S SERVICES,GREATER LONDON FOSTERING,"3,516.95",AGENCY FOSTERING,EXTERNAL AGENCIES AND BODIES,2102907394,1000029184,
09.01.2019,CHILDREN'S SERVICES,NATIONAL FOSTERING AGENCY,"3,520.67",AGENCY FOSTERING,EXTERNAL AGENCIES AND BODIES,2102907377,1000038868,
09.01.2019,CHILDREN'S SERVICES,ST CHRISTOPHER FELLOWSHIP,"3,520.67",AGENCY FOSTERING,EXTERNAL AGENCIES AND BODIES,2102907437,1000045269,
09.01.2019,CHILDREN'S SERVICES,CONNECT FOSTERING SERVICES LTD,"3,520.71",AGENCY FOSTERING,EXTERNAL AGENCIES AND BODIES,2102907410,1000079969,
09.01.2019,CHILDREN'S SERVICES,SUPPORTED FOSTERING SERVICES,"3,527.18",AGENCY FOSTERING,EXTERNAL AGENCIES AND BODIES,2102907460,1927554,
09.01.2019,CHILDREN'S SERVICES,RYANCARE FOSTERING,"3,541.75",AGENCY FOSTERING,EXTERNAL AGENCIES AND BODIES,2102907436,1000062376,
09.01.2019,CHILDREN'S SERVICES,SHINING STARS FOSTERING AGENCY LTD,"3,542.68",AGENCY FOSTERING,EXTERNAL AGENCIES AND BODIES,2102907422,1000079431,
09.01.2019,CHILDREN'S SERVICES,CHILDREN OF COLOUR,"3,558.80",AGENCY FOSTERING,EXTERNAL AGENCIES AND BODIES,2102907472,1000044955,
09.01.2019,CHILDREN'S SERVICES,CHILDREN OF COLOUR,"3,558.80",AGENCY FOSTERING,EXTERNAL AGENCIES AND BODIES,2102907503,1000044955,
09.01.2019,CHILDREN'S SERVICES,KENT HOMEFINDING & FOSTERING LTD,"3,565.00",AGENCY FOSTERING,EXTERNAL AGENCIES AND BODIES,2102907433,1000033978,
09.01.2019,CHILDREN'S SERVICES,KENT HOMEFINDING & FOSTERING LTD,"3,565.00",AGENCY FOSTERING,EXTERNAL AGENCIES AND BODIES,2102907504,1000033978,
09.01.2019,CHILDREN'S SERVICES,BANYA FAMILY PLACEMENT AGENCY LTD,"3,607.47",AGENCY FOSTERING,EXTERNAL AGENCIES AND BODIES,2102907393,11328315,
09.01.2019,CHILDREN'S SERVICES,FUTURES FOR CHILDREN LIMITED,"3,649.94",AGENCY FOSTERING,EXTERNAL AGENCIES AND BODIES,2102907456,1000041984,
09.01.2019,CHILDREN'S SERVICES,SELECT FOSTERCARE SERVICES LTD,"3,653.35",AGENCY FOSTERING,EXTERNAL AGENCIES AND BODIES,2102907487,1000079277,
09.01.2019,CHILDREN'S SERVICES,SYNERGY FOSTERING LTD,"3,671.27",AGENCY FOSTERING,EXTERNAL AGENCIES AND BODIES,2102907450,1000031559,
09.01.2019,CHILDREN'S SERVICES,COMPASS FOSTERING LONDON LTD,"3,675.67",AGENCY FOSTERING,EXTERNAL AGENCIES AND BODIES,2102907413,1000057908,
09.01.2019,CHILDREN'S SERVICES,COMPASS FOSTERING LONDON LTD,"3,675.67",AGENCY FOSTERING,EXTERNAL AGENCIES AND BODIES,2102907461,1000057908,
09.01.2019,CHILDREN'S SERVICES,ETHELBERT SPECIALIST HOMES,"3,678.11",AGENCY FOSTERING,EXTERNAL AGENCIES AND BODIES,2102907407,1796129,
09.01.2019,CHILDREN'S SERVICES,ETHELBERT SPECIALIST HOMES,"3,678.11",AGENCY FOSTERING,EXTERNAL AGENCIES AND BODIES,2102907408,1796129,
09.01.2019,CHILDREN'S SERVICES,ETHELBERT SPECIALIST HOMES,"3,678.11",AGENCY FOSTERING,EXTERNAL AGENCIES AND BODIES,2102907409,1796129,
09.01.2019,CHILDREN'S SERVICES,ORANGE GROVE FOSTERCARE LTD,"3,751.75",AGENCY FOSTERING,EXTERNAL AGENCIES AND BODIES,2102907414,1000078716,
09.01.2019,CHILDREN'S SERVICES,ORANGE GROVE FOSTERCARE LTD,"3,751.75",AGENCY FOSTERING,EXTERNAL AGENCIES AND BODIES,2102907432,1000078716,
09.01.2019,CHILDREN'S SERVICES,TIME FOR CHILDREN LTD,"3,835.01",AGENCY FOSTERING,EXTERNAL AGENCIES AND BODIES,2102907372,1000024439,
09.01.2019,CHILDREN'S SERVICES,CHILDREN FIRST FOSTERING AGENCY LTD,"3,875.00",AGENCY FOSTERING,EXTERNAL AGENCIES AND BODIES,2102907374,1000060081,
09.01.2019,CHILDREN'S SERVICES,CHILDREN FIRST FOSTERING AGENCY LTD,"3,875.00",AGENCY FOSTERING,EXTERNAL AGENCIES AND BODIES,2102907390,1000060081,
09.01.2019,CHILDREN'S SERVICES,ETHELBERT SPECIALIST HOMES,"3,882.40",AGENCY FOSTERING,EXTERNAL AGENCIES AND BODIES,2102907485,1796129,
09.01.2019,CHILDREN'S SERVICES,ETHELBERT SPECIALIST HOMES,"3,882.40",AGENCY FOSTERING,EXTERNAL AGENCIES AND BODIES,2102907486,1796129,
09.01.2019,CHILDREN'S SERVICES,NEXT STEP FOSTERING SERVICES LTD,"3,986.60",AGENCY FOSTERING,EXTERNAL AGENCIES AND BODIES,2102907451,1000044973,
09.01.2019,CHILDREN'S SERVICES,BY THE BRIDGE LTD,"4,218.52",AGENCY FOSTERING,EXTERNAL AGENCIES AND BODIES,2102907502,1000043961,
09.01.2019,CHILDREN'S SERVICES,BY THE BRIDGE LTD,"4,347.09",AGENCY FOSTERING,EXTERNAL AGENCIES AND BODIES,2102907400,1000043961,
09.01.2019,CHILDREN'S SERVICES,NEXT STEP FOSTERING SERVICES LTD,"4,349.30",AGENCY FOSTERING,EXTERNAL AGENCIES AND BODIES,2102907469,1000044973,
09.01.2019,CHILDREN'S SERVICES,BY THE BRIDGE LTD,"4,364.71",AGENCY FOSTERING,EXTERNAL AGENCIES AND BODIES,2102907501,1000043961,
09.01.2019,CHILDREN'S SERVICES,NATIONAL FOSTERING AGENCY,"4,406.34",AGENCY FOSTERING,EXTERNAL AGENCIES AND BODIES,2102907376,1000038868,
09.01.2019,CHILDREN'S SERVICES,NATIONAL FOSTERING AGENCY,"4,406.34",AGENCY FOSTERING,EXTERNAL AGENCIES AND BODIES,2102907379,1000038868,
09.01.2019,CHILDREN'S SERVICES,NATIONAL FOSTERING AGENCY,"4,406.34",AGENCY FOSTERING,EXTERNAL AGENCIES AND BODIES,2102907478,1000038868,
09.01.2019,CHILDREN'S SERVICES,NATIONAL FOSTERING AGENCY,"4,406.34",AGENCY FOSTERING,EXTERNAL AGENCIES AND BODIES,2102907498,1000038868,
09.01.2019,CHILDREN'S SERVICES,NATIONAL FOSTERING AGENCY,"4,406.34",AGENCY FOSTERING,EXTERNAL AGENCIES AND BODIES,2102907499,1000038868,
09.01.2019,CHILDREN'S SERVICES,CONNECT FOSTERING SERVICES LTD,"4,406.43",AGENCY FOSTERING,EXTERNAL AGENCIES AND BODIES,2102907459,1000079969,
09.01.2019,CHILDREN'S SERVICES,CONNECT FOSTERING SERVICES LTD,"4,406.43",AGENCY FOSTERING,EXTERNAL AGENCIES AND BODIES,2102907474,1000079969,
09.01.2019,CHILDREN'S SERVICES,GREATER LONDON FOSTERING,"4,424.01",AGENCY FOSTERING,EXTERNAL AGENCIES AND BODIES,2102907476,1000029184,
09.01.2019,CHILDREN'S SERVICES,BY THE BRIDGE LTD,"4,440.57",AGENCY FOSTERING,EXTERNAL AGENCIES AND BODIES,2102907401,1000043961,
09.01.2019,CHILDREN'S SERVICES,BY THE BRIDGE LTD,"4,440.57",AGENCY FOSTERING,EXTERNAL AGENCIES AND BODIES,2102907429,1000043961,
09.01.2019,CHILDREN'S SERVICES,BY THE BRIDGE LTD,"4,475.82",AGENCY FOSTERING,EXTERNAL AGENCIES AND BODIES,2102907427,1000043961,
09.01.2019,CHILDREN'S SERVICES,BY THE BRIDGE LTD,"4,504.96",AGENCY FOSTERING,EXTERNAL AGENCIES AND BODIES,2102907483,1000043961,
09.01.2019,CHILDREN'S SERVICES,NATIONAL FOSTERING AGENCY,"4,557.00",AGENCY FOSTERING,EXTERNAL AGENCIES AND BODIES,2102907446,1000038868,
09.01.2019,CHILDREN'S SERVICES,NATIONAL FOSTERING AGENCY,"4,557.00",AGENCY FOSTERING,EXTERNAL AGENCIES AND BODIES,2102907479,1000038868,
09.01.2019,CHILDREN'S SERVICES,BY THE BRIDGE LTD,"4,570.02",AGENCY FOSTERING,EXTERNAL AGENCIES AND BODIES,2102907371,1000043961,
09.01.2019,CHILDREN'S SERVICES,BY THE BRIDGE LTD,"4,570.02",AGENCY FOSTERING,EXTERNAL AGENCIES AND BODIES,2102907453,1000043961,
09.01.2019,CHILDREN'S SERVICES,BY THE BRIDGE LTD,"4,570.02",AGENCY FOSTERING,EXTERNAL AGENCIES AND BODIES,2102907454,1000043961,
09.01.2019,CHILDREN'S SERVICES,BY THE BRIDGE LTD,"4,570.02",AGENCY FOSTERING,EXTERNAL AGENCIES AND BODIES,2102907482,1000043961,
09.01.2019,CHILDREN'S SERVICES,BY THE BRIDGE LTD,"4,580.78",AGENCY FOSTERING,EXTERNAL AGENCIES AND BODIES,2102907402,1000043961,
09.01.2019,CHILDREN'S SERVICES,BY THE BRIDGE LTD,"4,606.91",AGENCY FOSTERING,EXTERNAL AGENCIES AND BODIES,2102907470,1000043961,
09.01.2019,CHILDREN'S SERVICES,NATIONAL FOSTERING AGENCY,"4,627.68",AGENCY FOSTERING,EXTERNAL AGENCIES AND BODIES,2102907513,1000038868,
09.01.2019,CHILDREN'S SERVICES,GREATER LONDON FOSTERING,"4,645.35",AGENCY FOSTERING,EXTERNAL AGENCIES AND BODIES,2102907441,1000029184,
09.01.2019,CHILDREN'S SERVICES,ST CHRISTOPHER FELLOWSHIP,"4,650.00",AGENCY FOSTERING,EXTERNAL AGENCIES AND BODIES,2102907392,1000045269,
09.01.2019,CHILDREN'S SERVICES,ST CHRISTOPHER FELLOWSHIP,"4,650.00",AGENCY FOSTERING,EXTERNAL AGENCIES AND BODIES,2102907438,1000045269,
09.01.2019,CHILDREN'S SERVICES,HELP ME GROW FOSTERING SERVICES LTD,"4,650.00",AGENCY FOSTERING,EXTERNAL AGENCIES AND BODIES,2102907444,1000079302,
09.01.2019,CHILDREN'S SERVICES,BY THE BRIDGE LTD,"4,674.27",AGENCY FOSTERING,EXTERNAL AGENCIES AND BODIES,2102907383,1000043961,
09.01.2019,CHILDREN'S SERVICES,BY THE BRIDGE LTD,"4,805.49",AGENCY FOSTERING,EXTERNAL AGENCIES AND BODIES,2102907428,1000043961,
09.01.2019,CHILDREN'S SERVICES,BY THE BRIDGE LTD,"4,805.49",AGENCY FOSTERING,EXTERNAL AGENCIES AND BODIES,2102907500,1000043961,
09.01.2019,CHILDREN'S SERVICES,HYTHE HOUSE SUPPORT LTD,"4,864.04",AGENCY FOSTERING,EXTERNAL AGENCIES AND BODIES,2102907489,1000081618,
09.01.2019,CHILDREN'S SERVICES,BY THE BRIDGE LTD,"4,903.54",AGENCY FOSTERING,EXTERNAL AGENCIES AND BODIES,2102907452,1000043961,
09.01.2019,CHILDREN'S SERVICES,BY THE BRIDGE LTD,"4,903.54",AGENCY FOSTERING,EXTERNAL AGENCIES AND BODIES,2102907471,1000043961,
09.01.2019,CHILDREN'S SERVICES,INTEGRATED SERVICES PROGRAMME,"5,176.38",AGENCY FOSTERING,EXTERNAL AGENCIES AND BODIES,2102907417,1642068,
09.01.2019,CHILDREN'S SERVICES,INTEGRATED SERVICES PROGRAMME,"5,176.38",AGENCY FOSTERING,EXTERNAL AGENCIES AND BODIES,2102907419,1642068,
09.01.2019,CHILDREN'S SERVICES,INTEGRATED SERVICES PROGRAMME,"5,176.38",AGENCY FOSTERING,EXTERNAL AGENCIES AND BODIES,2102907490,1642068,
09.01.2019,CHILDREN'S SERVICES,INTEGRATED SERVICES PROGRAMME,"5,176.38",AGENCY FOSTERING,EXTERNAL AGENCIES AND BODIES,2102907507,1642068,
09.01.2019,CHILDREN'S SERVICES,NATIONAL FOSTERING AGENCY,"5,212.34",AGENCY FOSTERING,EXTERNAL AGENCIES AND BODIES,2102907514,1000038868,
09.01.2019,CHILDREN'S SERVICES,HEATH FARM FAMILY SOLUTION (FOSTERING),"5,322.08",AGENCY FOSTERING,EXTERNAL AGENCIES AND BODIES,2102907475,11271268,
09.01.2019,CHILDREN'S SERVICES,INTEGRATED SERVICES PROGRAMME,"5,336.34",AGENCY FOSTERING,EXTERNAL AGENCIES AND BODIES,2102907391,1642068,
09.01.2019,CHILDREN'S SERVICES,INTEGRATED SERVICES PROGRAMME,"5,336.34",AGENCY FOSTERING,EXTERNAL AGENCIES AND BODIES,2102907418,1642068,
09.01.2019,CHILDREN'S SERVICES,INTEGRATED SERVICES PROGRAMME,"5,336.34",AGENCY FOSTERING,EXTERNAL AGENCIES AND BODIES,2102907435,1642068,
09.01.2019,CHILDREN'S SERVICES,BY THE BRIDGE LTD,"5,469.29",AGENCY FOSTERING,EXTERNAL AGENCIES AND BODIES,2102907382,1000043961,
09.01.2019,CHILDREN'S SERVICES,BY THE BRIDGE LTD,"5,469.29",AGENCY FOSTERING,EXTERNAL AGENCIES AND BODIES,2102907403,1000043961,
09.01.2019,CHILDREN'S SERVICES,BY THE BRIDGE LTD,"5,469.29",AGENCY FOSTERING,EXTERNAL AGENCIES AND BODIES,2102907404,1000043961,
09.01.2019,CHILDREN'S SERVICES,SUPPORTED FOSTERING SERVICES,"5,513.35",AGENCY FOSTERING,EXTERNAL AGENCIES AND BODIES,2102907388,1927554,
09.01.2019,CHILDREN'S SERVICES,HELP ME GROW FOSTERING SERVICES LTD,"5,757.01",AGENCY FOSTERING,EXTERNAL AGENCIES AND BODIES,2102907447,1000079302,
09.01.2019,CHILDREN'S SERVICES,HELP ME GROW FOSTERING SERVICES LTD,"5,757.01",AGENCY FOSTERING,EXTERNAL AGENCIES AND BODIES,2102907466,1000079302,
09.01.2019,CHILDREN'S SERVICES,HELP ME GROW FOSTERING SERVICES LTD,"5,757.01",AGENCY FOSTERING,EXTERNAL AGENCIES AND BODIES,2102907468,1000079302,
09.01.2019,CHILDREN'S SERVICES,BY THE BRIDGE LTD,"5,757.14",AGENCY FOSTERING,EXTERNAL AGENCIES AND BODIES,2102907455,1000043961,
09.01.2019,CHILDREN'S SERVICES,LIGHTHOUSE FOSTERING LTD,"5,766.89",AGENCY FOSTERING,EXTERNAL AGENCIES AND BODIES,2102907420,1000080372,
09.01.2019,CHILDREN'S SERVICES,FOSTERING SUPPORT GROUP LTD,"5,999.70",AGENCY FOSTERING,EXTERNAL AGENCIES AND BODIES,2102907491,1000065830,
09.01.2019,CHILDREN'S SERVICES,BY THE BRIDGE LTD,"6,231.00",AGENCY FOSTERING,EXTERNAL AGENCIES AND BODIES,2102907370,1000043961,
09.01.2019,CHILDREN'S SERVICES,ALL4U FOSTERING LTD,"6,443.04",AGENCY FOSTERING,EXTERNAL AGENCIES AND BODIES,2102907373,1000080663,
09.01.2019,CHILDREN'S SERVICES,FOLLOWING WHISPERS FAMILY SERVICE LTD,"6,525.50",AGENCY FOSTERING,EXTERNAL AGENCIES AND BODIES,2102907464,1000065611,
09.01.2019,CHILDREN'S SERVICES,FIVE RIVERS CHILD CARE LTD,"6,527.71",AGENCY FOSTERING,EXTERNAL AGENCIES AND BODIES,2102907431,1000018792,
09.01.2019,CHILDREN'S SERVICES,MOSAIC FOSTER CARE LTD,"6,642.68",AGENCY FOSTERING,EXTERNAL AGENCIES AND BODIES,2102907385,1000076259,
09.01.2019,CHILDREN'S SERVICES,FOLLOWING WHISPERS FAMILY SERVICE LTD,"6,864.33",AGENCY FOSTERING,EXTERNAL AGENCIES AND BODIES,2102907423,1000065611,
09.01.2019,CHILDREN'S SERVICES,MOSAIC FOSTER CARE LTD,"6,975.00",AGENCY FOSTERING,EXTERNAL AGENCIES AND BODIES,2102907384,1000076259,
09.01.2019,CHILDREN'S SERVICES,MOSAIC FOSTER CARE LTD,"6,975.00",AGENCY FOSTERING,EXTERNAL AGENCIES AND BODIES,2102907484,1000076259,
09.01.2019,CHILDREN'S SERVICES,GREATER LONDON FOSTERING,"7,378.00",AGENCY FOSTERING,EXTERNAL AGENCIES AND BODIES,2102907494,1000029184,
09.01.2019,CHILDREN'S SERVICES,PARENT AND CHILD FOSTERING ASSESSMENTS,"8,192.85",AGENCY FOSTERING,EXTERNAL AGENCIES AND BODIES,2102907387,1000078962,
09.01.2019,CHILDREN'S SERVICES,HORIZON FOSTERING SERVICES LTD,"16,611.21",AGENCY FOSTERING,EXTERNAL AGENCIES AND BODIES,2102907442,1000075679,
09.01.2019,CHILDREN'S SERVICES,TAYLOR CONWAY LTD,"2,172.50",CATCH 22 INNOVATION GRANT,EXTERNAL AGENCIES AND BODIES,5902337512,1000080955,
09.01.2019,CHILDREN'S SERVICES,REDACTED PERSONAL DATA,700.00,DISABILITY & HIV,ADDITIONAL PAYMENTS TO AGENCIES/CARERS,REDACTED,REDACTED,
09.01.2019,CHILDREN'S SERVICES,REDACTED PERSONAL DATA,300.00,DISABILITY & HIV,OTHER PAYMENTS FOR CLIENTS,REDACTED,REDACTED,
09.01.2019,CHILDREN'S SERVICES,REDACTED PERSONAL DATA,332.60,DISABILITY & HIV,PAYMENTS TO CARERS,REDACTED,REDACTED,
09.01.2019,CHILDREN'S SERVICES,REDACTED PERSONAL DATA,"1,080.71",DISABILITY & HIV,PAYMENTS TO CARERS,REDACTED,REDACTED,
09.01.2019,CHILDREN'S SERVICES,REDACTED PERSONAL DATA,"1,385.86",DISABILITY & HIV,PAYMENTS TO CARERS,REDACTED,REDACTED,
09.01.2019,CHILDREN'S SERVICES,OASIS PLACES LTD,"3,657.14",FAMILY ASSESSMENTS,RESIDENTIAL CARE,2102907310,1000077696,
09.01.2019,CHILDREN'S SERVICES,OASIS PLACES LTD,"14,171.43",FAMILY ASSESSMENTS,RESIDENTIAL CARE,2102907311,1000077696,
09.01.2019,CHILDREN'S SERVICES,INTERPRETING DIRECT CO (UK) LTD,"6,104.40",FINANCE,TRANSLATION SERVICES,5902337514,1000070133,
09.01.2019,CHILDREN'S SERVICES,DAVID RADOMSKY LTD,400.00,PRIMARY ACHIEVEMENT,CONSULTANTS SERVICES,5902337290,1000075944,
09.01.2019,CHILDREN'S SERVICES,THE LITERACY TREE LTD,"1,650.00",PRIMARY ACHIEVEMENT,CONSULTANTS SERVICES,5902337288,1000069542,
09.01.2019,CHILDREN'S SERVICES,BELFAIRS ACADEMY,"1,000.00",PUPIL PREMIUM CURRENT YEAR,SCHOOLS CAPITATION,2102903228,1000082101,
09.01.2019,CHILDREN'S SERVICES,REDACTED PERSONAL DATA,263.96,RESIDENCE ORDERS,PAYMENTS TO CARERS,REDACTED,REDACTED,
09.01.2019,CHILDREN'S SERVICES,REDACTED PERSONAL DATA,264.16,RESIDENCE ORDERS,PAYMENTS TO CARERS,REDACTED,REDACTED,
09.01.2019,CHILDREN'S SERVICES,REDACTED PERSONAL DATA,269.08,RESIDENCE ORDERS,PAYMENTS TO CARERS,REDACTED,REDACTED,
09.01.2019,CHILDREN'S SERVICES,REDACTED PERSONAL DATA,269.08,RESIDENCE ORDERS,PAYMENTS TO CARERS,REDACTED,REDACTED,
09.01.2019,CHILDREN'S SERVICES,REDACTED PERSONAL DATA,276.10,RESIDENCE ORDERS,PAYMENTS TO CARERS,REDACTED,REDACTED,
09.01.2019,CHILDREN'S SERVICES,ESLAND SOUTH LTD,"18,821.43",RESIDENTIAL,EXTERNAL AGENCIES AND BODIES,2102906885,1000074184,
09.01.2019,CHILDREN'S SERVICES,RESTORATION CARE & SERVICES LTD,"21,686.49",RESIDENTIAL,EXTERNAL AGENCIES AND BODIES,2102906898,1000081085,
09.01.2019,CHILDREN'S SERVICES,RESTORATION CARE & SERVICES LTD,"23,182.11",RESIDENTIAL,EXTERNAL AGENCIES AND BODIES,2102906900,1000081085,
09.01.2019,CHILDREN'S SERVICES,KEYS CHILDCARE LTD,885.72,RESIDENTIAL,OTHER PAYMENTS FOR CLIENTS,2102907313,1000081582,
09.01.2019,CHILDREN'S SERVICES,CHILDHOOD FIRST,"-2,544.00",RESIDENTIAL,RESIDENTIAL CARE,2102906884,1000076330,
09.01.2019,CHILDREN'S SERVICES,WINGS EDUCATION LTD,"6,510.00",RESIDENTIAL,RESIDENTIAL CARE,2102906902,1000079560,
09.01.2019,CHILDREN'S SERVICES,KEYS CHILDCARE LTD,"10,260.00",RESIDENTIAL,RESIDENTIAL CARE,2102907314,1000081582,
09.01.2019,CHILDREN'S SERVICES,CAMBIAN AUTISM SERVICES LTD,"10,975.50",RESIDENTIAL,RESIDENTIAL CARE,2102906913,1000074719,
09.01.2019,CHILDREN'S SERVICES,PEBBLES CARE LTD,"11,957.14",RESIDENTIAL,RESIDENTIAL CARE,2102906886,1000081564,
09.01.2019,CHILDREN'S SERVICES,THE DRIVE CARE HOMES LTD,"13,176.24",RESIDENTIAL,RESIDENTIAL CARE,2102906901,1000003889,
09.01.2019,CHILDREN'S SERVICES,ST CHRISTOPHER FELLOWSHIP,"15,057.01",RESIDENTIAL,RESIDENTIAL CARE,2102906887,1000045269,
09.01.2019,CHILDREN'S SERVICES,FOOTSTEPS CARE LTD,"15,866.96",RESIDENTIAL,RESIDENTIAL CARE,2102906889,1000045464,
09.01.2019,CHILDREN'S SERVICES,HILLCREST CHILDRENS SERVICES LTD,"16,430.00",RESIDENTIAL,RESIDENTIAL CARE,2102906890,1000077489,
09.01.2019,CHILDREN'S SERVICES,KEYS CHILDCARE LTD,"16,607.14",RESIDENTIAL,RESIDENTIAL CARE,2102907312,1000081582,
09.01.2019,CHILDREN'S SERVICES,CASTLE HOMES LIMITED,"16,889.51",RESIDENTIAL,RESIDENTIAL CARE,2102906888,1000019388,
09.01.2019,CHILDREN'S SERVICES,EXCEPTIONAL CARE LTD,"18,600.00",RESIDENTIAL,RESIDENTIAL CARE,2102906891,1000080896,
09.01.2019,CHILDREN'S SERVICES,ST CHRISTOPHER FELLOWSHIP,"19,928.66",RESIDENTIAL,RESIDENTIAL CARE,2102907315,1000045269,
09.01.2019,CHILDREN'S SERVICES,THE AMICUS COMMUNITY (ARUNDEL) LTD,"20,570.67",RESIDENTIAL,RESIDENTIAL CARE,2102906883,1000079012,
09.01.2019,CHILDREN'S SERVICES,CAMBIAN CHILDCARE LTD,"21,257.01",RESIDENTIAL,RESIDENTIAL CARE,2102906892,1000075351,
09.01.2019,CHILDREN'S SERVICES,KEYS SPECIALIST RESIDENTIAL CHILDREN'S SERVICES,"21,921.34",RESIDENTIAL,RESIDENTIAL CARE,2102906897,1000081606,
09.01.2019,CHILDREN'S SERVICES,CHILDHOOD FIRST,"22,200.43",RESIDENTIAL,RESIDENTIAL CARE,2102906899,1000076330,
09.01.2019,CHILDREN'S SERVICES,STONELAKE LONDON LTD,"24,552.00",RESIDENTIAL,RESIDENTIAL CARE,2102906894,1000080075,
09.01.2019,CHILDREN'S SERVICES,CAMBIAN AUTISM SERVICES LTD,"29,951.10",RESIDENTIAL,RESIDENTIAL CARE,2102906912,1000074719,
09.01.2019,CHILDREN'S SERVICES,INMIND CHILDRENS SERVICES LTD,"32,992.99",RESIDENTIAL,RESIDENTIAL CARE,2102906893,1000078280,
09.01.2019,CHILDREN'S SERVICES,REDACTED PERSONAL DATA,"10,800.00",RESIDENTIAL,RESIDENTIAL CARE,REDACTED,REDACTED,
09.01.2019,CHILDREN'S SERVICES,REDACTED PERSONAL DATA,"18,600.00",RESIDENTIAL,RESIDENTIAL CARE,REDACTED,REDACTED,
09.01.2019,CHILDREN'S SERVICES,THE DRIVE CARE HOMES LTD,"1,700.57",RESOURCE PANEL,SECTION 17 PAYMENTS TO AGENCIES/CARERS,2102906878,1000003889,
09.01.2019,CHILDREN'S SERVICES,HOLMDENE HOUSING LTD,604.29,S24 CLA,EXTERNAL AGENCIES AND BODIES,2102906923,1000032598,
09.01.2019,CHILDREN'S SERVICES,HOLMDENE HOUSING LTD,"1,850.00",S24 CLA,EXTERNAL AGENCIES AND BODIES,2102906915,1000032598,
09.01.2019,CHILDREN'S SERVICES,HOLMDENE HOUSING LTD,"1,888.58",S24 CLA,EXTERNAL AGENCIES AND BODIES,2102906926,1000032598,
09.01.2019,CHILDREN'S SERVICES,YOUNG FUTURES,"1,984.00",S24 CLA,EXTERNAL AGENCIES AND BODIES,2102906921,1000059563,
09.01.2019,CHILDREN'S SERVICES,NETPEX LTD CORPORATE SERVICES,300.00,SEMI INDEPENDENT,EXTERNAL AGENCIES AND BODIES,5902337533,1000076073,
09.01.2019,CHILDREN'S SERVICES,NETPEX LTD CORPORATE SERVICES,600.00,SEMI INDEPENDENT,EXTERNAL AGENCIES AND BODIES,5902337532,1000076073,
09.01.2019,CHILDREN'S SERVICES,IASPIRE CARE SERVICES LTD,"2,314.26",SEMI INDEPENDENT,EXTERNAL AGENCIES AND BODIES,2102906879,1000081500,
09.01.2019,CHILDREN'S SERVICES,PATHWAY LTD,"4,800.00",SEMI INDEPENDENT,EXTERNAL AGENCIES AND BODIES,2102906880,1000080564,
09.01.2019,CHILDREN'S SERVICES,SPA EDUCATION TRUST,"99,378.00",SPA SCHOOL,HIGH NEEDS - TOP UP FUNDING,2102906871,1000081600,
09.01.2019,CHILDREN'S SERVICES,SPA EDUCATION TRUST,"149,068.00",SPA SCHOOL,HIGH NEEDS - TOP UP FUNDING,2102906869,1000081600,
09.01.2019,CHILDREN'S SERVICES,SPA EDUCATION TRUST,"149,068.00",SPA SCHOOL,HIGH NEEDS - TOP UP FUNDING,2102906870,1000081600,
09.01.2019,CHILDREN'S SERVICES,REDACTED PERSONAL DATA,269.08,SPECIAL GUARDIANSHIP,PAYMENTS TO CARERS,REDACTED,REDACTED,
09.01.2019,CHILDREN'S SERVICES,REDACTED PERSONAL DATA,269.08,SPECIAL GUARDIANSHIP,PAYMENTS TO CARERS,REDACTED,REDACTED,
09.01.2019,CHILDREN'S SERVICES,REDACTED PERSONAL DATA,269.08,SPECIAL GUARDIANSHIP,PAYMENTS TO CARERS,REDACTED,REDACTED,
09.01.2019,CHILDREN'S SERVICES,REDACTED PERSONAL DATA,269.08,SPECIAL GUARDIANSHIP,PAYMENTS TO CARERS,REDACTED,REDACTED,
09.01.2019,CHILDREN'S SERVICES,REDACTED PERSONAL DATA,342.45,SPECIAL GUARDIANSHIP,PAYMENTS TO CARERS,REDACTED,REDACTED,
09.01.2019,CHILDREN'S SERVICES,REDACTED PERSONAL DATA,343.05,SPECIAL GUARDIANSHIP,PAYMENTS TO CARERS,REDACTED,REDACTED,
09.01.2019,CHILDREN'S SERVICES,REDACTED PERSONAL DATA,356.15,SPECIAL GUARDIANSHIP,PAYMENTS TO CARERS,REDACTED,REDACTED,
09.01.2019,CHILDREN'S SERVICES,REDACTED PERSONAL DATA,388.04,SPECIAL GUARDIANSHIP,PAYMENTS TO CARERS,REDACTED,REDACTED,
09.01.2019,CHILDREN'S SERVICES,REDACTED PERSONAL DATA,389.34,SPECIAL GUARDIANSHIP,PAYMENTS TO CARERS,REDACTED,REDACTED,
09.01.2019,CHILDREN'S SERVICES,REDACTED PERSONAL DATA,403.04,SPECIAL GUARDIANSHIP,PAYMENTS TO CARERS,REDACTED,REDACTED,
09.01.2019,CHILDREN'S SERVICES,REDACTED PERSONAL DATA,525.00,SPECIAL GUARDIANSHIP,PAYMENTS TO CARERS,REDACTED,REDACTED,
09.01.2019,CHILDREN'S SERVICES,REDACTED PERSONAL DATA,525.00,SPECIAL GUARDIANSHIP,PAYMENTS TO CARERS,REDACTED,REDACTED,
09.01.2019,CHILDREN'S SERVICES,REDACTED PERSONAL DATA,525.00,SPECIAL GUARDIANSHIP,PAYMENTS TO CARERS,REDACTED,REDACTED,
09.01.2019,CHILDREN'S SERVICES,TACT,"1,099.78",STAYING PUT,EXTERNAL AGENCIES AND BODIES,2102907516,1000012941,
09.01.2019,CHILDREN'S SERVICES,CHARTWELLS,560.00,SUMMERHOUSE - EX416 - 5015232,CATERING MATERIALS & SUPPLIES,5902337452,1000010625,
09.01.2019,CHILDREN'S SERVICES,CHARTWELLS,"1,694.00",SUMMERHOUSE - EX416 - 5015232,CATERING MATERIALS & SUPPLIES,5902337453,1000010625,
09.01.2019,CHILDREN'S SERVICES,REDACTED PERSONAL DATA,300.00,UASC FURTHER EDUCATION SUPPORT,CLIENT TRANSPORT,REDACTED,REDACTED,
09.01.2019,CHILDREN'S SERVICES,HOLMDENE HOUSING LTD,780.00,UASC SECTION 24,EXTERNAL AGENCIES AND BODIES,2102906925,1000032598,
09.01.2019,CHILDREN'S SERVICES,HOLMDENE HOUSING LTD,"1,850.00",UASC SECTION 24,EXTERNAL AGENCIES AND BODIES,2102906914,1000032598,
09.01.2019,CHILDREN'S SERVICES,HOLMDENE HOUSING LTD,"1,850.00",UASC SECTION 24,EXTERNAL AGENCIES AND BODIES,2102906918,1000032598,
09.01.2019,CHILDREN'S SERVICES,HOLMDENE HOUSING LTD,"1,850.00",UASC SECTION 24,EXTERNAL AGENCIES AND BODIES,2102906920,1000032598,
09.01.2019,CHILDREN'S SERVICES,HOLMDENE HOUSING LTD,"1,850.00",UASC SECTION 24,EXTERNAL AGENCIES AND BODIES,2102906922,1000032598,
09.01.2019,CHILDREN'S SERVICES,HOLMDENE HOUSING LTD,"1,850.00",UASC SECTION 24,EXTERNAL AGENCIES AND BODIES,2102906924,1000032598,
09.01.2019,CHILDREN'S SERVICES,HOLMDENE HOUSING LTD,"2,800.00",UASC SECTION 24,EXTERNAL AGENCIES AND BODIES,2102906917,1000032598,
09.01.2019,COMMUNITIES,ELEANOR NURSING AND SOCIAL CARE LTD,"1,089.90",NO RECOURSE TO PUBLIC FUNDS,HOMECARE - C&V,2102907269,1000081695,
09.01.2019,COMMUNITIES,K.S.C. 1T LTD,"1,056.00",PHARMACY SM (INSTEAD OF ADULT SM S75),OTHER CONTRACTORS,5902337287,1000081458,
09.01.2019,CUSTOMER EXPERIENCE,PRISCILLA VELVINDRON,312.00,WALWORTH MSSP,PREMISES CLEANING,5902337535,1000081200,
09.01.2019,CUSTOMER EXPERIENCE HGF,QUINARY LTD,"7,562.45",NIGHTLY TA (NSC),EXTERNAL AGENCIES AND BODIES,5902337294,1000029106,
09.01.2019,CUSTOMER EXPERIENCE HGF,SK HOUSING LTD,"10,483.70",NIGHTLY TA (NSC),EXTERNAL AGENCIES AND BODIES,5902337419,1000070716,
09.01.2019,CUSTOMER EXPERIENCE HGF,RS REAL ESTATE LTD,"25,811.50",NIGHTLY TA (NSC),EXTERNAL AGENCIES AND BODIES,5902337278,1000072485,
09.01.2019,CUSTOMER EXPERIENCE HGF,TAAKSVALE HOUSING LTD,"103,351.30",NIGHTLY TA (NSC),EXTERNAL AGENCIES AND BODIES,5902337279,1000073665,
09.01.2019,CUSTOMER EXPERIENCE HGF,IDEAL QUARTERS LTD,"88,236.54",PSL PLACEMENTS,EXTERNAL AGENCIES AND BODIES,5902337557,1000079241,
09.01.2019,ENVIRONMENT & LEISURE,ABI TRAILERS S.R.L.,"10,267.26",SOUTH DOCK MARINA BUDGET,EQUIPMENT ETC HIRE/LEASE,6101867918,INTERNATIONAL PAYMENT,
09.01.2019,ENVIRONMENT AND LEISURE,ALDO RINALDI,756.14,CAPITAL PS (LEISURE),CONSTR'N SUB CONTRACT - NON CERTIFICATED,5902337311,1000079649,
09.01.2019,ENVIRONMENT AND LEISURE,CONWAY AECOM LTD,"101,000.00",CAPITAL PS (LEISURE),CONSTR'N SUB CONTRACT - NON CERTIFICATED,2102906753,3000001595,
09.01.2019,ENVIRONMENT AND LEISURE,RANDALL SHAW BILLINGHAM LTD,"1,365.00",CAPITAL PS (LEISURE),CONSTRUCTION FEES  - EXTERNAL,5902337547,1000057014,
09.01.2019,ENVIRONMENT AND LEISURE,WARWICK LANDSCAPING LTD,"19,342.00",CAPITAL PS (LEISURE),CONSTRUCTION MAIN CONTRACT,2102906750,3000001705,
09.01.2019,ENVIRONMENT DIRECTORATE,ARNOLD CLARK VEHICLE MANAGEMENT,257.95,CAR LEASING CTRL A/C,VEHICLE LEASING CHARGES,5902337483,1000079116,
09.01.2019,ENVIRONMENT DIRECTORATE,ARNOLD CLARK VEHICLE MANAGEMENT,271.61,CAR LEASING CTRL A/C,VEHICLE LEASING CHARGES,5902337466,1000079116,
09.01.2019,ENVIRONMENT DIRECTORATE,ARNOLD CLARK VEHICLE MANAGEMENT,283.26,CAR LEASING CTRL A/C,VEHICLE LEASING CHARGES,5902337466,1000079116,
09.01.2019,ENVIRONMENT DIRECTORATE,ARNOLD CLARK VEHICLE MANAGEMENT,288.90,CAR LEASING CTRL A/C,VEHICLE LEASING CHARGES,5902337459,1000079116,
09.01.2019,ENVIRONMENT DIRECTORATE,ARNOLD CLARK VEHICLE MANAGEMENT,294.19,CAR LEASING CTRL A/C,VEHICLE LEASING CHARGES,5902337449,1000079116,
09.01.2019,ENVIRONMENT DIRECTORATE,ARNOLD CLARK VEHICLE MANAGEMENT,297.49,CAR LEASING CTRL A/C,VEHICLE LEASING CHARGES,5902337459,1000079116,
09.01.2019,ENVIRONMENT DIRECTORATE,ARNOLD CLARK VEHICLE MANAGEMENT,298.61,CAR LEASING CTRL A/C,VEHICLE LEASING CHARGES,5902337508,1000079116,
09.01.2019,ENVIRONMENT DIRECTORATE,ARNOLD CLARK VEHICLE MANAGEMENT,302.51,CAR LEASING CTRL A/C,VEHICLE LEASING CHARGES,5902337449,1000079116,
09.01.2019,ENVIRONMENT DIRECTORATE,ARNOLD CLARK VEHICLE MANAGEMENT,305.32,CAR LEASING CTRL A/C,VEHICLE LEASING CHARGES,5902337525,1000079116,
09.01.2019,ENVIRONMENT DIRECTORATE,ARNOLD CLARK VEHICLE MANAGEMENT,311.03,CAR LEASING CTRL A/C,VEHICLE LEASING CHARGES,5902337522,1000079116,
09.01.2019,ENVIRONMENT DIRECTORATE,ARNOLD CLARK VEHICLE MANAGEMENT,314.07,CAR LEASING CTRL A/C,VEHICLE LEASING CHARGES,5902337480,1000079116,
09.01.2019,ENVIRONMENT DIRECTORATE,ARNOLD CLARK VEHICLE MANAGEMENT,317.70,CAR LEASING CTRL A/C,VEHICLE LEASING CHARGES,5902337480,1000079116,
09.01.2019,ENVIRONMENT DIRECTORATE,ARNOLD CLARK VEHICLE MANAGEMENT,322.30,CAR LEASING CTRL A/C,VEHICLE LEASING CHARGES,5902337518,1000079116,
09.01.2019,ENVIRONMENT DIRECTORATE,ARNOLD CLARK VEHICLE MANAGEMENT,329.14,CAR LEASING CTRL A/C,VEHICLE LEASING CHARGES,5902337446,1000079116,
09.01.2019,ENVIRONMENT DIRECTORATE,ARNOLD CLARK VEHICLE MANAGEMENT,333.07,CAR LEASING CTRL A/C,VEHICLE LEASING CHARGES,5902337522,1000079116,
09.01.2019,ENVIRONMENT DIRECTORATE,ARNOLD CLARK VEHICLE MANAGEMENT,334.89,CAR LEASING CTRL A/C,VEHICLE LEASING CHARGES,5902337525,1000079116,
09.01.2019,ENVIRONMENT DIRECTORATE,ARNOLD CLARK VEHICLE MANAGEMENT,339.92,CAR LEASING CTRL A/C,VEHICLE LEASING CHARGES,5902337446,1000079116,
09.01.2019,ENVIRONMENT DIRECTORATE,ARNOLD CLARK VEHICLE MANAGEMENT,341.66,CAR LEASING CTRL A/C,VEHICLE LEASING CHARGES,5902337508,1000079116,
09.01.2019,ENVIRONMENT DIRECTORATE,ARNOLD CLARK VEHICLE MANAGEMENT,345.88,CAR LEASING CTRL A/C,VEHICLE LEASING CHARGES,5902337518,1000079116,
09.01.2019,ENVIRONMENT DIRECTORATE,ARNOLD CLARK VEHICLE MANAGEMENT,357.06,CAR LEASING CTRL A/C,VEHICLE LEASING CHARGES,5902337531,1000079116,
09.01.2019,ENVIRONMENT DIRECTORATE,ARNOLD CLARK VEHICLE MANAGEMENT,403.79,CAR LEASING CTRL A/C,VEHICLE LEASING CHARGES,5902337531,1000079116,
09.01.2019,ENVIRONMENT DIRECTORATE,ARNOLD CLARK VEHICLE MANAGEMENT,489.76,CAR LEASING CTRL A/C,VEHICLE LEASING CHARGES,5902337506,1000079116,
09.01.2019,ENVIRONMENT DIRECTORATE,ARNOLD CLARK VEHICLE MANAGEMENT,521.51,CAR LEASING CTRL A/C,VEHICLE LEASING CHARGES,5902337506,1000079116,
09.01.2019,ENVIRONMENT DIRECTORATE,ARNOLD CLARK VEHICLE MANAGEMENT,599.05,CAR LEASING CTRL A/C,VEHICLE LEASING CHARGES,5902337540,1000079116,
09.01.2019,ENVIRONMENT DIRECTORATE,ARNOLD CLARK VEHICLE MANAGEMENT,675.18,CAR LEASING CTRL A/C,VEHICLE LEASING CHARGES,5902337540,1000079116,
09.01.2019,ENVIRONMENT DIRECTORATE,AUTOMOTIVE LEASING,798.20,CAR LEASING CTRL A/C,VEHICLE LEASING CHARGES,5902337443,11014756,
09.01.2019,ENVIRONMENT DIRECTORATE,AUTOMOTIVE LEASING,862.13,CAR LEASING CTRL A/C,VEHICLE LEASING CHARGES,5902337443,11014756,
09.01.2019,ENVIRONMENT DIRECTORATE,ARNOLD CLARK VEHICLE MANAGEMENT,"1,093.59",CAR LEASING CTRL A/C,VEHICLE LEASING CHARGES,5902337513,1000079116,
09.01.2019,ENVIRONMENT DIRECTORATE,ARNOLD CLARK VEHICLE MANAGEMENT,"1,166.69",CAR LEASING CTRL A/C,VEHICLE LEASING CHARGES,5902337513,1000079116,
09.01.2019,ENVIRONMENT DIRECTORATE,RYGOR COMMERCIALS LIMITED,"-3,534.12",COMMERCIAL VEH CTRL A/C,HIRED VEHICLES,5902337499,1000063262,
09.01.2019,ENVIRONMENT DIRECTORATE,CLOSE BROTHERS VEHICLE HIRE LTD,256.20,COMMERCIAL VEH CTRL A/C,HIRED VEHICLES,5902337548,1000074394,
09.01.2019,ENVIRONMENT DIRECTORATE,CLOSE BROTHERS VEHICLE HIRE LTD,256.20,COMMERCIAL VEH CTRL A/C,HIRED VEHICLES,5902337573,1000074394,
09.01.2019,ENVIRONMENT DIRECTORATE,DAWSON RENTALS SWEEPERS,300.08,COMMERCIAL VEH CTRL A/C,HIRED VEHICLES,5902337568,1000068168,
09.01.2019,ENVIRONMENT DIRECTORATE,DAWSON RENTALS SWEEPERS,300.08,COMMERCIAL VEH CTRL A/C,HIRED VEHICLES,5902337569,1000068168,
09.01.2019,ENVIRONMENT DIRECTORATE,DAWSON RENTALS SWEEPERS,300.08,COMMERCIAL VEH CTRL A/C,HIRED VEHICLES,5902337571,1000068168,
09.01.2019,ENVIRONMENT DIRECTORATE,DAWSON RENTALS SWEEPERS,300.08,COMMERCIAL VEH CTRL A/C,HIRED VEHICLES,5902337572,1000068168,
09.01.2019,ENVIRONMENT DIRECTORATE,DAWSON RENTALS SWEEPERS,300.08,COMMERCIAL VEH CTRL A/C,HIRED VEHICLES,5902337574,1000068168,
09.01.2019,ENVIRONMENT DIRECTORATE,DAWSON RENTALS SWEEPERS,300.08,COMMERCIAL VEH CTRL A/C,HIRED VEHICLES,5902337581,1000068168,
09.01.2019,ENVIRONMENT DIRECTORATE,DAWSON RENTALS SWEEPERS,300.08,COMMERCIAL VEH CTRL A/C,HIRED VEHICLES,5902337582,1000068168,
09.01.2019,ENVIRONMENT DIRECTORATE,DAWSON RENTALS SWEEPERS,300.08,COMMERCIAL VEH CTRL A/C,HIRED VEHICLES,5902337583,1000068168,
09.01.2019,ENVIRONMENT DIRECTORATE,DAWSON RENTALS SWEEPERS,300.08,COMMERCIAL VEH CTRL A/C,HIRED VEHICLES,5902337584,1000068168,
09.01.2019,ENVIRONMENT DIRECTORATE,DAWSON RENTALS SWEEPERS,300.08,COMMERCIAL VEH CTRL A/C,HIRED VEHICLES,5902337585,1000068168,
09.01.2019,ENVIRONMENT DIRECTORATE,CLOSE BROTHERS VEHICLE HIRE LTD,302.40,COMMERCIAL VEH CTRL A/C,HIRED VEHICLES,5902337559,1000074394,
09.01.2019,ENVIRONMENT DIRECTORATE,CLOSE BROTHERS VEHICLE HIRE LTD,302.40,COMMERCIAL VEH CTRL A/C,HIRED VEHICLES,5902337560,1000074394,
09.01.2019,ENVIRONMENT DIRECTORATE,CLOSE BROTHERS VEHICLE HIRE LTD,302.40,COMMERCIAL VEH CTRL A/C,HIRED VEHICLES,5902337563,1000074394,
09.01.2019,ENVIRONMENT DIRECTORATE,CLOSE BROTHERS VEHICLE HIRE LTD,302.40,COMMERCIAL VEH CTRL A/C,HIRED VEHICLES,5902337565,1000074394,
09.01.2019,ENVIRONMENT DIRECTORATE,CLOSE BROTHERS VEHICLE HIRE LTD,302.40,COMMERCIAL VEH CTRL A/C,HIRED VEHICLES,5902337567,1000074394,
09.01.2019,ENVIRONMENT DIRECTORATE,DAWSON RENTALS BUS & COACH LTD,335.00,COMMERCIAL VEH CTRL A/C,HIRED VEHICLES,5902337536,1000042174,
09.01.2019,ENVIRONMENT DIRECTORATE,DAWSON RENTALS BUS & COACH LTD,335.00,COMMERCIAL VEH CTRL A/C,HIRED VEHICLES,5902337537,1000042174,
09.01.2019,ENVIRONMENT DIRECTORATE,CLOSE BROTHERS VEHICLE HIRE LTD,472.08,COMMERCIAL VEH CTRL A/C,HIRED VEHICLES,5902337570,1000074394,
09.01.2019,ENVIRONMENT DIRECTORATE,AUTOMOTIVE LEASING,500.00,COMMERCIAL VEH CTRL A/C,HIRED VEHICLES,5902337472,11014756,
09.01.2019,ENVIRONMENT DIRECTORATE,AUTOMOTIVE LEASING,932.75,COMMERCIAL VEH CTRL A/C,HIRED VEHICLES,5902337468,11014756,
09.01.2019,ENVIRONMENT DIRECTORATE,AUTOMOTIVE LEASING,"1,074.40",COMMERCIAL VEH CTRL A/C,HIRED VEHICLES,5902337464,11014756,
09.01.2019,ENVIRONMENT DIRECTORATE,ACCESS HIRE NATIONWIDE LTD,"1,306.43",COMMERCIAL VEH CTRL A/C,HIRED VEHICLES,5902337576,1000048527,
09.01.2019,ENVIRONMENT DIRECTORATE,RYGOR COMMERCIALS LIMITED,"4,416.00",COMMERCIAL VEH CTRL A/C,HIRED VEHICLES,5902337495,1000063262,
09.01.2019,ENVIRONMENT DIRECTORATE,AUTOMOTIVE LEASING,"40,163.92",COMMERCIAL VEH CTRL A/C,HIRED VEHICLES,5902337457,11014756,
09.01.2019,ENVIRONMENT DIRECTORATE,LONDON HIRE T/A R J MOTORS,535.62,COMMERCIAL VEH CTRL A/C,VEHICLE REPAIRS & MAINTENANCE,5902337338,1000047106,
09.01.2019,ENVIRONMENT DIRECTORATE,LONDON TOOLS LIMITED,365.00,ENGINEERING CRAFTS,EQUIPMENT PURCHASE & REPAIR,5902337487,1000003017,
09.01.2019,ENVIRONMENT DIRECTORATE,LEWIS AND GRAVES PARTNERSHIP LTD,"1,110.00",ESTATE CLEANING-GENERAL,OTHER CONTRACTORS,5902337575,1518111,
09.01.2019,ENVIRONMENT DIRECTORATE,JAAMA LTD,"14,442.84",FLEET SERVICES MANAGEMENT,COMPUTER MAINTENANCE,5902337484,1000080704,
09.01.2019,ENVIRONMENT DIRECTORATE,WALWORTH GARDEN SERVICES,"5,104.42",MANAGEMENT TEAM,GROUNDS MAINTENANCE,5902337562,1000047083,
09.01.2019,ENVIRONMENT DIRECTORATE,BELL BRUSH COMPANY,"1,379.40",MANAGEMENT TEAM,MATERIALS,5902337364,1259776,
09.01.2019,ENVIRONMENT DIRECTORATE,COMPLETE TREE CARE LTD,"2,049.88",NON HOUSING GROUNDS,AGENCY STAFF,5902337304,1000041410,
09.01.2019,ENVIRONMENT DIRECTORATE,ENVIRO TECHNOLOGY SERVICES PLC,"1,171.75",POLLUTION CONTROL,EQUIPMENT PURCHASE & REPAIR,5902337542,1000005024,
09.01.2019,ENVIRONMENT DIRECTORATE,TRANSPORT FOR LONDON,"101,021.13",TRAFFIC SIGNALS,EXTERNAL AGENCIES AND BODIES,5902337429,1000023986,
09.01.2019,F & C S EXCLUDING CORPORATE BUDGETS,NORTHGATE PUBLIC SERVICES (UK) LTD,"9,166.67",ADMINISTRATIVE SUPPORT,PRINTING,5902337544,1000037405,
09.01.2019,F & C S EXCLUDING CORPORATE BUDGETS,NORTHGATE PUBLIC SERVICES (UK) LTD,"4,500.00",ADMINISTRATIVE SUPPORT,SOFTWARE,5902337549,1000037405,
09.01.2019,F & C S EXCLUDING CORPORATE BUDGETS,BETTER BANKSIDE,"22,627.75",BETTER BANKSIDE,EXTERNAL AGENCIES AND BODIES,5902337551,1000036227,
09.01.2019,F & C S EXCLUDING CORPORATE BUDGETS,BETTER BANKSIDE,"108,662.01",BETTER BANKSIDE,EXTERNAL AGENCIES AND BODIES,5902337432,1000036227,
09.01.2019,F & C S EXCLUDING CORPORATE BUDGETS,DARENACE LTD,"1,950.00",FINANCE DIRECTOR,PROFESSIONAL FEES,2102907528,1000082184,
09.01.2019,F & C S EXCLUDING CORPORATE BUDGETS,TROWERS & HAMLINS LLP,"4,213.45",LEGAL SVCES MANAGEMENT,PROFESSIONAL FEES,5902337556,1000016239,
09.01.2019,F & C S EXCLUDING CORPORATE BUDGETS,LONDON BRIDGE BUSINESS IMPROVEMENT,"19,940.40",TEAM LONDON BRIDGE,EXTERNAL AGENCIES AND BODIES,5902337545,1000050879,
09.01.2019,F & C S EXCLUDING CORPORATE BUDGETS,WE ARE WATERLOO,954.81,WATERLOO QUARTER,EXTERNAL AGENCIES AND BODIES,5902337435,1000057618,
09.01.2019,HOUSING & MODERNISATION,ADVISING COMMUNITIES,"18,000.00",LEGAL GRANTS,EXTERNAL AGENCIES AND BODIES,5902337284,11292649,
09.01.2019,HOUSING & MODERNISATION,ADVISING COMMUNITIES,"78,345.00",LEGAL GRANTS,EXTERNAL AGENCIES AND BODIES,5902337283,11292649,
09.01.2019,HOUSING & MODERNISATION,SOUTHWARK LAW CENTRE,"92,400.00",LEGAL GRANTS,EXTERNAL AGENCIES AND BODIES,5902337286,1981325,
09.01.2019,HOUSING & MODERNISATION,SOUTHWARK CITIZENS ADVICE,"96,550.00",LEGAL GRANTS,EXTERNAL AGENCIES AND BODIES,5902337285,1874379,
09.01.2019,HOUSING HRA,PROFILE CONSTRUCTION CONSULTANTS LTD,"1,047.50",CAPITAL PS (HRA),CONSTRUCTION FEES  - EXTERNAL,5902337521,1000062440,
09.01.2019,HOUSING HRA,LUSTRE CONSULTING LTD,"1,125.00",CAPITAL PS (HRA),CONSTRUCTION FEES  - EXTERNAL,5902337437,1000074552,
09.01.2019,HOUSING HRA,LUSTRE CONSULTING LTD,"1,125.00",CAPITAL PS (HRA),CONSTRUCTION FEES  - EXTERNAL,5902337438,1000074552,
09.01.2019,HOUSING HRA,CALFORD SEADEN LLP,"10,412.50",CAPITAL PS (HRA),CONSTRUCTION FEES  - EXTERNAL,5902337555,1061592,
09.01.2019,HOUSING HRA,SALTASH ENTERPRISES LTD,"136,304.17",CAPITAL PS (HRA),CONSTRUCTION MAIN CONTRACT -CERTIFICATED,2102906754,4013605,
09.01.2019,HOUSING HRA,MOTT MACDONALD LTD,"9,964.00",CAPITAL PS (HRA),CONSTRUCTION SITE COSTS,5902337539,1000067305,
09.01.2019,HOUSING STRATEGY AND OPTIONS,CIVICA UK LTD,"14,275.00",HOMELESS & HOUSING OPTIONS MGT,PROFESSIONAL FEES,5902337566,1730625,
09.01.2019,LEISURE DIRECTORATE,SOUTH LONDON GALLERY,"12,875.00",ARTS GRANTS,GRANTS,5902337553,11011694,
09.01.2019,LEISURE DIRECTORATE,SOUTH LONDON GALLERY,"12,875.00",ARTS GRANTS,GRANTS,5902337553,11011694,
09.01.2019,LEISURE DIRECTORATE,SOUTH LONDON GALLERY,"12,875.00",ARTS GRANTS,GRANTS,5902337553,11011694,
09.01.2019,LEISURE DIRECTORATE,KENT COUNTY COUNCIL - LASER,574.92,BURGESS AREA TEAM,GAS,5902337564,1000012926,
09.01.2019,LEISURE DIRECTORATE,P D CONSTRUCTION LTD,580.00,BURGESS AREA TEAM,GROUNDS MAINTENANCE,5902337409,1000000390,
09.01.2019,LEISURE DIRECTORATE,WESTMINSTER WASTE,522.00,CEMETERIES,OTHER CONTRACTORS,5902337546,1000080933,
09.01.2019,LEISURE DIRECTORATE,WESTMINSTER WASTE,533.00,CEMETERIES,OTHER CONTRACTORS,5902337543,1000080933,
09.01.2019,LEISURE DIRECTORATE,WESTMINSTER WASTE,738.00,CEMETERIES,OTHER CONTRACTORS,5902337436,1000080933,
09.01.2019,LEISURE DIRECTORATE,VIVEDIA LIMITED,745.00,CREMATORIUM,OP LEASE/HIRE CHARGES:PLANT/EQUIP/FURNIT,5902337033,1000064867,
09.01.2019,LEISURE DIRECTORATE,CALLOW MASTER LOCKSMITHS,500.25,DULWICH AREA TEAM,OTHER R&M,5902337312,11179552,
09.01.2019,LEISURE DIRECTORATE,DEMCO EUROPE LTD T/A GRESSWELL,253.85,GROVE VALE LIBRARY,EQUIPMENT PURCHASE & REPAIR,5902337300,1000055420,
09.01.2019,LEISURE DIRECTORATE,CAPITA BUSINESS SERVICES LTD,"1,000.00",IT DEVELOPMENT,COMMS & COMPUTING CONTRACT CHARGES,5902337314,1000006291,
09.01.2019,LEISURE DIRECTORATE,G4S CASH SERVICES (UK) LTD,362.32,LIBARIES DEVELOPMENT,SECURITY SERVICES,5902337306,1420519,
09.01.2019,LEISURE DIRECTORATE,KENT COUNTY COUNCIL - LASER,327.37,PECKHAM ADVENTURE PLAY,ELECTRICITY,5902337441,1000012926,
09.01.2019,LEISURE DIRECTORATE,RAKHS NEWS LTD,317.25,PECKHAM LIBRARY,BOOKS & PUBLICATIONS,5902337433,1000032933,
09.01.2019,LEISURE DIRECTORATE,KENT COUNTY COUNCIL - LASER,842.30,SOUTHWARK AREA TEAM,ELECTRICITY,5902337423,1000012926,
09.01.2019,LEISURE DIRECTORATE,KENT COUNTY COUNCIL - LASER,"1,458.74",SOUTHWARK AREA TEAM,ELECTRICITY,5902337424,1000012926,
09.01.2019,LEISURE DIRECTORATE,KENT COUNTY COUNCIL - LASER,"2,463.03",SOUTHWARK AREA TEAM,ELECTRICITY,5902337425,1000012926,
09.01.2019,MODERNISATION HGF,M J MAPP LTD,753.70,47B EAST DULWICH ROAD,RENTS,2102906768,1000056816,
09.01.2019,MODERNISATION HGF,M J MAPP LTD,"34,387.50",47B EAST DULWICH ROAD,RENTS,2102906764,1000056816,
09.01.2019,MODERNISATION HGF,M J MAPP LTD,"1,357.28",47B EAST DULWICH ROAD,SERVICE CHARGES,2102906766,1000056816,
09.01.2019,MODERNISATION HGF,SODEXHO PASS LTD,714.33,CHILDCARE VOUCHERS,OTHER EMPLOYEE EXPENSES,5902337534,1000048650,
09.01.2019,MODERNISATION HGF,SODEXHO PASS LTD,"23,811.04",CHILDCARE VOUCHERS,OTHER EMPLOYEE EXPENSES,5902337534,1000048650,
09.01.2019,MODERNISATION HGF,BRITISH GAS,"1,816.29",CURLEW HOUSE,GAS,5902337439,1000054825,
09.01.2019,MODERNISATION HGF,JOHN STATTERS ASSOCIATES,"4,275.00",HR PAYROLL COSTS,CONSULTANTS SERVICES,5902337362,1000065600,
09.01.2019,MODERNISATION HGF,COMENSURA LTD,"163,615.69",WEEKLY PAYMENTS,AGENCY STAFF,5902337527,1000051261,
09.01.2019,RESIDENT SERVICES,GREENHAM TRADING LTD,258.14,OPERATIONS/OFFICES ACCOMMODATION,MATERIALS,5902337454,1000006610,
09.01.2019,SOUTHWARK BUILDING SERVICES,MH TECHNICAL SERVICES,500.10,BERMONDSEY DAY TO DAY - CARPENTER,MATERIALS,5902337375,1963399,
09.01.2019,SOUTHWARK BUILDING SERVICES,GRAFTON MERCHANTING GB LTD,895.46,COMMUNAL GROUNDWORK TEAM,MATERIALS,5902337341,11296147,
09.01.2019,SOUTHWARK BUILDING SERVICES,LONDON TOOLS LIMITED,270.00,ELECTRICAL TEAM - ELECTRICIAN,MATERIALS,5902337413,1000003017,
09.01.2019,SOUTHWARK BUILDING SERVICES,MH TECHNICAL SERVICES,255.89,R & M OVERHEADS,MATERIALS,5902337388,1963399,
09.01.2019,SOUTHWARK BUILDING SERVICES,MH TECHNICAL SERVICES,469.14,R & M OVERHEADS,MATERIALS,5902337385,1963399,
09.01.2019,SOUTHWARK BUILDING SERVICES,PEARSON GLAZING LIMITED,426.82,ROTHERHITHE DAY TO DAY - GLAZIER,MATERIALS,5902337380,1891977,
09.01.2019,SOUTHWARK BUILDING SERVICES,"BROWNING, JONES & MORRIS LTD",287.91,STORES/LOGISTICS,CREDITORS -GR/IR CLEARING ACCOUNT,5902337329,1027429,
09.01.2019,SOUTHWARK BUILDING SERVICES,"BROWNING, JONES & MORRIS LTD",779.40,STORES/LOGISTICS,CREDITORS -GR/IR CLEARING ACCOUNT,5902337387,1027429,
09.01.2019,SOUTHWARK BUILDING SERVICES,EDMUNDSON ELECTRICAL LTD,890.00,STORES/LOGISTICS,CREDITORS -GR/IR CLEARING ACCOUNT,5902337299,1000066568,
09.01.2019,SOUTHWARK BUILDING SERVICES,"BROWNING, JONES & MORRIS LTD","2,800.00",STORES/LOGISTICS,CREDITORS -GR/IR CLEARING ACCOUNT,5902337327,1027429,
09.01.2019,SOUTHWARK BUILDING SERVICES,HOWDENS JOINERY CO,341.60,WALWORTH TM 1 DAY TO DAY - CARPENTER,MATERIALS,5902337347,1000027491,
09.01.2019,SOUTHWARK BUILDING SERVICES,HOWDENS JOINERY CO,341.60,WALWORTH TM 1 DAY TO DAY - CARPENTER,MATERIALS,5902337400,1000027491,
09.01.2019,SOUTHWARK BUILDING SERVICES,MH TECHNICAL SERVICES,384.60,WALWORTH TM 2 DAY TO DAY - CARPENTER,MATERIALS,5902337379,1963399,
09.01.2019,STRATEGIC SERVICES,SWORD CONNECT,"4,000.00",DIGITAL DELIVERY,SOFTWARE,6101867919,INTERNATIONAL PAYMENT,
10.01.2019,ADULT SOCIAL CARE,SALISBURY SUPPORT 4 AUTISM LTD,"7,714.20",APPOINTEESHIPS,OTHER PAYMENTS FOR CLIENTS,2102906706,1000082152,
10.01.2019,ADULT SOCIAL CARE,STRADA CARE LTD,"13,500.00",APPOINTEESHIPS,OTHER PAYMENTS FOR CLIENTS,2102906704,1000082133,
10.01.2019,ADULT SOCIAL CARE,REDACTED PERSONAL DATA,400.00,APPOINTEESHIPS,OTHER PAYMENTS FOR CLIENTS,REDACTED,REDACTED,
10.01.2019,ADULT SOCIAL CARE,ACCESS MOBILITY TRANSPORT LTD,"1,632.00",LD LTS 18-64,CLIENT TRANSPORT,2102907549,1000074637,
10.01.2019,ADULT SOCIAL CARE,DARETHEALTHCARE UK LTD,496.44,LD LTS 18-64,SUPPORTED LIVING,2102907563,1000059149,
10.01.2019,ADULT SOCIAL CARE,MARCUS AND MARCUS LTD,"12,000.00",LD LTS 18-64,SUPPORTED LIVING,2102907588,1000065913,
10.01.2019,ADULT SOCIAL CARE,MEDACS HOMECARE,440.73,PHY LTS 18-64,HOMECARE - SPOT,2102907565,11287415,
10.01.2019,ADULT SOCIAL CARE,MEDACS HOMECARE,473.24,PHY LTS 18-64,HOMECARE - SPOT,2102907547,11287415,
10.01.2019,ADULT SOCIAL CARE,MEDACS HOMECARE,722.92,PHY LTS 65+,HOMECARE - SPOT,2102907559,11287415,
10.01.2019,ADULT SOCIAL CARE,MEDACS HOMECARE,726.11,PHY LTS 65+,HOMECARE - SPOT,2102907561,11287415,
10.01.2019,ADULT SOCIAL CARE,MEDACS HOMECARE,726.53,PHY LTS 65+,HOMECARE - SPOT,2102907555,11287415,
10.01.2019,ADULT SOCIAL CARE,MEDACS HOMECARE,737.36,PHY LTS 65+,HOMECARE - SPOT,2102907553,11287415,
10.01.2019,ADULT SOCIAL CARE,MEDACS HOMECARE,780.30,PHY LTS 65+,HOMECARE - SPOT,2102907557,11287415,
10.01.2019,ADULT SOCIAL CARE,INSPIRE SOCIAL CARE LTD,881.20,SAFEGUARDING TEAM,OTHER CONTRACTORS,5902338084,1000081757,
10.01.2019,ADULT SOCIAL CARE,HCP STAFFING SERVICES LTD,276.32,SPECIALIST CARE,SECTION 17 PAYMENTS TO AGENCIES/CARERS,2102907606,1000078329,
10.01.2019,ADULT SOCIAL CARE,METRO HOMECARE LTD,306.90,SPECIALIST CARE,SECTION 17 PAYMENTS TO AGENCIES/CARERS,2102907609,1000070695,
10.01.2019,ADULT SOCIAL CARE,METRO HOMECARE LTD,334.80,SPECIALIST CARE,SECTION 17 PAYMENTS TO AGENCIES/CARERS,2102907605,1000070695,
10.01.2019,ADULT SOCIAL CARE,METRO HOMECARE LTD,336.00,SPECIALIST CARE,SECTION 17 PAYMENTS TO AGENCIES/CARERS,2102907604,1000070695,
10.01.2019,ADULT SOCIAL CARE,METRO HOMECARE LTD,418.50,SPECIALIST CARE,SECTION 17 PAYMENTS TO AGENCIES/CARERS,2102907603,1000070695,
10.01.2019,ADULT SOCIAL CARE,METRO HOMECARE LTD,530.10,SPECIALIST CARE,SECTION 17 PAYMENTS TO AGENCIES/CARERS,2102907612,1000070695,
10.01.2019,ADULT SOCIAL CARE,METRO HOMECARE LTD,725.40,SPECIALIST CARE,SECTION 17 PAYMENTS TO AGENCIES/CARERS,2102907613,1000070695,
10.01.2019,ADULT SOCIAL CARE,INTERSERVE HEALTHCARE,"2,302.18",SPECIALIST CARE,SECTION 17 PAYMENTS TO AGENCIES/CARERS,2102907611,1000049612,
10.01.2019,ADULT SOCIAL CARE,METRO HOMECARE LTD,809.10,TRANSITIONS 14-18YRS,SECTION 17 PAYMENTS TO AGENCIES/CARERS,2102907608,1000070695,
10.01.2019,ASSET MANAGEMENT,PJP DEVELOPMENT CONSULTANCY LTD,"2,677.50",DEVELOPMENT DELIVERY,PROFESSIONAL FEES,5902338064,1000080388,
10.01.2019,ASSET MANAGEMENT,UNIVERSA LAW LTD,763.25,DISREPAIR,BUILDING R&M,5902337962,1000081466,
10.01.2019,ASSET MANAGEMENT,T BROWN & SONS (HEATING) LTD,"4,160.00",ENG CONTRACTS (NORTH),PLANNED MAINTENANCE,5902338065,1000040191,
10.01.2019,CENTRAL FUNCTIONS,ANALYTICAL BUSINESS SOLUTIONS (UK),"2,970.00",BUSINESS APPLICATIONS,CONSULTANTS SERVICES,5902338035,1000037133,
10.01.2019,CENTRAL FUNCTIONS,NORTHGATE PUBLIC SERVICES (UK) LTD,"43,000.00",BUSINESS APPLICATIONS,SOFTWARE,5902337947,1000037405,
10.01.2019,CENTRAL FUNCTIONS,EDF ENERGY PLC,593.01,HEATING ACCOUNT,ELECTRICITY,5902337903,1008746,
10.01.2019,CENTRAL FUNCTIONS,ANDREW SKELLY,"2,000.00",HOME OWNERSHIP,LEGAL FEES & COURT COSTS,5902337651,1000069248,
10.01.2019,CHIEF EXECUTIVE,MACE LTD,"7,305.00",CAPITAL PS (REGEN),CONSTRUCTION FEES,5902338095,1000067959,
10.01.2019,CHIEF EXECUTIVE,MACE LTD,"7,826.00",CAPITAL PS (REGEN),CONSTRUCTION FEES,5902338091,1000067959,
10.01.2019,CHIEF EXECUTIVE,AMR CONSULT LTD,"1,437.50",CAPITAL PS (REGEN),CONSTRUCTION SUB CONTRACT,5902337594,1000080834,
10.01.2019,CHIEF EXECUTIVE'S OFFICE,TANNERY ARTS LTD - DRAWING ROOM,"2,320.50",YOUTH FUND EMPLOYMENT,GRANTS,2102907533,1000080895,
10.01.2019,CHIEF EXECUTIVE'S OFFICE,ARCO ACADEMY,"4,176.90",YOUTH FUND EMPLOYMENT,GRANTS,2102907532,1000080706,
10.01.2019,CHILDREN AND ADULT,GLEEDS ADVISORY LTD,"1,000.00",CAPITAL PS (EDUCATION),CONSTRUCTION FEES  - EXTERNAL,5902338130,1000076155,
10.01.2019,CHILDREN AND ADULT,GLEEDS ADVISORY LTD,"1,000.00",CAPITAL PS (EDUCATION),CONSTRUCTION FEES  - EXTERNAL,5902338135,1000076155,
10.01.2019,CHILDREN AND ADULT,GLEEDS ADVISORY LTD,"1,500.00",CAPITAL PS (EDUCATION),CONSTRUCTION FEES  - EXTERNAL,5902338132,1000076155,
10.01.2019,CHILDREN'S SERVICES,SWIIS FOSTER CARE LTD,697.97,AGENCY FOSTERING,EXTERNAL AGENCIES AND BODIES,2102907596,1000069633,
10.01.2019,CHILDREN'S SERVICES,SWIIS FOSTER CARE LTD,697.97,AGENCY FOSTERING,EXTERNAL AGENCIES AND BODIES,2102907600,1000069633,
10.01.2019,CHILDREN'S SERVICES,FUSION FOSTERING LTD,"3,767.61",AGENCY FOSTERING,EXTERNAL AGENCIES AND BODIES,2102907657,1000081674,
10.01.2019,CHILDREN'S SERVICES,DIVERSITY FOSTER CARE LTD,"4,108.69",AGENCY FOSTERING,EXTERNAL AGENCIES AND BODIES,2102907567,1000081399,
10.01.2019,CHILDREN'S SERVICES,DIVERSITY FOSTER CARE LTD,"4,108.69",AGENCY FOSTERING,EXTERNAL AGENCIES AND BODIES,2102907570,1000081399,
10.01.2019,CHILDREN'S SERVICES,SHARED CARE SERVICES LTD,"5,838.54",AGENCY FOSTERING,EXTERNAL AGENCIES AND BODIES,2102907594,1000080308,
10.01.2019,CHILDREN'S SERVICES,ALBION PRIMARY SCHOOL,"13,500.00",ALBION PRIMARY SCHOOL,EARLY YEARS - 3 AND 4 YEAR OLDS,5902337713,5001000000,
10.01.2019,CHILDREN'S SERVICES,ALBION PRIMARY SCHOOL,"166,473.00",ALBION PRIMARY SCHOOL,SCHOOLS CAPITATION,5902337714,5001000000,
10.01.2019,CHILDREN'S SERVICES,ALFRED SALTER PRIMARY SCHOOL,"16,362.00",ALFRED SALTER PRIMARY SCHOOL,EARLY YEARS - 3 AND 4 YEAR OLDS,5902337716,5001000005,
10.01.2019,CHILDREN'S SERVICES,ALFRED SALTER PRIMARY SCHOOL,"173,612.00",ALFRED SALTER PRIMARY SCHOOL,SCHOOLS CAPITATION,5902337717,5001000005,
10.01.2019,CHILDREN'S SERVICES,ANN BERNADT NURSERY SCHOOL,"66,896.00",ANN BERNADT (SUMNER),EARLY YEARS - 3 AND 4 YEAR OLDS,5902337883,5001000085,
10.01.2019,CHILDREN'S SERVICES,BELLENDEN PRIMARY SCHOOL,"10,640.00",BELLENDEN PRIMARY SCHOOL,EARLY YEARS - 3 AND 4 YEAR OLDS,5902337719,5001000007,
10.01.2019,CHILDREN'S SERVICES,BELLENDEN PRIMARY SCHOOL,"103,949.00",BELLENDEN PRIMARY SCHOOL,SCHOOLS CAPITATION,5902337720,5001000007,
10.01.2019,CHILDREN'S SERVICES,BEORMUND PRIMARY SCHOOL,"70,159.00",BEORMUND PRIMARY SCHOOL,HIGH NEEDS - TOP UP FUNDING,5902337722,5001000008,
10.01.2019,CHILDREN'S SERVICES,BESSEMER GRANGE PRIMARY SCHOOL,"25,687.00",BESSEMER GRANGE PRIMARY SCHOOL,EARLY YEARS - 3 AND 4 YEAR OLDS,5902337723,5001000009,
10.01.2019,CHILDREN'S SERVICES,BESSEMER GRANGE PRIMARY SCHOOL,"237,627.00",BESSEMER GRANGE PRIMARY SCHOOL,SCHOOLS CAPITATION,5902337724,5001000009,
10.01.2019,CHILDREN'S SERVICES,BOUCHER C OF E PRIMARY SCHOOL,"95,212.00",BOUTCHER CE PRIMARY SCHOOL,SCHOOLS CAPITATION,5902337727,5001000011,
10.01.2019,CHILDREN'S SERVICES,BRUNSWICK PARK PRIMARY SCHOOL,"12,396.00",BRUNSWICK PARK PRIMARY SCHOOL,EARLY YEARS - 3 AND 4 YEAR OLDS,5902337729,5001000013,
10.01.2019,CHILDREN'S SERVICES,BRUNSWICK PARK PRIMARY SCHOOL,"30,573.00",BRUNSWICK PARK PRIMARY SCHOOL,HIGH NEEDS - TOP UP FUNDING SEN UNIT,5902337731,5001000013,
10.01.2019,CHILDREN'S SERVICES,BRUNSWICK PARK PRIMARY SCHOOL,"196,895.00",BRUNSWICK PARK PRIMARY SCHOOL,SCHOOLS CAPITATION,5902337730,5001000013,
10.01.2019,CHILDREN'S SERVICES,CAMELOT PRIMARY SCHOOL,"14,216.00",CAMELOT PRIMARY SCHOOL,EARLY YEARS - 3 AND 4 YEAR OLDS,5902337732,5001000014,
10.01.2019,CHILDREN'S SERVICES,CAMELOT PRIMARY SCHOOL,"201,870.00",CAMELOT PRIMARY SCHOOL,SCHOOLS CAPITATION,5902337733,5001000014,
10.01.2019,CHILDREN'S SERVICES,ELDER RAHIMI SOLICITORS,500.00,CARE GRPS  1 TO 3,EXTERNAL AGENCIES AND BODIES,5902337507,1000082158,
10.01.2019,CHILDREN'S SERVICES,DISCLOSURE & BARRING SERVICE,"4,136.00",CENTRAL SUPPORT,EXTERNAL AGENCIES AND BODIES,5902337530,1000027861,
10.01.2019,CHILDREN'S SERVICES,CHARLES DICKENS PRIMARY SCHOOL,"14,859.00",CHARLES DICKENS PRIMARY SCHOOL,EARLY YEARS - 3 AND 4 YEAR OLDS,5902337735,5001000015,
10.01.2019,CHILDREN'S SERVICES,CHARLES DICKENS PRIMARY SCHOOL,"175,049.00",CHARLES DICKENS PRIMARY SCHOOL,SCHOOLS CAPITATION,5902337736,5001000015,
10.01.2019,CHILDREN'S SERVICES,CHARLOTTE  SHARMAN PRIMARY SCHOOL,"14,759.00",CHARLOTTE SHARMAN PRIMARY SCHOOL,EARLY YEARS - 3 AND 4 YEAR OLDS,5902337738,5001000016,
10.01.2019,CHILDREN'S SERVICES,CHARLOTTE  SHARMAN PRIMARY SCHOOL,"133,468.00",CHARLOTTE SHARMAN PRIMARY SCHOOL,SCHOOLS CAPITATION,5902337739,5001000016,
10.01.2019,CHILDREN'S SERVICES,CHERRY GARDEN SCHOOL,"129,597.00",CHERRY GARDEN PRIMARY SCHOOL,HIGH NEEDS - TOP UP FUNDING,5902337746,5001000020,
10.01.2019,CHILDREN'S SERVICES,AIDHOUR LIMITED,789.60,CLA TEAM SAFEGUARDING,PROFESSIONAL FEES,5902337638,1000057345,
10.01.2019,CHILDREN'S SERVICES,COBOURG PRIMARY SCHOOL,"11,260.00",COBOURG PRIMARY SCHOOL,EARLY YEARS - 3 AND 4 YEAR OLDS,5902337747,5001000021,
10.01.2019,CHILDREN'S SERVICES,COBOURG PRIMARY SCHOOL,"173,378.00",COBOURG PRIMARY SCHOOL,SCHOOLS CAPITATION,5902337748,5001000021,
10.01.2019,CHILDREN'S SERVICES,COMBER GROVE PRIMARY SCHOOL,"13,396.00",COMBER GROVE PRIMARY SCHOOL,EARLY YEARS - 3 AND 4 YEAR OLDS,5902337750,5001000022,
10.01.2019,CHILDREN'S SERVICES,COMBER GROVE PRIMARY SCHOOL,"123,475.00",COMBER GROVE PRIMARY SCHOOL,SCHOOLS CAPITATION,5902337751,5001000022,
10.01.2019,CHILDREN'S SERVICES,CRAMPTON PRIMARY SCHOOL,"89,404.00",CRAMPTON PRIMARY SCHOOL,SCHOOLS CAPITATION,5902337753,5001000023,
10.01.2019,CHILDREN'S SERVICES,CRAWFORD PRIMARY SCHOOL,"13,060.00",CRAWFORD PRIMARY SCHOOL,EARLY YEARS - 3 AND 4 YEAR OLDS,5902337755,5001000024,
10.01.2019,CHILDREN'S SERVICES,CRAWFORD PRIMARY SCHOOL,"226,446.00",CRAWFORD PRIMARY SCHOOL,SCHOOLS CAPITATION,5902337756,5001000024,
10.01.2019,CHILDREN'S SERVICES,DOG KENNEL HILL PRIMARY SCHOOL,"15,467.00",DOG KENNEL HILL PRIMARY SCHOOL,EARLY YEARS - 3 AND 4 YEAR OLDS,5902337758,5001000025,
10.01.2019,CHILDREN'S SERVICES,DOG KENNEL HILL PRIMARY SCHOOL,"170,856.00",DOG KENNEL HILL PRIMARY SCHOOL,SCHOOLS CAPITATION,5902337759,5001000025,
10.01.2019,CHILDREN'S SERVICES,DULWICH VILLAGE CE INFANTS SCHOOL,"107,904.00",DULWICH VILLAGE CE INFANTS' SCHOOL,SCHOOLS CAPITATION,5902337761,5001000027,
10.01.2019,CHILDREN'S SERVICES,DULWICH WOOD CHILDRENS CENTRE,"58,791.00",DULWICH WOOD NURSERY SCHOOL,EARLY YEARS - 3 AND 4 YEAR OLDS,5902337899,5001000099,
10.01.2019,CHILDREN'S SERVICES,DULWICH WOOD PRIMARY SCHOOL,"149,241.00",DULWICH WOOD PRIMARY SCHOOL,SCHOOLS CAPITATION,5902337796,5001000042,
10.01.2019,CHILDREN'S SERVICES,TFL TELESALES / OYSTER FULFILMENT,340.00,EARLY YEARS IMPROVEMENT,PUBLIC TRANSPORT,5902338080,1000059727,
10.01.2019,CHILDREN'S SERVICES,ENGLISH MARTYRS RC PRIMARY SCHOOL,"11,607.00",ENGLISH MARTYRS RC PRIMARY SCHOOL,EARLY YEARS - 3 AND 4 YEAR OLDS,5902337769,5001000030,
10.01.2019,CHILDREN'S SERVICES,ENGLISH MARTYRS RC PRIMARY SCHOOL,"155,686.00",ENGLISH MARTYRS RC PRIMARY SCHOOL,SCHOOLS CAPITATION,5902337770,5001000030,
10.01.2019,CHILDREN'S SERVICES,EVELINA HOSPITAL SCHOOL,"87,568.00",EVELINA HOSPITAL SCHOOL,HIGH NEEDS - TOP UP FUNDING,5902337772,5001000031,
10.01.2019,CHILDREN'S SERVICES,ST MICHAELS FELLOWSHIP,"7,750.00",FAMILY ASSESSMENTS,RESIDENTIAL CARE,5902333089,1000004439,
10.01.2019,CHILDREN'S SERVICES,FRIARS PRIMARY SCHOOL,"8,787.00",FRIARS FOUNDATION PRIMARY SCHOOL,EARLY YEARS - 3 AND 4 YEAR OLDS,5902337776,5001000033,
10.01.2019,CHILDREN'S SERVICES,FRIARS PRIMARY SCHOOL,"90,640.00",FRIARS FOUNDATION PRIMARY SCHOOL,SCHOOLS CAPITATION,5902337777,5001000033,
10.01.2019,CHILDREN'S SERVICES,REDACTED PERSONAL DATA,-500.00,FRIENDS & FAMILY FOSTERING,ADDITIONAL PAYMENTS TO AGENCIES/CARERS,REDACTED,REDACTED,
10.01.2019,CHILDREN'S SERVICES,REDACTED PERSONAL DATA,500.00,FRIENDS & FAMILY FOSTERING,ADDITIONAL PAYMENTS TO AGENCIES/CARERS,REDACTED,REDACTED,
10.01.2019,CHILDREN'S SERVICES,REDACTED PERSONAL DATA,300.00,FRIENDS & FAMILY FOSTERING,OTHER PAYMENTS FOR CLIENTS,REDACTED,REDACTED,
10.01.2019,CHILDREN'S SERVICES,REDACTED PERSONAL DATA,"5,168.86",FRIENDS & FAMILY FOSTERING,PAYMENTS TO CARERS,REDACTED,REDACTED,
10.01.2019,CHILDREN'S SERVICES,WILLISPALMER,"2,650.00",FRIENDS & FAMILY FOSTERING,PROFESSIONAL FEES,5902337618,1000056409,
10.01.2019,CHILDREN'S SERVICES,GOODRICH PRIMARY SCHOOL,"18,543.00",GOODRICH PRIMARY SCHOOL,EARLY YEARS - 3 AND 4 YEAR OLDS,5902337763,5001000028,
10.01.2019,CHILDREN'S SERVICES,GOODRICH PRIMARY SCHOOL,"232,053.00",GOODRICH PRIMARY SCHOOL,SCHOOLS CAPITATION,5902337764,5001000028,
